Workbook

Sheet Cow Housing
B1: Name | C1: Cow Housing Summary | I1: Copy and paste the SSIPE - Cow Housing table (rows under header) from the RMR Summary worksheet in the Engineer's Dairy Calculator. Zero and null entries will be highlighted in red after entry. 250926 Naphthalene and Perchloroethylene were removed by the District as they are unlikely to be present at a dairy and are not dairy related chemicals.
B2: Applicability | C2: Use this spreadsheet to enter data from the Engineer's Dairy Calculator. Entries here will be linked to other worksheets. After completion, proceed to RMR worksheet for further entries.
B3: Author or updater | C3: Matthew Cegielski | E3: Last Update | F3: 2025-09-29
B4: Facility: | C4: Happy Cows | F4: 0 | G4: =VLOOKUP(F4,A84:B91,2) -> Not Set
B5: ID#: | C5: C-7777
B6: Project #: | C6: C-3333
B7: Potential to Emit - Cow Housing
B8: Housing Name(s) or #(s) | C8: Type of Cow | D8: # of Cows | E8: VOC (lb/hr) | F8: VOC (lb/yr) | G8: NH3 (lb/hr) | H8: NH3 (lb/yr) | I8: PM10 (lb/hr) | J8: PM10 (lb/yr)
A84: 0 | B84: Not Set
A85: 10 | B85: Cow Houses
A86: 20 | B86: Cow Houses
A87: 30 | B87: Cow Houses
A88: 40 | B88: Cow Houses
A89: 50 | B89: Cow Houses
A90: 60 | B90: Cow Houses
A91: 75 | B91: Cow Houses

Sheet RMR
B2: Copy and paste values from the corresponding table in the Engineer Dairy Calculator's RMR Summary worksheet. Paste values only with matched destination formatting. Ensure the same names are lined up by row number. Zero and null entries will be highlighted in red after entry.
B9: SSIPE RMR Summary
C10: PM10 lb/hr | D10: PM10 lb/yr | E10: VOC lb/hr | F10: VOC lb/yr | G10: NH3 lb/hr | H10: NH3 lb/yr | I10: H2S lb/yr
B11: Milking Parlor
B12: Cow Housing
B13: Liquid Manure
B14: Solid Manure
B15: Feed Handling
B16: Lagoon/Storage Pond
B17: Land Application (Liquid)
B18: Land Application (Solid)
B19: Solid Manure Storage
B22: SSIPE Total Herd Summary
B23: Change in Milk Cows
B24: Change in Dairy Head
B25: Change in Dairy Head (Flushed)

Sheet Livestock PM10
A1: PM10 based Agricultural Emissions from Operations generating Dust from Livestock Soil
A2: Use this spreadsheet when the emissions are from a Feedlot Soil sources or Cow Housing and the PM10 rates are known (e.g. Dairy operations). Ammonia and PM10 Emission rates linked to Cow Housing worksheet. No entries required on this worksheet. Zero and null entries will be highlighted in red after entry.
A3: Author or updater | B3: Matthew Cegielski
A4: Last Update | B4: 2018-09-24
A5: Facility: | B5: ='Cow Housing'!C4 -> Happy Cows
A6: ID#: | B6: ='Cow Housing'!C5 -> C-7777
A7: Project #: | B7: ='Cow Housing'!C6 -> C-3333
A8: Formula | D8: ='Cow Housing'!$B$9 -> 0 | F8: ='Cow Housing'!$B$10 -> 0 | H8: ='Cow Housing'!$B$11 -> 0 | J8: ='Cow Housing'!$B$12 -> 0 | L8: ='Cow Housing'!$B$13 -> 0 | N8: ='Cow Housing'!$B$14 -> 0 | P8: ='Cow Housing'!$B$15 -> 0 | R8: ='Cow Housing'!$B$16 -> 0 | T8: ='Cow Housing'!$B$17 -> 0 | V8: ='Cow Housing'!$B$18 -> 0 | X8: ='Cow Housing'!$B$19 -> 0 | Z8: ='Cow Housing'!$B$20 -> 0 | AB8: ='Cow Housing'!$B$21 -> 0 | AD8: ='Cow Housing'!$B$22 -> 0 | AF8: ='Cow Housing'!$B$23 -> 0 | AH8: ='Cow Housing'!$B$24 -> 0 | AJ8: ='Cow Housing'!$B$25 -> 0 | AL8: ='Cow Housing'!$B$26 -> 0 | AN8: ='Cow Housing'!$B$27 -> 0 | AP8: ='Cow Housing'!$B$28 -> 0
A9: Emission are calculated by the multiplication of the PM10 Rates and the Emission Factors.
D10: lb/hr | E10: lb/yr | F10: lb/hr | G10: lb/yr | H10: lb/hr | I10: lb/yr | J10: lb/hr | K10: lb/yr | L10: lb/hr | M10: lb/yr | N10: lb/hr | O10: lb/yr | P10: lb/hr | Q10: lb/yr | R10: lb/hr | S10: lb/yr | T10: lb/hr | U10: lb/yr | V10: lb/hr | W10: lb/yr | X10: lb/hr | Y10: lb/yr | Z10: lb/hr | AA10: lb/yr | AB10: lb/hr | AC10: lb/yr | AD10: lb/hr | AE10: lb/yr | AF10: lb/hr | AG10: lb/yr | AH10: lb/hr | AI10: lb/yr | AJ10: lb/hr | AK10: lb/yr | AL10: lb/hr | AM10: lb/yr | AN10: lb/hr | AO10: lb/yr | AP10: lb/hr | AQ10: lb/yr
A11: PM10 Emissions Rates | D11: =IF('Cow Housing'!I9>0,'Cow Housing'!I9,0) -> 0 | E11: =IF('Cow Housing'!J9>0,'Cow Housing'!J9,0) -> 0 | F11: =IF('Cow Housing'!I10>0,'Cow Housing'!I10,0) -> 0 | G11: =IF('Cow Housing'!J10>0,'Cow Housing'!J10,0) -> 0 | H11: =IF('Cow Housing'!I11>0,'Cow Housing'!I11,0) -> 0 | I11: =IF('Cow Housing'!J11>0,'Cow Housing'!J11,0) -> 0 | J11: =IF('Cow Housing'!I12>0,'Cow Housing'!I12,0) -> 0 | K11: =IF('Cow Housing'!J12>0,'Cow Housing'!J12,0) -> 0 | L11: =IF('Cow Housing'!I13>0,'Cow Housing'!I13,0) -> 0 | M11: =IF('Cow Housing'!J13>0,'Cow Housing'!J13,0) -> 0 | N11: =IF('Cow Housing'!I14>0,'Cow Housing'!I14,0) -> 0 | O11: =IF('Cow Housing'!J14>0,'Cow Housing'!J14,0) -> 0 | P11: =IF('Cow Housing'!I15>0,'Cow Housing'!I15,0) -> 0 | Q11: =IF('Cow Housing'!J15>0,'Cow Housing'!J15,0) -> 0 | R11: =IF('Cow Housing'!I16>0,'Cow Housing'!I16,0) -> 0 | S11: =IF('Cow Housing'!J16>0,'Cow Housing'!J16,0) -> 0 | T11: =IF('Cow Housing'!I17>0,'Cow Housing'!I17,0) -> 0 | U11: =IF('Cow Housing'!J17>0,'Cow Housing'!J17,0) -> 0 | V11: =IF('Cow Housing'!I18>0,'Cow Housing'!I18,0) -> 0 | W11: =IF('Cow Housing'!J18>0,'Cow Housing'!J18,0) -> 0 | X11: =IF('Cow Housing'!I19>0,'Cow Housing'!I19,0) -> 0 | Y11: =IF('Cow Housing'!J19>0,'Cow Housing'!J19,0) -> 0 | Z11: =IF('Cow Housing'!I20>0,'Cow Housing'!I20,0) -> 0 | AA11: =IF('Cow Housing'!J20>0,'Cow Housing'!J20,0) -> 0 | AB11: =IF('Cow Housing'!I21>0,'Cow Housing'!I21,0) -> 0 | AC11: =IF('Cow Housing'!J21>0,'Cow Housing'!J21,0) -> 0 | AD11: =IF('Cow Housing'!I22>0,'Cow Housing'!I22,0) -> 0 | AE11: =IF('Cow Housing'!J22>0,'Cow Housing'!J22,0) -> 0 | AF11: =IF('Cow Housing'!I23>0,'Cow Housing'!I23,0) -> 0 | AG11: =IF('Cow Housing'!J23>0,'Cow Housing'!J23,0) -> 0 | AH11: =IF('Cow Housing'!I24>0,'Cow Housing'!I24,0) -> 0 | AI11: =IF('Cow Housing'!J24>0,'Cow Housing'!J24,0) -> 0 | AJ11: =IF('Cow Housing'!I25>0,'Cow Housing'!I25,0) -> 0 | AK11: =IF('Cow Housing'!J25>0,'Cow Housing'!J25,0) -> 0 | AL11: =IF('Cow Housing'!I26>0,'Cow Housing'!I26,0) -> 0 | AM11: =IF('Cow Housing'!J26>0,'Cow Housing'!J26,0) -> 0 | AN11: =IF('Cow Housing'!I27>0,'Cow Housing'!I27,0) -> 0 | AO11: =IF('Cow Housing'!J27>0,'Cow Housing'!J27,0) -> 0 | AP11: =IF('Cow Housing'!I28>0,'Cow Housing'!I28,0) -> 0 | AQ11: =IF('Cow Housing'!J28>0,'Cow Housing'!J28,0) -> 0
A12: Substances | B12: CAS# | C12: Dust* lb/lb PM10 | D12: LB/HR | E12: LB/YR | F12: LB/HR | G12: LB/YR | H12: LB/HR | I12: LB/YR | J12: LB/HR | K12: LB/YR | L12: LB/HR | M12: LB/YR | N12: LB/HR | O12: LB/YR | P12: LB/HR | Q12: LB/YR | R12: LB/HR | S12: LB/YR | T12: LB/HR | U12: LB/YR | V12: LB/HR | W12: LB/YR | X12: LB/HR | Y12: LB/YR | Z12: LB/HR | AA12: LB/YR | AB12: LB/HR | AC12: LB/YR | AD12: LB/HR | AE12: LB/YR | AF12: LB/HR | AG12: LB/YR | AH12: LB/HR | AI12: LB/YR | AJ12: LB/HR | AK12: LB/YR | AL12: LB/HR | AM12: LB/YR | AN12: LB/HR | AO12: LB/YR | AP12: LB/HR | AQ12: LB/YR
A14: Aluminum | B14: 7429905 | C14: 0.046614 | D14: =$D$11*C14 -> 0 | E14: =$E$11*C14 -> 0 | F14: =$F$11*C14 -> 0 | G14: =$G$11*C14 -> 0 | H14: =$H$11*C14 -> 0 | I14: =$I$11*C14 -> 0 | J14: =$J$11*C14 -> 0 | K14: =$K$11*C14 -> 0 | L14: =$L$11*C14 -> 0 | M14: =$M$11*C14 -> 0 | N14: =$N$11*C14 -> 0 | O14: =$O$11*C14 -> 0 | P14: =$P$11*C14 -> 0 | Q14: =$Q$11*C14 -> 0 | R14: =$R$11*C14 -> 0 | S14: =$S$11*C14 -> 0 | T14: =$T$11*C14 -> 0 | U14: =$U$11*C14 -> 0 | V14: =$V$11*C14 -> 0 | W14: =$W$11*C14 -> 0 | X14: =$X$11*C14 -> 0 | Y14: =$Y$11*C14 -> 0 | Z14: =$Z$11*C14 -> 0 | AA14: =$AA$11*C14 -> 0 | AB14: =$AB$11*C14 -> 0 | AC14: =$AC$11*C14 -> 0 | AD14: =$AD$11*C14 -> 0 | AE14: =$AE$11*C14 -> 0 | AF14: =$AF$11*C14 -> 0 | AG14: =$AG$11*C14 -> 0 | AH14: =$AH$11*C14 -> 0 | AI14: =$AI$11*C14 -> 0 | AJ14: =$AJ$11*C14 -> 0 | AK14: =$AK$11*C14 -> 0 | AL14: =$AL$11*C14 -> 0 | AM14: =$AM$11*C14 -> 0 | AN14: =$AN$11*C14 -> 0 | AO14: =$AO$11*C14 -> 0 | AP14: =$AP$11*C14 -> 0 | AQ14: =$AQ$11*C14 -> 0
A15: Antimony | B15: 7440360 | C15: 1.9e-05 | D15: =$D$11*C15 -> 0 | E15: =$E$11*C15 -> 0 | F15: =$F$11*C15 -> 0 | G15: =$G$11*C15 -> 0 | H15: =$H$11*C15 -> 0 | I15: =$I$11*C15 -> 0 | J15: =$J$11*C15 -> 0 | K15: =$K$11*C15 -> 0 | L15: =$L$11*C15 -> 0 | M15: =$M$11*C15 -> 0 | N15: =$N$11*C15 -> 0 | O15: =$O$11*C15 -> 0 | P15: =$P$11*C15 -> 0 | Q15: =$Q$11*C15 -> 0 | R15: =$R$11*C15 -> 0 | S15: =$S$11*C15 -> 0 | T15: =$T$11*C15 -> 0 | U15: =$U$11*C15 -> 0 | V15: =$V$11*C15 -> 0 | W15: =$W$11*C15 -> 0 | X15: =$X$11*C15 -> 0 | Y15: =$Y$11*C15 -> 0 | Z15: =$Z$11*C15 -> 0 | AA15: =$AA$11*C15 -> 0 | AB15: =$AB$11*C15 -> 0 | AC15: =$AC$11*C15 -> 0 | AD15: =$AD$11*C15 -> 0 | AE15: =$AE$11*C15 -> 0 | AF15: =$AF$11*C15 -> 0 | AG15: =$AG$11*C15 -> 0 | AH15: =$AH$11*C15 -> 0 | AI15: =$AI$11*C15 -> 0 | AJ15: =$AJ$11*C15 -> 0 | AK15: =$AK$11*C15 -> 0 | AL15: =$AL$11*C15 -> 0 | AM15: =$AM$11*C15 -> 0 | AN15: =$AN$11*C15 -> 0 | AO15: =$AO$11*C15 -> 0 | AP15: =$AP$11*C15 -> 0 | AQ15: =$AQ$11*C15 -> 0
A16: Arsenic | B16: 7440382 | C16: 1.6e-05 | D16: 0 | E16: 0 | F16: 0 | G16: 0 | H16: =$H$11*C16 -> 0 | I16: =$I$11*C16 -> 0 | J16: 0 | K16: 0 | L16: =$L$11*C16 -> 0 | M16: =$M$11*C16 -> 0 | N16: 0 | O16: 0 | P16: 0 | Q16: 0 | R16: 0 | S16: 0 | T16: 0 | U16: 0 | V16: 0 | W16: 0 | X16: 0 | Y16: 0 | Z16: 0 | AA16: 0 | AB16: 0 | AC16: 0 | AD16: 0 | AE16: 0 | AF16: 0 | AG16: 0 | AH16: 0 | AI16: 0 | AJ16: 0 | AK16: 0 | AL16: 0 | AM16: 0 | AN16: 0 | AO16: 0 | AP16: 0 | AQ16: 0
A17: Barium | B17: 7440393 | C17: 0.000469 | D17: 0 | E17: 0 | F17: 0 | G17: 0 | H17: 0 | I17: 0 | J17: 0 | K17: 0 | L17: 0 | M17: 0 | N17: 0 | O17: 0 | P17: 0 | Q17: 0 | R17: 0 | S17: 0 | T17: 0 | U17: 0 | V17: 0 | W17: 0 | X17: 0 | Y17: 0 | Z17: 0 | AA17: 0 | AB17: 0 | AC17: 0 | AD17: 0 | AE17: 0 | AF17: 0 | AG17: 0 | AH17: 0 | AI17: 0 | AJ17: 0 | AK17: 0 | AL17: 0 | AM17: 0 | AN17: 0 | AO17: 0 | AP17: 0 | AQ17: 0
A18: Bromine | B18: 7726956 | C18: 4.4e-05 | D18: 0 | E18: 0 | F18: 0 | G18: 0 | H18: 0 | I18: 0 | J18: 0 | K18: 0 | L18: 0 | M18: 0 | N18: 0 | O18: 0 | P18: 0 | Q18: 0 | R18: 0 | S18: 0 | T18: 0 | U18: 0 | V18: 0 | W18: 0 | X18: 0 | Y18: 0 | Z18: 0 | AA18: 0 | AB18: 0 | AC18: 0 | AD18: 0 | AE18: 0 | AF18: 0 | AG18: 0 | AH18: 0 | AI18: 0 | AJ18: 0 | AK18: 0 | AL18: 0 | AM18: 0 | AN18: 0 | AO18: 0 | AP18: 0 | AQ18: 0
A19: Chromium | B19: 7440473 | C19: 1.4e-05 | D19: 0 | E19: 0 | F19: 0 | G19: 0 | H19: 0 | I19: 0 | J19: 0 | K19: 0 | L19: 0 | M19: 0 | N19: 0 | O19: 0 | P19: 0 | Q19: 0 | R19: 0 | S19: 0 | T19: 0 | U19: 0 | V19: 0 | W19: 0 | X19: 0 | Y19: 0 | Z19: 0 | AA19: 0 | AB19: 0 | AC19: 0 | AD19: 0 | AE19: 0 | AF19: 0 | AG19: 0 | AH19: 0 | AI19: 0 | AJ19: 0 | AK19: 0 | AL19: 0 | AM19: 0 | AN19: 0 | AO19: 0 | AP19: 0 | AQ19: 0
A20: Copper | B20: 7440508 | C20: 0.000132 | D20: 0 | E20: 0 | F20: 0 | G20: 0 | H20: 0 | I20: 0 | J20: 0 | K20: 0 | L20: 0 | M20: 0 | N20: 0 | O20: 0 | P20: 0 | Q20: 0 | R20: 0 | S20: 0 | T20: 0 | U20: 0 | V20: 0 | W20: 0 | X20: 0 | Y20: 0 | Z20: 0 | AA20: 0 | AB20: 0 | AC20: 0 | AD20: 0 | AE20: 0 | AF20: 0 | AG20: 0 | AH20: 0 | AI20: 0 | AJ20: 0 | AK20: 0 | AL20: 0 | AM20: 0 | AN20: 0 | AO20: 0 | AP20: 0 | AQ20: 0
A21: Hexavalent Chromium** | B21: 18540299 | C21: 7e-07 | D21: 0 | E21: 0 | F21: 0 | G21: 0 | H21: 0 | I21: 0 | J21: 0 | K21: 0 | L21: 0 | M21: 0 | N21: 0 | O21: 0 | P21: 0 | Q21: 0 | R21: 0 | S21: 0 | T21: 0 | U21: 0 | V21: 0 | W21: 0 | X21: 0 | Y21: 0 | Z21: 0 | AA21: 0 | AB21: 0 | AC21: 0 | AD21: 0 | AE21: 0 | AF21: 0 | AG21: 0 | AH21: 0 | AI21: 0 | AJ21: 0 | AK21: 0 | AL21: 0 | AM21: 0 | AN21: 0 | AO21: 0 | AP21: 0 | AQ21: 0
A22: Lead | B22: 7439921 | C22: 3.5e-05 | D22: 0 | E22: 0 | F22: 0 | G22: 0 | H22: 0 | I22: 0 | J22: 0 | K22: 0 | L22: 0 | M22: 0 | N22: 0 | O22: 0 | P22: 0 | Q22: 0 | R22: 0 | S22: 0 | T22: 0 | U22: 0 | V22: 0 | W22: 0 | X22: 0 | Y22: 0 | Z22: 0 | AA22: 0 | AB22: 0 | AC22: 0 | AD22: 0 | AE22: 0 | AF22: 0 | AG22: 0 | AH22: 0 | AI22: 0 | AJ22: 0 | AK22: 0 | AL22: 0 | AM22: 0 | AN22: 0 | AO22: 0 | AP22: 0 | AQ22: 0
A23: Manganese | B23: 7439965 | C23: 0.000759 | D23: 0 | E23: 0 | F23: 0 | G23: 0 | H23: 0 | I23: 0 | J23: 0 | K23: 0 | L23: 0 | M23: 0 | N23: 0 | O23: 0 | P23: 0 | Q23: 0 | R23: 0 | S23: 0 | T23: 0 | U23: 0 | V23: 0 | W23: 0 | X23: 0 | Y23: 0 | Z23: 0 | AA23: 0 | AB23: 0 | AC23: 0 | AD23: 0 | AE23: 0 | AF23: 0 | AG23: 0 | AH23: 0 | AI23: 0 | AJ23: 0 | AK23: 0 | AL23: 0 | AM23: 0 | AN23: 0 | AO23: 0 | AP23: 0 | AQ23: 0
A24: Mercury | B24: 7439976 | C24: 4e-06 | D24: 0 | E24: 0 | F24: 0 | G24: 0 | H24: 0 | I24: 0 | J24: 0 | K24: 0 | L24: 0 | M24: 0 | N24: 0 | O24: 0 | P24: 0 | Q24: 0 | R24: 0 | S24: 0 | T24: 0 | U24: 0 | V24: 0 | W24: 0 | X24: 0 | Y24: 0 | Z24: 0 | AA24: 0 | AB24: 0 | AC24: 0 | AD24: 0 | AE24: 0 | AF24: 0 | AG24: 0 | AH24: 0 | AI24: 0 | AJ24: 0 | AK24: 0 | AL24: 0 | AM24: 0 | AN24: 0 | AO24: 0 | AP24: 0 | AQ24: 0
A25: Nickel | B25: 7440020 | C25: 7e-06 | D25: 0 | E25: 0 | F25: 0 | G25: 0 | H25: 0 | I25: 0 | J25: 0 | K25: 0 | L25: 0 | M25: 0 | N25: 0 | O25: 0 | P25: 0 | Q25: 0 | R25: 0 | S25: 0 | T25: 0 | U25: 0 | V25: 0 | W25: 0 | X25: 0 | Y25: 0 | Z25: 0 | AA25: 0 | AB25: 0 | AC25: 0 | AD25: 0 | AE25: 0 | AF25: 0 | AG25: 0 | AH25: 0 | AI25: 0 | AJ25: 0 | AK25: 0 | AL25: 0 | AM25: 0 | AN25: 0 | AO25: 0 | AP25: 0 | AQ25: 0
A26: Phosphorus | B26: 7723140 | C26: 0.04014 | D26: 0 | E26: 0 | F26: 0 | G26: 0 | H26: 0 | I26: 0 | J26: 0 | K26: 0 | L26: 0 | M26: 0 | N26: 0 | O26: 0 | P26: 0 | Q26: 0 | R26: 0 | S26: 0 | T26: 0 | U26: 0 | V26: 0 | W26: 0 | X26: 0 | Y26: 0 | Z26: 0 | AA26: 0 | AB26: 0 | AC26: 0 | AD26: 0 | AE26: 0 | AF26: 0 | AG26: 0 | AH26: 0 | AI26: 0 | AJ26: 0 | AK26: 0 | AL26: 0 | AM26: 0 | AN26: 0 | AO26: 0 | AP26: 0 | AQ26: 0
A27: Selenium | B27: 7782492 | C27: 1e-06 | D27: 0 | E27: 0 | F27: 0 | G27: 0 | H27: 0 | I27: 0 | J27: 0 | K27: 0 | L27: 0 | M27: 0 | N27: 0 | O27: 0 | P27: 0 | Q27: 0 | R27: 0 | S27: 0 | T27: 0 | U27: 0 | V27: 0 | W27: 0 | X27: 0 | Y27: 0 | Z27: 0 | AA27: 0 | AB27: 0 | AC27: 0 | AD27: 0 | AE27: 0 | AF27: 0 | AG27: 0 | AH27: 0 | AI27: 0 | AJ27: 0 | AK27: 0 | AL27: 0 | AM27: 0 | AN27: 0 | AO27: 0 | AP27: 0 | AQ27: 0
A28: Sulfates | B28: 9960 | C28: 0.007283 | D28: 0 | E28: 0 | F28: 0 | G28: 0 | H28: 0 | I28: 0 | J28: 0 | K28: 0 | L28: 0 | M28: 0 | N28: 0 | O28: 0 | P28: 0 | Q28: 0 | R28: 0 | S28: 0 | T28: 0 | U28: 0 | V28: 0 | W28: 0 | X28: 0 | Y28: 0 | Z28: 0 | AA28: 0 | AB28: 0 | AC28: 0 | AD28: 0 | AE28: 0 | AF28: 0 | AG28: 0 | AH28: 0 | AI28: 0 | AJ28: 0 | AK28: 0 | AL28: 0 | AM28: 0 | AN28: 0 | AO28: 0 | AP28: 0 | AQ28: 0
A29: Vanadium | B29: 7440622 | C29: 3e-05 | D29: 0 | E29: 0 | F29: 0 | G29: 0 | H29: 0 | I29: 0 | J29: 0 | K29: 0 | L29: 0 | M29: 0 | N29: 0 | O29: 0 | P29: 0 | Q29: 0 | R29: 0 | S29: 0 | T29: 0 | U29: 0 | V29: 0 | W29: 0 | X29: 0 | Y29: 0 | Z29: 0 | AA29: 0 | AB29: 0 | AC29: 0 | AD29: 0 | AE29: 0 | AF29: 0 | AG29: 0 | AH29: 0 | AI29: 0 | AJ29: 0 | AK29: 0 | AL29: 0 | AM29: 0 | AN29: 0 | AO29: 0 | AP29: 0 | AQ29: 0
A30: Zinc | B30: 7440666 | C30: 0.000342 | D30: 0 | E30: 0 | F30: 0 | G30: 0 | H30: 0 | I30: 0 | J30: 0 | K30: 0 | L30: 0 | M30: 0 | N30: 0 | O30: 0 | P30: 0 | Q30: 0 | R30: 0 | S30: 0 | T30: 0 | U30: 0 | V30: 0 | W30: 0 | X30: 0 | Y30: 0 | Z30: 0 | AA30: 0 | AB30: 0 | AC30: 0 | AD30: 0 | AE30: 0 | AF30: 0 | AG30: 0 | AH30: =$AH$11*K30 -> 0 | AI30: =$AI$11*K30 -> 0 | AJ30: 0 | AK30: 0 | AL30: 0 | AM30: 0 | AN30: =$AN$11*C30 -> 0 | AO30: =$AO$11*C30 -> 0 | AP30: 0 | AQ30: 0
A31: Ammonia | B31: 7664417 | D31: =IF('Cow Housing'!G9>0, 'Cow Housing'!G9, 0) -> 0 | E31: =IF('Cow Housing'!H9>0, 'Cow Housing'!H9, 0) -> 0 | F31: =IF('Cow Housing'!G10>0, 'Cow Housing'!G10, 0) -> 0 | G31: =IF('Cow Housing'!H10>0, 'Cow Housing'!H10, 0) -> 0 | H31: =IF('Cow Housing'!G11>0, 'Cow Housing'!G11, 0) -> 0 | I31: =IF('Cow Housing'!H11>0, 'Cow Housing'!H11, 0) -> 0 | J31: =IF('Cow Housing'!G12>0, 'Cow Housing'!G12, 0) -> 0 | K31: =IF('Cow Housing'!H12>0, 'Cow Housing'!H12, 0) -> 0 | L31: =IF('Cow Housing'!G13>0, 'Cow Housing'!G13, 0) -> 0 | M31: =IF('Cow Housing'!H13>0, 'Cow Housing'!H13, 0) -> 0 | N31: =IF('Cow Housing'!G14>0, 'Cow Housing'!G14, 0) -> 0 | O31: =IF('Cow Housing'!H14>0, 'Cow Housing'!H14, 0) -> 0 | P31: =IF('Cow Housing'!G15>0, 'Cow Housing'!G15, 0) -> 0 | Q31: =IF('Cow Housing'!H15>0, 'Cow Housing'!H15, 0) -> 0 | R31: =IF('Cow Housing'!G16>0, 'Cow Housing'!G16, 0) -> 0 | S31: =IF('Cow Housing'!H16>0, 'Cow Housing'!H16, 0) -> 0 | T31: =IF('Cow Housing'!G17>0, 'Cow Housing'!G17, 0) -> 0 | U31: =IF('Cow Housing'!H17>0, 'Cow Housing'!H17, 0) -> 0 | V31: =IF('Cow Housing'!G18>0, 'Cow Housing'!G18, 0) -> 0 | W31: =IF('Cow Housing'!H18>0, 'Cow Housing'!H18, 0) -> 0 | X31: =IF('Cow Housing'!G19>0, 'Cow Housing'!G19, 0) -> 0 | Y31: =IF('Cow Housing'!H19>0, 'Cow Housing'!H19, 0) -> 0 | Z31: =IF('Cow Housing'!G20>0, 'Cow Housing'!G20, 0) -> 0 | AA31: =IF('Cow Housing'!H20>0, 'Cow Housing'!H20, 0) -> 0 | AB31: =IF('Cow Housing'!G21>0, 'Cow Housing'!G21, 0) -> 0 | AC31: =IF('Cow Housing'!H21>0, 'Cow Housing'!H21, 0) -> 0 | AD31: =IF('Cow Housing'!G22>0, 'Cow Housing'!G22, 0) -> 0 | AE31: =IF('Cow Housing'!H22>0, 'Cow Housing'!H22, 0) -> 0 | AF31: =IF('Cow Housing'!G23>0, 'Cow Housing'!G23, 0) -> 0 | AG31: =IF('Cow Housing'!H23>0, 'Cow Housing'!H23, 0) -> 0 | AH31: =IF('Cow Housing'!G24>0, 'Cow Housing'!G24, 0) -> 0 | AI31: =IF('Cow Housing'!H24>0, 'Cow Housing'!H24, 0) -> 0 | AJ31: =IF('Cow Housing'!G25>0, 'Cow Housing'!G25, 0) -> 0 | AK31: =IF('Cow Housing'!H25>0, 'Cow Housing'!H25, 0) -> 0 | AL31: =IF('Cow Housing'!G26>0, 'Cow Housing'!G26, 0) -> 0 | AM31: =IF('Cow Housing'!H26>0, 'Cow Housing'!H26, 0) -> 0 | AN31: =IF('Cow Housing'!G27>0, 'Cow Housing'!G27, 0) -> 0 | AO31: =IF('Cow Housing'!H27>0, 'Cow Housing'!H27, 0) -> 0 | AP31: =IF('Cow Housing'!G28>0, 'Cow Housing'!G28, 0) -> 0 | AQ31: =IF('Cow Housing'!H28>0, 'Cow Housing'!H28, 0) -> 0
A33: References:
A34: * Emission factors are derived from a worst case composite of 1997 San Joaquin Valley soil profiles listed in EPA's speciation program.
A35: **Hexavalent chromium is assumed to be 5% of chromium.
A36: Pollutants required for toxic reporting. Current as of update date.
A38: Compounds Tested for but not detected | B38: CAS#
A42: Cadmium | B42: 7440439
A43: Cobalt | B43: 7440484

Sheet Livestock PM10 2
A1: PM10 based Agricultural Emissions from Operations generating Dust from Livestock Soil
A2: Use this spreadsheet when the emissions are from a Feedlot Soil sources or Cow Housing and the PM10 rates are known (e.g. Dairy operations). Ammonia and PM10 Emission rates linked to Cow Housing worksheet. No entries required on this worksheet. Zero and null entries will be highlighted in red after entry.
A3: Author or updater | B3: Matthew Cegielski
A4: Last Update | B4: 2018-09-24
A5: Facility: | B5: ='Cow Housing'!C4 -> Happy Cows
A6: ID#: | B6: ='Cow Housing'!C5 -> C-7777
A7: Project #: | B7: ='Cow Housing'!C6 -> C-3333
A8: Formula | D8: ='Cow Housing'!$B$29 -> 0 | F8: ='Cow Housing'!$B$30 -> 0 | H8: ='Cow Housing'!$B$31 -> 0 | J8: ='Cow Housing'!$B$32 -> 0 | L8: ='Cow Housing'!$B$33 -> 0 | N8: ='Cow Housing'!$B$34 -> 0 | P8: ='Cow Housing'!$B$35 -> 0 | R8: ='Cow Housing'!$B$36 -> 0 | T8: ='Cow Housing'!$B$37 -> 0 | V8: ='Cow Housing'!$B$38 -> 0 | X8: ='Cow Housing'!$B$39 -> 0 | Z8: ='Cow Housing'!$B$40 -> 0 | AB8: ='Cow Housing'!$B$41 -> 0 | AD8: ='Cow Housing'!$B$42 -> 0 | AF8: ='Cow Housing'!$B$43 -> 0 | AH8: ='Cow Housing'!$B$44 -> 0 | AJ8: ='Cow Housing'!$B$45 -> 0 | AL8: ='Cow Housing'!$B$46 -> 0 | AN8: ='Cow Housing'!$B$47 -> 0 | AP8: ='Cow Housing'!$B$48 -> 0
A9: Emission are calculated by the multiplication of the PM10 Rates and the Emission Factors.
D10: lb/hr | E10: lb/yr | F10: lb/hr | G10: lb/yr | H10: lb/hr | I10: lb/yr | J10: lb/hr | K10: lb/yr | L10: lb/hr | M10: lb/yr | N10: lb/hr | O10: lb/yr | P10: lb/hr | Q10: lb/yr | R10: lb/hr | S10: lb/yr | T10: lb/hr | U10: lb/yr | V10: lb/hr | W10: lb/yr | X10: lb/hr | Y10: lb/yr | Z10: lb/hr | AA10: lb/yr | AB10: lb/hr | AC10: lb/yr | AD10: lb/hr | AE10: lb/yr | AF10: lb/hr | AG10: lb/yr | AH10: lb/hr | AI10: lb/yr | AJ10: lb/hr | AK10: lb/yr | AL10: lb/hr | AM10: lb/yr | AN10: lb/hr | AO10: lb/yr | AP10: lb/hr | AQ10: lb/yr
A11: PM10 Emissions Rates | D11: =IF('Cow Housing'!I29>0,'Cow Housing'!I29,0) -> 0 | E11: =IF('Cow Housing'!J29>0,'Cow Housing'!J29,0) -> 0 | F11: =IF('Cow Housing'!I30>0,'Cow Housing'!I30,0) -> 0 | G11: =IF('Cow Housing'!J30>0,'Cow Housing'!J30,0) -> 0 | H11: =IF('Cow Housing'!I31>0,'Cow Housing'!I31,0) -> 0 | I11: =IF('Cow Housing'!J31>0,'Cow Housing'!J31,0) -> 0 | J11: =IF('Cow Housing'!I32>0,'Cow Housing'!I32,0) -> 0 | K11: =IF('Cow Housing'!J32>0,'Cow Housing'!J32,0) -> 0 | L11: =IF('Cow Housing'!I33>0,'Cow Housing'!I33,0) -> 0 | M11: =IF('Cow Housing'!J33>0,'Cow Housing'!J33,0) -> 0 | N11: =IF('Cow Housing'!I34>0,'Cow Housing'!I34,0) -> 0 | O11: =IF('Cow Housing'!J34>0,'Cow Housing'!J34,0) -> 0 | P11: =IF('Cow Housing'!I35>0,'Cow Housing'!I35,0) -> 0 | Q11: =IF('Cow Housing'!J35>0,'Cow Housing'!J35,0) -> 0 | R11: =IF('Cow Housing'!I36>0,'Cow Housing'!I36,0) -> 0 | S11: =IF('Cow Housing'!J36>0,'Cow Housing'!J36,0) -> 0 | T11: =IF('Cow Housing'!I37>0,'Cow Housing'!I37,0) -> 0 | U11: =IF('Cow Housing'!J37>0,'Cow Housing'!J37,0) -> 0 | V11: =IF('Cow Housing'!I38>0,'Cow Housing'!I38,0) -> 0 | W11: =IF('Cow Housing'!J38>0,'Cow Housing'!J38,0) -> 0 | X11: =IF('Cow Housing'!I39>0,'Cow Housing'!I39,0) -> 0 | Y11: =IF('Cow Housing'!J39>0,'Cow Housing'!J39,0) -> 0 | Z11: =IF('Cow Housing'!I40>0,'Cow Housing'!I40,0) -> 0 | AA11: =IF('Cow Housing'!J40>0,'Cow Housing'!J40,0) -> 0 | AB11: =IF('Cow Housing'!I41>0,'Cow Housing'!I41,0) -> 0 | AC11: =IF('Cow Housing'!J41>0,'Cow Housing'!J41,0) -> 0 | AD11: =IF('Cow Housing'!I42>0,'Cow Housing'!I42,0) -> 0 | AE11: =IF('Cow Housing'!J42>0,'Cow Housing'!J42,0) -> 0 | AF11: =IF('Cow Housing'!I43>0,'Cow Housing'!I43,0) -> 0 | AG11: =IF('Cow Housing'!J43>0,'Cow Housing'!J43,0) -> 0 | AH11: =IF('Cow Housing'!I44>0,'Cow Housing'!I44,0) -> 0 | AI11: =IF('Cow Housing'!J44>0,'Cow Housing'!J44,0) -> 0 | AJ11: =IF('Cow Housing'!I45>0,'Cow Housing'!I45,0) -> 0 | AK11: =IF('Cow Housing'!J45>0,'Cow Housing'!J45,0) -> 0 | AL11: =IF('Cow Housing'!I46>0,'Cow Housing'!I46,0) -> 0 | AM11: =IF('Cow Housing'!J46>0,'Cow Housing'!J46,0) -> 0 | AN11: =IF('Cow Housing'!I47>0,'Cow Housing'!I47,0) -> 0 | AO11: =IF('Cow Housing'!J47>0,'Cow Housing'!J47,0) -> 0 | AP11: =IF('Cow Housing'!I48>0,'Cow Housing'!I48,0) -> 0 | AQ11: =IF('Cow Housing'!J48>0,'Cow Housing'!J48,0) -> 0
A12: Substances | B12: CAS# | C12: Dust* lb/lb PM10 | D12: LB/HR | E12: LB/YR | F12: LB/HR | G12: LB/YR | H12: LB/HR | I12: LB/YR | J12: LB/HR | K12: LB/YR | L12: LB/HR | M12: LB/YR | N12: LB/HR | O12: LB/YR | P12: LB/HR | Q12: LB/YR | R12: LB/HR | S12: LB/YR | T12: LB/HR | U12: LB/YR | V12: LB/HR | W12: LB/YR | X12: LB/HR | Y12: LB/YR | Z12: LB/HR | AA12: LB/YR | AB12: LB/HR | AC12: LB/YR | AD12: LB/HR | AE12: LB/YR | AF12: LB/HR | AG12: LB/YR | AH12: LB/HR | AI12: LB/YR | AJ12: LB/HR | AK12: LB/YR | AL12: LB/HR | AM12: LB/YR | AN12: LB/HR | AO12: LB/YR | AP12: LB/HR | AQ12: LB/YR
A14: Aluminum | B14: 7429905 | C14: 0.046614 | D14: =$D$11*C14 -> 0 | E14: =$E$11*C14 -> 0 | F14: =$F$11*C14 -> 0 | G14: =$G$11*C14 -> 0 | H14: =$H$11*C14 -> 0 | I14: =$I$11*C14 -> 0 | J14: =$J$11*C14 -> 0 | K14: =$K$11*C14 -> 0 | L14: =$L$11*C14 -> 0 | M14: =$M$11*C14 -> 0 | N14: =$N$11*C14 -> 0 | O14: =$O$11*C14 -> 0 | P14: =$P$11*C14 -> 0 | Q14: =$Q$11*C14 -> 0 | R14: =$R$11*C14 -> 0 | S14: =$S$11*C14 -> 0 | T14: =$T$11*C14 -> 0 | U14: =$U$11*C14 -> 0 | V14: =$V$11*C14 -> 0 | W14: =$W$11*C14 -> 0 | X14: =$X$11*C14 -> 0 | Y14: =$Y$11*C14 -> 0 | Z14: =$Z$11*C14 -> 0 | AA14: =$AA$11*C14 -> 0 | AB14: =$AB$11*C14 -> 0 | AC14: =$AC$11*C14 -> 0 | AD14: =$AD$11*C14 -> 0 | AE14: =$AE$11*C14 -> 0 | AF14: =$AF$11*C14 -> 0 | AG14: =$AG$11*C14 -> 0 | AH14: =$AH$11*C14 -> 0 | AI14: =$AI$11*C14 -> 0 | AJ14: =$AJ$11*C14 -> 0 | AK14: =$AK$11*C14 -> 0 | AL14: =$AL$11*C14 -> 0 | AM14: =$AM$11*C14 -> 0 | AN14: =$AN$11*C14 -> 0 | AO14: =$AO$11*C14 -> 0 | AP14: =$AP$11*C14 -> 0 | AQ14: =$AQ$11*C14 -> 0
A15: Antimony | B15: 7440360 | C15: 1.9e-05 | D15: =$D$11*C15 -> 0 | E15: =$E$11*C15 -> 0 | F15: =$F$11*C15 -> 0 | G15: =$G$11*C15 -> 0 | H15: =$H$11*C15 -> 0 | I15: =$I$11*C15 -> 0 | J15: =$J$11*C15 -> 0 | K15: =$K$11*C15 -> 0 | L15: =$L$11*C15 -> 0 | M15: =$M$11*C15 -> 0 | N15: =$N$11*C15 -> 0 | O15: =$O$11*C15 -> 0 | P15: =$P$11*C15 -> 0 | Q15: =$Q$11*C15 -> 0 | R15: =$R$11*C15 -> 0 | S15: =$S$11*C15 -> 0 | T15: =$T$11*C15 -> 0 | U15: =$U$11*C15 -> 0 | V15: =$V$11*C15 -> 0 | W15: =$W$11*C15 -> 0 | X15: =$X$11*C15 -> 0 | Y15: =$Y$11*C15 -> 0 | Z15: =$Z$11*C15 -> 0 | AA15: =$AA$11*C15 -> 0 | AB15: =$AB$11*C15 -> 0 | AC15: =$AC$11*C15 -> 0 | AD15: =$AD$11*C15 -> 0 | AE15: =$AE$11*C15 -> 0 | AF15: =$AF$11*C15 -> 0 | AG15: =$AG$11*C15 -> 0 | AH15: =$AH$11*C15 -> 0 | AI15: =$AI$11*C15 -> 0 | AJ15: =$AJ$11*C15 -> 0 | AK15: =$AK$11*C15 -> 0 | AL15: =$AL$11*C15 -> 0 | AM15: =$AM$11*C15 -> 0 | AN15: =$AN$11*C15 -> 0 | AO15: =$AO$11*C15 -> 0 | AP15: =$AP$11*C15 -> 0 | AQ15: =$AQ$11*C15 -> 0
A16: Arsenic | B16: 7440382 | C16: 1.6e-05 | D16: 0 | E16: 0 | F16: 0 | G16: 0 | H16: 0 | I16: 0 | J16: 0 | K16: 0 | L16: 0 | M16: 0 | N16: 0 | O16: 0 | P16: 0 | Q16: 0 | R16: 0 | S16: 0 | T16: 0 | U16: 0 | V16: 0 | W16: 0 | X16: 0 | Y16: 0 | Z16: 0 | AA16: 0 | AB16: =$AB$11*C16 -> 0 | AC16: 0 | AD16: 0 | AE16: 0 | AF16: =$AF$11*C16 -> 0 | AG16: =$AG$11*C16 -> 0 | AH16: 0 | AI16: 0 | AJ16: 0 | AK16: 0 | AL16: 0 | AM16: 0 | AN16: 0 | AO16: 0 | AP16: 0 | AQ16: 0
A17: Barium | B17: 7440393 | C17: 0.000469 | D17: 0 | E17: 0 | F17: 0 | G17: 0 | H17: 0 | I17: 0 | J17: 0 | K17: 0 | L17: 0 | M17: 0 | N17: 0 | O17: 0 | P17: 0 | Q17: 0 | R17: 0 | S17: 0 | T17: 0 | U17: 0 | V17: 0 | W17: 0 | X17: 0 | Y17: 0 | Z17: 0 | AA17: 0 | AB17: =$AB$11*C17 -> 0 | AC17: 0 | AD17: 0 | AE17: 0 | AF17: 0 | AG17: 0 | AH17: 0 | AI17: 0 | AJ17: 0 | AK17: 0 | AL17: 0 | AM17: 0 | AN17: 0 | AO17: 0 | AP17: 0 | AQ17: 0
A18: Bromine | B18: 7726956 | C18: 4.4e-05 | D18: 0 | E18: 0 | F18: 0 | G18: 0 | H18: 0 | I18: 0 | J18: 0 | K18: 0 | L18: 0 | M18: 0 | N18: 0 | O18: 0 | P18: 0 | Q18: 0 | R18: 0 | S18: 0 | T18: =$T$11*C18 -> 0 | U18: 0 | V18: 0 | W18: 0 | X18: 0 | Y18: 0 | Z18: 0 | AA18: 0 | AB18: =$AB$11*C18 -> 0 | AC18: 0 | AD18: 0 | AE18: 0 | AF18: 0 | AG18: 0 | AH18: 0 | AI18: 0 | AJ18: 0 | AK18: 0 | AL18: 0 | AM18: 0 | AN18: 0 | AO18: 0 | AP18: 0 | AQ18: 0
A19: Chromium | B19: 7440473 | C19: 1.4e-05 | D19: 0 | E19: 0 | F19: 0 | G19: 0 | H19: 0 | I19: 0 | J19: 0 | K19: 0 | L19: 0 | M19: 0 | N19: 0 | O19: 0 | P19: 0 | Q19: 0 | R19: 0 | S19: 0 | T19: =$T$11*C19 -> 0 | U19: 0 | V19: 0 | W19: 0 | X19: 0 | Y19: 0 | Z19: 0 | AA19: 0 | AB19: 0 | AC19: 0 | AD19: 0 | AE19: 0 | AF19: 0 | AG19: 0 | AH19: 0 | AI19: 0 | AJ19: 0 | AK19: 0 | AL19: 0 | AM19: 0 | AN19: 0 | AO19: 0 | AP19: 0 | AQ19: 0
A20: Copper | B20: 7440508 | C20: 0.000132 | D20: 0 | E20: 0 | F20: 0 | G20: 0 | H20: 0 | I20: 0 | J20: 0 | K20: 0 | L20: 0 | M20: 0 | N20: 0 | O20: 0 | P20: 0 | Q20: 0 | R20: 0 | S20: 0 | T20: 0 | U20: 0 | V20: 0 | W20: 0 | X20: 0 | Y20: 0 | Z20: 0 | AA20: 0 | AB20: 0 | AC20: 0 | AD20: 0 | AE20: 0 | AF20: 0 | AG20: 0 | AH20: 0 | AI20: 0 | AJ20: 0 | AK20: 0 | AL20: 0 | AM20: 0 | AN20: 0 | AO20: 0 | AP20: 0 | AQ20: 0
A21: Hexavalent Chromium** | B21: 18540299 | C21: 7e-07 | D21: 0 | E21: 0 | F21: 0 | G21: 0 | H21: 0 | I21: 0 | J21: 0 | K21: 0 | L21: 0 | M21: 0 | N21: 0 | O21: 0 | P21: 0 | Q21: 0 | R21: 0 | S21: 0 | T21: 0 | U21: 0 | V21: 0 | W21: 0 | X21: 0 | Y21: 0 | Z21: 0 | AA21: 0 | AB21: 0 | AC21: 0 | AD21: 0 | AE21: 0 | AF21: 0 | AG21: 0 | AH21: 0 | AI21: 0 | AJ21: 0 | AK21: 0 | AL21: 0 | AM21: 0 | AN21: 0 | AO21: 0 | AP21: 0 | AQ21: 0
A22: Lead | B22: 7439921 | C22: 3.5e-05 | D22: 0 | E22: 0 | F22: 0 | G22: 0 | H22: 0 | I22: 0 | J22: 0 | K22: 0 | L22: 0 | M22: 0 | N22: 0 | O22: 0 | P22: 0 | Q22: 0 | R22: 0 | S22: 0 | T22: 0 | U22: 0 | V22: 0 | W22: 0 | X22: 0 | Y22: 0 | Z22: 0 | AA22: 0 | AB22: 0 | AC22: 0 | AD22: 0 | AE22: 0 | AF22: 0 | AG22: 0 | AH22: 0 | AI22: 0 | AJ22: 0 | AK22: 0 | AL22: 0 | AM22: 0 | AN22: 0 | AO22: 0 | AP22: 0 | AQ22: 0
A23: Manganese | B23: 7439965 | C23: 0.000759 | D23: 0 | E23: 0 | F23: 0 | G23: 0 | H23: 0 | I23: 0 | J23: 0 | K23: 0 | L23: 0 | M23: 0 | N23: 0 | O23: 0 | P23: 0 | Q23: 0 | R23: 0 | S23: 0 | T23: 0 | U23: 0 | V23: 0 | W23: 0 | X23: 0 | Y23: 0 | Z23: 0 | AA23: 0 | AB23: 0 | AC23: 0 | AD23: 0 | AE23: 0 | AF23: 0 | AG23: 0 | AH23: 0 | AI23: 0 | AJ23: 0 | AK23: 0 | AL23: 0 | AM23: 0 | AN23: 0 | AO23: 0 | AP23: 0 | AQ23: =$AQ$11*C23 -> 0
A24: Mercury | B24: 7439976 | C24: 4e-06 | D24: 0 | E24: 0 | F24: 0 | G24: 0 | H24: 0 | I24: 0 | J24: 0 | K24: 0 | L24: 0 | M24: 0 | N24: 0 | O24: 0 | P24: 0 | Q24: 0 | R24: 0 | S24: 0 | T24: 0 | U24: 0 | V24: 0 | W24: 0 | X24: 0 | Y24: 0 | Z24: 0 | AA24: 0 | AB24: 0 | AC24: 0 | AD24: 0 | AE24: 0 | AF24: 0 | AG24: 0 | AH24: 0 | AI24: 0 | AJ24: 0 | AK24: 0 | AL24: 0 | AM24: 0 | AN24: 0 | AO24: 0 | AP24: 0 | AQ24: 0
A25: Nickel | B25: 7440020 | C25: 7e-06 | D25: 0 | E25: 0 | F25: 0 | G25: 0 | H25: 0 | I25: 0 | J25: 0 | K25: 0 | L25: 0 | M25: 0 | N25: 0 | O25: 0 | P25: 0 | Q25: 0 | R25: 0 | S25: 0 | T25: 0 | U25: 0 | V25: 0 | W25: 0 | X25: 0 | Y25: 0 | Z25: 0 | AA25: 0 | AB25: 0 | AC25: 0 | AD25: 0 | AE25: 0 | AF25: 0 | AG25: 0 | AH25: 0 | AI25: 0 | AJ25: 0 | AK25: 0 | AL25: 0 | AM25: 0 | AN25: 0 | AO25: 0 | AP25: 0 | AQ25: 0
A26: Phosphorus | B26: 7723140 | C26: 0.04014 | D26: 0 | E26: 0 | F26: 0 | G26: 0 | H26: 0 | I26: 0 | J26: 0 | K26: 0 | L26: 0 | M26: 0 | N26: 0 | O26: 0 | P26: 0 | Q26: 0 | R26: 0 | S26: 0 | T26: 0 | U26: 0 | V26: 0 | W26: 0 | X26: 0 | Y26: 0 | Z26: 0 | AA26: 0 | AB26: 0 | AC26: 0 | AD26: 0 | AE26: 0 | AF26: 0 | AG26: 0 | AH26: 0 | AI26: 0 | AJ26: 0 | AK26: 0 | AL26: 0 | AM26: 0 | AN26: 0 | AO26: 0 | AP26: 0 | AQ26: 0
A27: Selenium | B27: 7782492 | C27: 1e-06 | D27: 0 | E27: 0 | F27: 0 | G27: 0 | H27: 0 | I27: 0 | J27: 0 | K27: 0 | L27: 0 | M27: 0 | N27: 0 | O27: 0 | P27: 0 | Q27: 0 | R27: 0 | S27: 0 | T27: 0 | U27: 0 | V27: 0 | W27: 0 | X27: 0 | Y27: 0 | Z27: 0 | AA27: 0 | AB27: 0 | AC27: 0 | AD27: 0 | AE27: 0 | AF27: 0 | AG27: 0 | AH27: 0 | AI27: 0 | AJ27: 0 | AK27: 0 | AL27: 0 | AM27: 0 | AN27: 0 | AO27: 0 | AP27: 0 | AQ27: 0
A28: Sulfates | B28: 9960 | C28: 0.007283 | D28: 0 | E28: 0 | F28: 0 | G28: 0 | H28: 0 | I28: 0 | J28: 0 | K28: 0 | L28: 0 | M28: 0 | N28: 0 | O28: 0 | P28: 0 | Q28: 0 | R28: 0 | S28: 0 | T28: 0 | U28: 0 | V28: 0 | W28: 0 | X28: 0 | Y28: 0 | Z28: 0 | AA28: 0 | AB28: 0 | AC28: 0 | AD28: 0 | AE28: 0 | AF28: 0 | AG28: 0 | AH28: 0 | AI28: 0 | AJ28: 0 | AK28: 0 | AL28: 0 | AM28: 0 | AN28: 0 | AO28: 0 | AP28: 0 | AQ28: 0
A29: Vanadium | B29: 7440622 | C29: 3e-05 | D29: 0 | E29: 0 | F29: 0 | G29: 0 | H29: 0 | I29: 0 | J29: 0 | K29: 0 | L29: 0 | M29: 0 | N29: 0 | O29: 0 | P29: 0 | Q29: 0 | R29: 0 | S29: 0 | T29: 0 | U29: 0 | V29: 0 | W29: 0 | X29: 0 | Y29: 0 | Z29: 0 | AA29: 0 | AB29: 0 | AC29: 0 | AD29: 0 | AE29: 0 | AF29: 0 | AG29: 0 | AH29: 0 | AI29: 0 | AJ29: 0 | AK29: 0 | AL29: 0 | AM29: 0 | AN29: 0 | AO29: 0 | AP29: 0 | AQ29: 0
A30: Zinc | B30: 7440666 | C30: 0.000342 | D30: 0 | E30: 0 | F30: 0 | G30: 0 | H30: 0 | I30: 0 | J30: 0 | K30: 0 | L30: 0 | M30: 0 | N30: 0 | O30: 0 | P30: 0 | Q30: 0 | R30: 0 | S30: 0 | T30: =$T$11*C30 -> 0 | U30: 0 | V30: 0 | W30: 0 | X30: 0 | Y30: 0 | Z30: 0 | AA30: 0 | AB30: 0 | AC30: 0 | AD30: 0 | AE30: 0 | AF30: 0 | AG30: 0 | AH30: 0 | AI30: 0 | AJ30: 0 | AK30: 0 | AL30: 0 | AM30: 0 | AN30: 0 | AO30: 0 | AP30: 0 | AQ30: 0
A31: Ammonia | B31: 7664417 | D31: =IF('Cow Housing'!G29>0, 'Cow Housing'!G29, 0) -> 0 | E31: =IF('Cow Housing'!H29>0, 'Cow Housing'!H29, 0) -> 0 | F31: =IF('Cow Housing'!G30>0, 'Cow Housing'!G30, 0) -> 0 | G31: =IF('Cow Housing'!H30>0, 'Cow Housing'!H30, 0) -> 0 | H31: =IF('Cow Housing'!G31>0, 'Cow Housing'!G31, 0) -> 0 | I31: =IF('Cow Housing'!H31>0, 'Cow Housing'!H31, 0) -> 0 | J31: =IF('Cow Housing'!G32>0, 'Cow Housing'!G32, 0) -> 0 | K31: =IF('Cow Housing'!H32>0, 'Cow Housing'!H32, 0) -> 0 | L31: =IF('Cow Housing'!G33>0, 'Cow Housing'!G33, 0) -> 0 | M31: =IF('Cow Housing'!H33>0, 'Cow Housing'!H33, 0) -> 0 | N31: =IF('Cow Housing'!G34>0, 'Cow Housing'!G34, 0) -> 0 | O31: =IF('Cow Housing'!H34>0, 'Cow Housing'!H34, 0) -> 0 | P31: =IF('Cow Housing'!G35>0, 'Cow Housing'!G35, 0) -> 0 | Q31: =IF('Cow Housing'!H35>0, 'Cow Housing'!H35, 0) -> 0 | R31: =IF('Cow Housing'!G36>0, 'Cow Housing'!G36, 0) -> 0 | S31: =IF('Cow Housing'!H36>0, 'Cow Housing'!H36, 0) -> 0 | T31: =IF('Cow Housing'!G37>0, 'Cow Housing'!G37, 0) -> 0 | U31: =IF('Cow Housing'!H37>0, 'Cow Housing'!H37, 0) -> 0 | V31: =IF('Cow Housing'!G38>0, 'Cow Housing'!G38, 0) -> 0 | W31: =IF('Cow Housing'!H38>0, 'Cow Housing'!H38, 0) -> 0 | X31: =IF('Cow Housing'!G39>0, 'Cow Housing'!G39, 0) -> 0 | Y31: =IF('Cow Housing'!H39>0, 'Cow Housing'!H39, 0) -> 0 | Z31: =IF('Cow Housing'!G40>0, 'Cow Housing'!G40, 0) -> 0 | AA31: =IF('Cow Housing'!H40>0, 'Cow Housing'!H40, 0) -> 0 | AB31: =IF('Cow Housing'!$G41>0, 'Cow Housing'!$G41, 0) -> 0 | AC31: =IF('Cow Housing'!$H41>0, 'Cow Housing'!$H41, 0) -> 0 | AD31: =IF('Cow Housing'!$G42>0, 'Cow Housing'!$G42, 0) -> 0 | AE31: =IF('Cow Housing'!$H42>0, 'Cow Housing'!$H42, 0) -> 0 | AF31: =IF('Cow Housing'!$G43>0, 'Cow Housing'!$G43, 0) -> 0 | AG31: =IF('Cow Housing'!$H43>0, 'Cow Housing'!$H43, 0) -> 0 | AH31: =IF('Cow Housing'!$G44>0, 'Cow Housing'!$G44, 0) -> 0 | AI31: =IF('Cow Housing'!$H44>0, 'Cow Housing'!$H44, 0) -> 0 | AJ31: =IF('Cow Housing'!$G45>0, 'Cow Housing'!$G45, 0) -> 0 | AK31: =IF('Cow Housing'!$H45>0, 'Cow Housing'!$H45, 0) -> 0 | AL31: =IF('Cow Housing'!$G46>0, 'Cow Housing'!$G46, 0) -> 0 | AM31: =IF('Cow Housing'!$H46>0, 'Cow Housing'!$H46, 0) -> 0 | AN31: =IF('Cow Housing'!$G47>0, 'Cow Housing'!$G47, 0) -> 0 | AO31: =IF('Cow Housing'!$H47>0, 'Cow Housing'!$H47, 0) -> 0 | AP31: =IF('Cow Housing'!$G48>0, 'Cow Housing'!$G48, 0) -> 0 | AQ31: =IF('Cow Housing'!$H48>0, 'Cow Housing'!$H48, 0) -> 0
A33: References:
A34: * Emission factors are derived from a worst case composite of 1997 San Joaquin Valley soil profiles listed in EPA's speciation program.
A35: **Hexavalent chromium is assumed to be 5% of chromium.
A36: Pollutants required for toxic reporting. Current as of update date.
A38: Compounds Tested for but not detected | B38: CAS#
A42: Cadmium | B42: 7440439
A43: Cobalt | B43: 7440484

Sheet Livestock PM10 3
A1: PM10 based Agricultural Emissions from Operations generating Dust from Livestock Soil
A2: Use this spreadsheet when the emissions are from a Feedlot Soil sources or Cow Housing and the PM10 rates are known (e.g. Dairy operations). Ammonia and PM10 Emission rates linked to Cow Housing worksheet. No entries required on this worksheet. Zero and null entries will be highlighted in red after entry.
A3: Author or updater | B3: Matthew Cegielski
A4: Last Update | B4: 2018-09-24
A5: Facility: | B5: ='Cow Housing'!C4 -> Happy Cows
A6: ID#: | B6: ='Cow Housing'!C5 -> C-7777
A7: Project #: | B7: ='Cow Housing'!C6 -> C-3333
A8: Formula | D8: ='Cow Housing'!$B$49 -> 0 | F8: ='Cow Housing'!$B$50 -> 0 | H8: ='Cow Housing'!$B$51 -> 0 | J8: ='Cow Housing'!$B$52 -> 0 | L8: ='Cow Housing'!$B$53 -> 0 | N8: ='Cow Housing'!$B$54 -> 0 | P8: ='Cow Housing'!$B$55 -> 0 | R8: ='Cow Housing'!$B$56 -> 0 | T8: ='Cow Housing'!$B$57 -> 0 | V8: ='Cow Housing'!$B$58 -> 0 | X8: ='Cow Housing'!$B$59 -> 0 | Z8: ='Cow Housing'!$B$60 -> 0 | AB8: ='Cow Housing'!$B$61 -> 0 | AD8: ='Cow Housing'!$B$62 -> 0 | AF8: ='Cow Housing'!$B$63 -> 0 | AH8: ='Cow Housing'!$B$64 -> 0 | AJ8: ='Cow Housing'!$B$65 -> 0 | AL8: ='Cow Housing'!$B$66 -> 0 | AN8: ='Cow Housing'!$B$67 -> 0 | AP8: ='Cow Housing'!$B$68 -> 0
A9: Emission are calculated by the multiplication of the PM10 Rates and the Emission Factors.
D10: lb/hr | E10: lb/yr | F10: lb/hr | G10: lb/yr | H10: lb/hr | I10: lb/yr | J10: lb/hr | K10: lb/yr | L10: lb/hr | M10: lb/yr | N10: lb/hr | O10: lb/yr | P10: lb/hr | Q10: lb/yr | R10: lb/hr | S10: lb/yr | T10: lb/hr | U10: lb/yr | V10: lb/hr | W10: lb/yr | X10: lb/hr | Y10: lb/yr | Z10: lb/hr | AA10: lb/yr | AB10: lb/hr | AC10: lb/yr | AD10: lb/hr | AE10: lb/yr | AF10: lb/hr | AG10: lb/yr | AH10: lb/hr | AI10: lb/yr | AJ10: lb/hr | AK10: lb/yr | AL10: lb/hr | AM10: lb/yr | AN10: lb/hr | AO10: lb/yr | AP10: lb/hr | AQ10: lb/yr
A11: PM10 Emissions Rates | D11: =IF('Cow Housing'!I49>0,'Cow Housing'!I49,0) -> 0 | E11: =IF('Cow Housing'!J49>0,'Cow Housing'!J49,0) -> 0 | F11: =IF('Cow Housing'!I50>0,'Cow Housing'!I50,0) -> 0 | G11: =IF('Cow Housing'!J50>0,'Cow Housing'!J50,0) -> 0 | H11: =IF('Cow Housing'!I51>0,'Cow Housing'!I51,0) -> 0 | I11: =IF('Cow Housing'!J51>0,'Cow Housing'!J51,0) -> 0 | J11: =IF('Cow Housing'!I52>0,'Cow Housing'!I52,0) -> 0 | K11: =IF('Cow Housing'!J52>0,'Cow Housing'!J52,0) -> 0 | L11: =IF('Cow Housing'!I53>0,'Cow Housing'!I53,0) -> 0 | M11: =IF('Cow Housing'!J53>0,'Cow Housing'!J53,0) -> 0 | N11: =IF('Cow Housing'!I54>0,'Cow Housing'!I54,0) -> 0 | O11: =IF('Cow Housing'!J54>0,'Cow Housing'!J54,0) -> 0 | P11: =IF('Cow Housing'!I55>0,'Cow Housing'!I55,0) -> 0 | Q11: =IF('Cow Housing'!J55>0,'Cow Housing'!J55,0) -> 0 | R11: =IF('Cow Housing'!I56>0,'Cow Housing'!I56,0) -> 0 | S11: =IF('Cow Housing'!J56>0,'Cow Housing'!J56,0) -> 0 | T11: =IF('Cow Housing'!I57>0,'Cow Housing'!I57,0) -> 0 | U11: =IF('Cow Housing'!J57>0,'Cow Housing'!J57,0) -> 0 | V11: =IF('Cow Housing'!I58>0,'Cow Housing'!I58,0) -> 0 | W11: =IF('Cow Housing'!J58>0,'Cow Housing'!J58,0) -> 0 | X11: =IF('Cow Housing'!I59>0,'Cow Housing'!I59,0) -> 0 | Y11: =IF('Cow Housing'!J59>0,'Cow Housing'!J59,0) -> 0 | Z11: =IF('Cow Housing'!I60>0,'Cow Housing'!I60,0) -> 0 | AA11: =IF('Cow Housing'!J60>0,'Cow Housing'!J60,0) -> 0 | AB11: =IF('Cow Housing'!I61>0,'Cow Housing'!I61,0) -> 0 | AC11: =IF('Cow Housing'!J61>0,'Cow Housing'!J61,0) -> 0 | AD11: =IF('Cow Housing'!I62>0,'Cow Housing'!I62,0) -> 0 | AE11: =IF('Cow Housing'!J62>0,'Cow Housing'!J62,0) -> 0 | AF11: =IF('Cow Housing'!I63>0,'Cow Housing'!I63,0) -> 0 | AG11: =IF('Cow Housing'!J63>0,'Cow Housing'!J63,0) -> 0 | AH11: =IF('Cow Housing'!I64>0,'Cow Housing'!I64,0) -> 0 | AI11: =IF('Cow Housing'!J64>0,'Cow Housing'!J64,0) -> 0 | AJ11: =IF('Cow Housing'!I65>0,'Cow Housing'!I65,0) -> 0 | AK11: =IF('Cow Housing'!J65>0,'Cow Housing'!J65,0) -> 0 | AL11: =IF('Cow Housing'!I66>0,'Cow Housing'!I66,0) -> 0 | AM11: =IF('Cow Housing'!J66>0,'Cow Housing'!J66,0) -> 0 | AN11: =IF('Cow Housing'!I67>0,'Cow Housing'!I67,0) -> 0 | AO11: =IF('Cow Housing'!J67>0,'Cow Housing'!J67,0) -> 0 | AP11: =IF('Cow Housing'!I68>0,'Cow Housing'!I68,0) -> 0 | AQ11: =IF('Cow Housing'!J68>0,'Cow Housing'!J68,0) -> 0
A12: Substances | B12: CAS# | C12: Dust* lb/lb PM10 | D12: LB/HR | E12: LB/YR | F12: LB/HR | G12: LB/YR | H12: LB/HR | I12: LB/YR | J12: LB/HR | K12: LB/YR | L12: LB/HR | M12: LB/YR | N12: LB/HR | O12: LB/YR | P12: LB/HR | Q12: LB/YR | R12: LB/HR | S12: LB/YR | T12: LB/HR | U12: LB/YR | V12: LB/HR | W12: LB/YR | X12: LB/HR | Y12: LB/YR | Z12: LB/HR | AA12: LB/YR | AB12: LB/HR | AC12: LB/YR | AD12: LB/HR | AE12: LB/YR | AF12: LB/HR | AG12: LB/YR | AH12: LB/HR | AI12: LB/YR | AJ12: LB/HR | AK12: LB/YR | AL12: LB/HR | AM12: LB/YR | AN12: LB/HR | AO12: LB/YR | AP12: LB/HR | AQ12: LB/YR
A14: Aluminum | B14: 7429905 | C14: 0.046614 | D14: =$D$11*C14 -> 0 | E14: =$E$11*C14 -> 0 | F14: =$F$11*C14 -> 0 | G14: =$G$11*C14 -> 0 | H14: =$H$11*C14 -> 0 | I14: =$I$11*C14 -> 0 | J14: =$J$11*C14 -> 0 | K14: =$K$11*C14 -> 0 | L14: =$L$11*C14 -> 0 | M14: =$M$11*C14 -> 0 | N14: =$N$11*C14 -> 0 | O14: =$O$11*C14 -> 0 | P14: =$P$11*C14 -> 0 | Q14: =$Q$11*C14 -> 0 | R14: =$R$11*C14 -> 0 | S14: =$S$11*C14 -> 0 | T14: =$T$11*C14 -> 0 | U14: =$U$11*C14 -> 0 | V14: =$V$11*C14 -> 0 | W14: =$W$11*C14 -> 0 | X14: =$X$11*C14 -> 0 | Y14: =$Y$11*C14 -> 0 | Z14: =$Z$11*C14 -> 0 | AA14: =$AA$11*C14 -> 0 | AB14: =$AB$11*C14 -> 0 | AC14: =$AC$11*C14 -> 0 | AD14: =$AD$11*C14 -> 0 | AE14: =$AE$11*C14 -> 0 | AF14: =$AF$11*C14 -> 0 | AG14: =$AG$11*C14 -> 0 | AH14: =$AH$11*C14 -> 0 | AI14: =$AI$11*C14 -> 0 | AJ14: =$AJ$11*C14 -> 0 | AK14: =$AK$11*C14 -> 0 | AL14: =$AL$11*C14 -> 0 | AM14: =$AM$11*C14 -> 0 | AN14: =$AN$11*C14 -> 0 | AO14: =$AO$11*C14 -> 0 | AP14: =$AP$11*C14 -> 0 | AQ14: =$AQ$11*C14 -> 0
A15: Antimony | B15: 7440360 | C15: 1.9e-05 | D15: =$D$11*C15 -> 0 | E15: =$E$11*C15 -> 0 | F15: =$F$11*C15 -> 0 | G15: =$G$11*C15 -> 0 | H15: =$H$11*C15 -> 0 | I15: =$I$11*C15 -> 0 | J15: =$J$11*C15 -> 0 | K15: =$K$11*C15 -> 0 | L15: =$L$11*C15 -> 0 | M15: =$M$11*C15 -> 0 | N15: =$N$11*C15 -> 0 | O15: =$O$11*C15 -> 0 | P15: =$P$11*C15 -> 0 | Q15: =$Q$11*C15 -> 0 | R15: =$R$11*C15 -> 0 | S15: =$S$11*C15 -> 0 | T15: =$T$11*C15 -> 0 | U15: =$U$11*C15 -> 0 | V15: =$V$11*C15 -> 0 | W15: =$W$11*C15 -> 0 | X15: =$X$11*C15 -> 0 | Y15: =$Y$11*C15 -> 0 | Z15: =$Z$11*C15 -> 0 | AA15: =$AA$11*C15 -> 0 | AB15: =$AB$11*C15 -> 0 | AC15: =$AC$11*C15 -> 0 | AD15: =$AD$11*C15 -> 0 | AE15: =$AE$11*C15 -> 0 | AF15: =$AF$11*C15 -> 0 | AG15: =$AG$11*C15 -> 0 | AH15: =$AH$11*C15 -> 0 | AI15: =$AI$11*C15 -> 0 | AJ15: =$AJ$11*C15 -> 0 | AK15: =$AK$11*C15 -> 0 | AL15: =$AL$11*C15 -> 0 | AM15: =$AM$11*C15 -> 0 | AN15: =$AN$11*C15 -> 0 | AO15: =$AO$11*C15 -> 0 | AP15: =$AP$11*C15 -> 0 | AQ15: =$AQ$11*C15 -> 0
A16: Arsenic | B16: 7440382 | C16: 1.6e-05 | D16: 0 | E16: 0 | F16: 0 | G16: 0 | H16: 0 | I16: 0 | J16: 0 | K16: 0 | L16: 0 | M16: 0 | N16: 0 | O16: 0 | P16: 0 | Q16: 0 | R16: 0 | S16: 0 | T16: 0 | U16: 0 | V16: 0 | W16: 0 | X16: 0 | Y16: 0 | Z16: 0 | AA16: 0 | AB16: =$AB$11*C16 -> 0 | AC16: 0 | AD16: 0 | AE16: 0 | AF16: =$AF$11*C16 -> 0 | AG16: =$AG$11*C16 -> 0 | AH16: 0 | AI16: 0 | AJ16: 0 | AK16: 0 | AL16: 0 | AM16: 0 | AN16: 0 | AO16: 0 | AP16: 0 | AQ16: 0
A17: Barium | B17: 7440393 | C17: 0.000469 | D17: 0 | E17: 0 | F17: 0 | G17: 0 | H17: 0 | I17: 0 | J17: 0 | K17: 0 | L17: 0 | M17: 0 | N17: 0 | O17: 0 | P17: 0 | Q17: 0 | R17: 0 | S17: 0 | T17: 0 | U17: 0 | V17: 0 | W17: 0 | X17: 0 | Y17: 0 | Z17: 0 | AA17: 0 | AB17: =$AB$11*C17 -> 0 | AC17: 0 | AD17: 0 | AE17: 0 | AF17: 0 | AG17: 0 | AH17: 0 | AI17: 0 | AJ17: 0 | AK17: 0 | AL17: 0 | AM17: 0 | AN17: 0 | AO17: 0 | AP17: 0 | AQ17: 0
A18: Bromine | B18: 7726956 | C18: 4.4e-05 | D18: 0 | E18: 0 | F18: 0 | G18: 0 | H18: 0 | I18: 0 | J18: 0 | K18: 0 | L18: 0 | M18: 0 | N18: 0 | O18: 0 | P18: 0 | Q18: 0 | R18: 0 | S18: 0 | T18: =$T$11*C18 -> 0 | U18: 0 | V18: 0 | W18: 0 | X18: 0 | Y18: 0 | Z18: 0 | AA18: 0 | AB18: =$AB$11*C18 -> 0 | AC18: 0 | AD18: 0 | AE18: 0 | AF18: 0 | AG18: 0 | AH18: 0 | AI18: 0 | AJ18: 0 | AK18: 0 | AL18: 0 | AM18: 0 | AN18: 0 | AO18: 0 | AP18: 0 | AQ18: 0
A19: Chromium | B19: 7440473 | C19: 1.4e-05 | D19: 0 | E19: 0 | F19: 0 | G19: 0 | H19: 0 | I19: 0 | J19: 0 | K19: 0 | L19: 0 | M19: 0 | N19: 0 | O19: 0 | P19: 0 | Q19: 0 | R19: 0 | S19: 0 | T19: =$T$11*C19 -> 0 | U19: 0 | V19: 0 | W19: 0 | X19: 0 | Y19: 0 | Z19: 0 | AA19: 0 | AB19: 0 | AC19: 0 | AD19: 0 | AE19: 0 | AF19: 0 | AG19: 0 | AH19: 0 | AI19: 0 | AJ19: 0 | AK19: 0 | AL19: 0 | AM19: 0 | AN19: 0 | AO19: 0 | AP19: 0 | AQ19: 0
A20: Copper | B20: 7440508 | C20: 0.000132 | D20: 0 | E20: 0 | F20: 0 | G20: 0 | H20: 0 | I20: 0 | J20: 0 | K20: 0 | L20: 0 | M20: 0 | N20: 0 | O20: 0 | P20: 0 | Q20: 0 | R20: 0 | S20: 0 | T20: 0 | U20: 0 | V20: 0 | W20: 0 | X20: 0 | Y20: 0 | Z20: 0 | AA20: 0 | AB20: 0 | AC20: 0 | AD20: 0 | AE20: 0 | AF20: 0 | AG20: 0 | AH20: 0 | AI20: 0 | AJ20: 0 | AK20: 0 | AL20: 0 | AM20: 0 | AN20: 0 | AO20: 0 | AP20: 0 | AQ20: 0
A21: Hexavalent Chromium** | B21: 18540299 | C21: 7e-07 | D21: 0 | E21: 0 | F21: 0 | G21: 0 | H21: 0 | I21: 0 | J21: 0 | K21: 0 | L21: 0 | M21: 0 | N21: 0 | O21: 0 | P21: 0 | Q21: 0 | R21: 0 | S21: 0 | T21: 0 | U21: 0 | V21: 0 | W21: 0 | X21: 0 | Y21: 0 | Z21: 0 | AA21: 0 | AB21: 0 | AC21: 0 | AD21: 0 | AE21: 0 | AF21: 0 | AG21: 0 | AH21: 0 | AI21: 0 | AJ21: 0 | AK21: 0 | AL21: 0 | AM21: 0 | AN21: 0 | AO21: 0 | AP21: 0 | AQ21: 0
A22: Lead | B22: 7439921 | C22: 3.5e-05 | D22: 0 | E22: 0 | F22: 0 | G22: 0 | H22: 0 | I22: 0 | J22: 0 | K22: 0 | L22: 0 | M22: 0 | N22: 0 | O22: 0 | P22: 0 | Q22: 0 | R22: 0 | S22: 0 | T22: 0 | U22: 0 | V22: 0 | W22: 0 | X22: 0 | Y22: 0 | Z22: 0 | AA22: 0 | AB22: 0 | AC22: 0 | AD22: 0 | AE22: 0 | AF22: 0 | AG22: 0 | AH22: 0 | AI22: 0 | AJ22: 0 | AK22: 0 | AL22: 0 | AM22: 0 | AN22: 0 | AO22: 0 | AP22: 0 | AQ22: 0
A23: Manganese | B23: 7439965 | C23: 0.000759 | D23: 0 | E23: 0 | F23: 0 | G23: 0 | H23: 0 | I23: 0 | J23: 0 | K23: 0 | L23: 0 | M23: 0 | N23: 0 | O23: 0 | P23: 0 | Q23: 0 | R23: 0 | S23: 0 | T23: 0 | U23: 0 | V23: 0 | W23: 0 | X23: 0 | Y23: 0 | Z23: 0 | AA23: 0 | AB23: 0 | AC23: 0 | AD23: 0 | AE23: 0 | AF23: 0 | AG23: 0 | AH23: 0 | AI23: 0 | AJ23: 0 | AK23: 0 | AL23: 0 | AM23: 0 | AN23: 0 | AO23: 0 | AP23: 0 | AQ23: =$AQ$11*C23 -> 0
A24: Mercury | B24: 7439976 | C24: 4e-06 | D24: 0 | E24: 0 | F24: 0 | G24: 0 | H24: 0 | I24: 0 | J24: 0 | K24: 0 | L24: 0 | M24: 0 | N24: 0 | O24: 0 | P24: 0 | Q24: 0 | R24: 0 | S24: 0 | T24: 0 | U24: 0 | V24: 0 | W24: 0 | X24: 0 | Y24: 0 | Z24: 0 | AA24: 0 | AB24: 0 | AC24: 0 | AD24: 0 | AE24: 0 | AF24: 0 | AG24: 0 | AH24: 0 | AI24: 0 | AJ24: 0 | AK24: 0 | AL24: 0 | AM24: 0 | AN24: 0 | AO24: 0 | AP24: 0 | AQ24: 0
A25: Nickel | B25: 7440020 | C25: 7e-06 | D25: 0 | E25: 0 | F25: 0 | G25: 0 | H25: 0 | I25: 0 | J25: 0 | K25: 0 | L25: 0 | M25: 0 | N25: 0 | O25: 0 | P25: 0 | Q25: 0 | R25: 0 | S25: 0 | T25: 0 | U25: 0 | V25: 0 | W25: 0 | X25: 0 | Y25: 0 | Z25: 0 | AA25: 0 | AB25: 0 | AC25: 0 | AD25: 0 | AE25: 0 | AF25: 0 | AG25: 0 | AH25: 0 | AI25: 0 | AJ25: 0 | AK25: 0 | AL25: 0 | AM25: 0 | AN25: 0 | AO25: 0 | AP25: 0 | AQ25: 0
A26: Phosphorus | B26: 7723140 | C26: 0.04014 | D26: 0 | E26: 0 | F26: 0 | G26: 0 | H26: 0 | I26: 0 | J26: 0 | K26: 0 | L26: 0 | M26: 0 | N26: 0 | O26: 0 | P26: 0 | Q26: 0 | R26: 0 | S26: 0 | T26: 0 | U26: 0 | V26: 0 | W26: 0 | X26: 0 | Y26: 0 | Z26: 0 | AA26: 0 | AB26: 0 | AC26: 0 | AD26: 0 | AE26: 0 | AF26: 0 | AG26: 0 | AH26: 0 | AI26: 0 | AJ26: 0 | AK26: 0 | AL26: 0 | AM26: 0 | AN26: 0 | AO26: 0 | AP26: 0 | AQ26: 0
A27: Selenium | B27: 7782492 | C27: 1e-06 | D27: 0 | E27: 0 | F27: 0 | G27: 0 | H27: 0 | I27: 0 | J27: 0 | K27: 0 | L27: 0 | M27: 0 | N27: 0 | O27: 0 | P27: 0 | Q27: 0 | R27: 0 | S27: 0 | T27: 0 | U27: 0 | V27: 0 | W27: 0 | X27: 0 | Y27: 0 | Z27: 0 | AA27: 0 | AB27: 0 | AC27: 0 | AD27: 0 | AE27: 0 | AF27: 0 | AG27: 0 | AH27: 0 | AI27: 0 | AJ27: 0 | AK27: 0 | AL27: 0 | AM27: 0 | AN27: 0 | AO27: 0 | AP27: 0 | AQ27: 0
A28: Sulfates | B28: 9960 | C28: 0.007283 | D28: 0 | E28: 0 | F28: 0 | G28: 0 | H28: 0 | I28: 0 | J28: 0 | K28: 0 | L28: 0 | M28: 0 | N28: 0 | O28: 0 | P28: 0 | Q28: 0 | R28: 0 | S28: 0 | T28: 0 | U28: 0 | V28: 0 | W28: 0 | X28: 0 | Y28: 0 | Z28: 0 | AA28: 0 | AB28: 0 | AC28: 0 | AD28: 0 | AE28: 0 | AF28: 0 | AG28: 0 | AH28: 0 | AI28: 0 | AJ28: 0 | AK28: 0 | AL28: 0 | AM28: 0 | AN28: 0 | AO28: 0 | AP28: 0 | AQ28: 0
A29: Vanadium | B29: 7440622 | C29: 3e-05 | D29: 0 | E29: 0 | F29: 0 | G29: 0 | H29: 0 | I29: 0 | J29: 0 | K29: 0 | L29: 0 | M29: 0 | N29: 0 | O29: 0 | P29: 0 | Q29: 0 | R29: 0 | S29: 0 | T29: 0 | U29: 0 | V29: 0 | W29: 0 | X29: 0 | Y29: 0 | Z29: 0 | AA29: 0 | AB29: 0 | AC29: 0 | AD29: 0 | AE29: 0 | AF29: 0 | AG29: 0 | AH29: 0 | AI29: 0 | AJ29: 0 | AK29: 0 | AL29: 0 | AM29: 0 | AN29: 0 | AO29: 0 | AP29: 0 | AQ29: 0
A30: Zinc | B30: 7440666 | C30: 0.000342 | D30: 0 | E30: 0 | F30: 0 | G30: 0 | H30: 0 | I30: 0 | J30: 0 | K30: 0 | L30: 0 | M30: 0 | N30: 0 | O30: 0 | P30: 0 | Q30: 0 | R30: 0 | S30: 0 | T30: =$T$11*C30 -> 0 | U30: 0 | V30: 0 | W30: 0 | X30: 0 | Y30: 0 | Z30: 0 | AA30: 0 | AB30: 0 | AC30: 0 | AD30: 0 | AE30: 0 | AF30: 0 | AG30: 0 | AH30: 0 | AI30: 0 | AJ30: 0 | AK30: 0 | AL30: 0 | AM30: 0 | AN30: 0 | AO30: 0 | AP30: 0 | AQ30: 0
A31: Ammonia | B31: 7664417 | D31: =IF('Cow Housing'!G49>0, 'Cow Housing'!G49, 0) -> 0 | E31: =IF('Cow Housing'!H49>0, 'Cow Housing'!H49, 0) -> 0 | F31: =IF('Cow Housing'!G50>0, 'Cow Housing'!G50, 0) -> 0 | G31: =IF('Cow Housing'!H50>0, 'Cow Housing'!H50, 0) -> 0 | H31: =IF('Cow Housing'!G51>0, 'Cow Housing'!G51, 0) -> 0 | I31: =IF('Cow Housing'!H51>0, 'Cow Housing'!H51, 0) -> 0 | J31: =IF('Cow Housing'!G52>0, 'Cow Housing'!G52, 0) -> 0 | K31: =IF('Cow Housing'!H52>0, 'Cow Housing'!H52, 0) -> 0 | L31: =IF('Cow Housing'!G53>0, 'Cow Housing'!G53, 0) -> 0 | M31: =IF('Cow Housing'!H53>0, 'Cow Housing'!H53, 0) -> 0 | N31: =IF('Cow Housing'!G54>0, 'Cow Housing'!G54, 0) -> 0 | O31: =IF('Cow Housing'!H54>0, 'Cow Housing'!H54, 0) -> 0 | P31: =IF('Cow Housing'!G55>0, 'Cow Housing'!G55, 0) -> 0 | Q31: =IF('Cow Housing'!H55>0, 'Cow Housing'!H55, 0) -> 0 | R31: =IF('Cow Housing'!G56>0, 'Cow Housing'!G56, 0) -> 0 | S31: =IF('Cow Housing'!H56>0, 'Cow Housing'!H56, 0) -> 0 | T31: =IF('Cow Housing'!G57>0, 'Cow Housing'!G57, 0) -> 0 | U31: =IF('Cow Housing'!H57>0, 'Cow Housing'!H57, 0) -> 0 | V31: =IF('Cow Housing'!G58>0, 'Cow Housing'!G58, 0) -> 0 | W31: =IF('Cow Housing'!H58>0, 'Cow Housing'!H58, 0) -> 0 | X31: =IF('Cow Housing'!G59>0, 'Cow Housing'!G59, 0) -> 0 | Y31: =IF('Cow Housing'!H59>0, 'Cow Housing'!H59, 0) -> 0 | Z31: =IF('Cow Housing'!G60>0, 'Cow Housing'!G60, 0) -> 0 | AA31: =IF('Cow Housing'!H60>0, 'Cow Housing'!H60, 0) -> 0 | AB31: =IF('Cow Housing'!$G61>0, 'Cow Housing'!$G61, 0) -> 0 | AC31: =IF('Cow Housing'!$H61>0, 'Cow Housing'!$H61, 0) -> 0 | AD31: =IF('Cow Housing'!$G62>0, 'Cow Housing'!$G62, 0) -> 0 | AE31: =IF('Cow Housing'!$H62>0, 'Cow Housing'!$H62, 0) -> 0 | AF31: =IF('Cow Housing'!$G63>0, 'Cow Housing'!$G63, 0) -> 0 | AG31: =IF('Cow Housing'!$H63>0, 'Cow Housing'!$H63, 0) -> 0 | AH31: =IF('Cow Housing'!$G64>0, 'Cow Housing'!$G64, 0) -> 0 | AI31: =IF('Cow Housing'!$H64>0, 'Cow Housing'!$H64, 0) -> 0 | AJ31: =IF('Cow Housing'!$G65>0, 'Cow Housing'!$G65, 0) -> 0 | AK31: =IF('Cow Housing'!$H65>0, 'Cow Housing'!$H65, 0) -> 0 | AL31: =IF('Cow Housing'!$G66>0, 'Cow Housing'!$G66, 0) -> 0 | AM31: =IF('Cow Housing'!$H66>0, 'Cow Housing'!$H66, 0) -> 0 | AN31: =IF('Cow Housing'!$G67>0, 'Cow Housing'!$G67, 0) -> 0 | AO31: =IF('Cow Housing'!$H67>0, 'Cow Housing'!$H67, 0) -> 0 | AP31: =IF('Cow Housing'!$G68>0, 'Cow Housing'!$G68, 0) -> 0 | AQ31: =IF('Cow Housing'!$H68>0, 'Cow Housing'!$H68, 0) -> 0
A33: References:
A34: * Emission factors are derived from a worst case composite of 1997 San Joaquin Valley soil profiles listed in EPA's speciation program.
A35: **Hexavalent chromium is assumed to be 5% of chromium.
A36: Pollutants required for toxic reporting. Current as of update date.
A38: Compounds Tested for but not detected | B38: CAS#
A42: Cadmium | B42: 7440439
A43: Cobalt | B43: 7440484

Sheet Livestock PM10 4
A1: PM10 based Agricultural Emissions from Operations generating Dust from Livestock Soil
A2: Use this spreadsheet when the emissions are from a Feedlot Soil sources or Cow Housing and the PM10 rates are known (e.g. Dairy operations). Ammonia and PM10 Emission rates linked to Cow Housing worksheet. No entries required on this worksheet. Zero and null entries will be highlighted in red after entry.
A3: Author or updater | B3: Matthew Cegielski
A4: Last Update | B4: 2018-09-24
A5: Facility: | B5: ='Cow Housing'!C4 -> Happy Cows
A6: ID#: | B6: ='Cow Housing'!C5 -> C-7777
A7: Project #: | B7: ='Cow Housing'!C6 -> C-3333
A8: Formula | D8: ='Cow Housing'!$B$69 -> 0 | F8: ='Cow Housing'!$B$70 -> 0 | H8: ='Cow Housing'!$B$71 -> 0 | J8: ='Cow Housing'!$B$72 -> 0 | L8: ='Cow Housing'!$B$73 -> 0 | N8: ='Cow Housing'!$B$74 -> 0 | P8: ='Cow Housing'!$B$75 -> 0 | R8: ='Cow Housing'!$B$76 -> 0 | T8: ='Cow Housing'!$B$77 -> 0 | V8: ='Cow Housing'!$B$78 -> 0 | X8: ='Cow Housing'!$B$79 -> 0 | Z8: ='Cow Housing'!$B$80 -> 0 | AB8: ='Cow Housing'!$B$81 -> 0 | AD8: ='Cow Housing'!$B$82 -> 0 | AF8: ='Cow Housing'!$B$83 -> 0
A9: Emission are calculated by the multiplication of the PM10 Rates and the Emission Factors.
D10: lb/hr | E10: lb/yr | F10: lb/hr | G10: lb/yr | H10: lb/hr | I10: lb/yr | J10: lb/hr | K10: lb/yr | L10: lb/hr | M10: lb/yr | N10: lb/hr | O10: lb/yr | P10: lb/hr | Q10: lb/yr | R10: lb/hr | S10: lb/yr | T10: lb/hr | U10: lb/yr | V10: lb/hr | W10: lb/yr | X10: lb/hr | Y10: lb/yr | Z10: lb/hr | AA10: lb/yr | AB10: lb/hr | AC10: lb/yr | AD10: lb/hr | AE10: lb/yr | AF10: lb/hr | AG10: lb/yr
A11: PM10 Emissions Rates | D11: =IF('Cow Housing'!I69>0,'Cow Housing'!I69,0) -> 0 | E11: =IF('Cow Housing'!J69>0,'Cow Housing'!J69,0) -> 0 | F11: =IF('Cow Housing'!I70>0,'Cow Housing'!I70,0) -> 0 | G11: =IF('Cow Housing'!J70>0,'Cow Housing'!J70,0) -> 0 | H11: =IF('Cow Housing'!I71>0,'Cow Housing'!I71,0) -> 0 | I11: =IF('Cow Housing'!J71>0,'Cow Housing'!J71,0) -> 0 | J11: =IF('Cow Housing'!I72>0,'Cow Housing'!I72,0) -> 0 | K11: =IF('Cow Housing'!J72>0,'Cow Housing'!J72,0) -> 0 | L11: =IF('Cow Housing'!I73>0,'Cow Housing'!I73,0) -> 0 | M11: =IF('Cow Housing'!J73>0,'Cow Housing'!J73,0) -> 0 | N11: =IF('Cow Housing'!I74>0,'Cow Housing'!I74,0) -> 0 | O11: =IF('Cow Housing'!J74>0,'Cow Housing'!J74,0) -> 0 | P11: =IF('Cow Housing'!I75>0,'Cow Housing'!I75,0) -> 0 | Q11: =IF('Cow Housing'!J75>0,'Cow Housing'!J75,0) -> 0 | R11: =IF('Cow Housing'!I76>0,'Cow Housing'!I76,0) -> 0 | S11: =IF('Cow Housing'!J76>0,'Cow Housing'!J76,0) -> 0 | T11: =IF('Cow Housing'!I77>0,'Cow Housing'!I77,0) -> 0 | U11: =IF('Cow Housing'!J77>0,'Cow Housing'!J77,0) -> 0 | V11: =IF('Cow Housing'!I78>0,'Cow Housing'!I78,0) -> 0 | W11: =IF('Cow Housing'!J78>0,'Cow Housing'!J78,0) -> 0 | X11: =IF('Cow Housing'!I79>0,'Cow Housing'!I79,0) -> 0 | Y11: =IF('Cow Housing'!J79>0,'Cow Housing'!J79,0) -> 0 | Z11: =IF('Cow Housing'!I80>0,'Cow Housing'!I80,0) -> 0 | AA11: =IF('Cow Housing'!J80>0,'Cow Housing'!J80,0) -> 0 | AB11: =IF('Cow Housing'!I81>0,'Cow Housing'!I81,0) -> 0 | AC11: =IF('Cow Housing'!J81>0,'Cow Housing'!J81,0) -> 0 | AD11: =IF('Cow Housing'!I82>0,'Cow Housing'!I82,0) -> 0 | AE11: =IF('Cow Housing'!J82>0,'Cow Housing'!J82,0) -> 0 | AF11: =IF('Cow Housing'!I83>0,'Cow Housing'!I83,0) -> 0 | AG11: =IF('Cow Housing'!J83>0,'Cow Housing'!J83,0) -> 0
A12: Substances | B12: CAS# | C12: Dust* lb/lb PM10 | D12: LB/HR | E12: LB/YR | F12: LB/HR | G12: LB/YR | H12: LB/HR | I12: LB/YR | J12: LB/HR | K12: LB/YR | L12: LB/HR | M12: LB/YR | N12: LB/HR | O12: LB/YR | P12: LB/HR | Q12: LB/YR | R12: LB/HR | S12: LB/YR | T12: LB/HR | U12: LB/YR | V12: LB/HR | W12: LB/YR | X12: LB/HR | Y12: LB/YR | Z12: LB/HR | AA12: LB/YR | AB12: LB/HR | AC12: LB/YR | AD12: LB/HR | AE12: LB/YR | AF12: LB/HR | AG12: LB/YR
A14: Aluminum | B14: 7429905 | C14: 0.046614 | D14: =$D$11*C14 -> 0 | E14: =$E$11*C14 -> 0 | F14: =$F$11*C14 -> 0 | G14: =$G$11*C14 -> 0 | H14: =$H$11*C14 -> 0 | I14: =$I$11*C14 -> 0 | J14: =$J$11*C14 -> 0 | K14: =$K$11*C14 -> 0 | L14: =$L$11*C14 -> 0 | M14: =$M$11*C14 -> 0 | N14: =$N$11*C14 -> 0 | O14: =$O$11*C14 -> 0 | P14: =$P$11*C14 -> 0 | Q14: =$Q$11*C14 -> 0 | R14: =$R$11*C14 -> 0 | S14: =$S$11*C14 -> 0 | T14: =$T$11*C14 -> 0 | U14: =$U$11*C14 -> 0 | V14: =$V$11*C14 -> 0 | W14: =$W$11*C14 -> 0 | X14: =$X$11*C14 -> 0 | Y14: =$Y$11*C14 -> 0 | Z14: =$Z$11*C14 -> 0 | AA14: =$AA$11*C14 -> 0 | AB14: =$AB$11*C14 -> 0 | AC14: =$AC$11*C14 -> 0 | AD14: =$AD$11*C14 -> 0 | AE14: =$AE$11*C14 -> 0 | AF14: =$AF$11*C14 -> 0 | AG14: =$AG$11*C14 -> 0
A15: Antimony | B15: 7440360 | C15: 1.9e-05 | D15: =$D$11*C15 -> 0 | E15: =$E$11*C15 -> 0 | F15: =$F$11*C15 -> 0 | G15: =$G$11*C15 -> 0 | H15: =$H$11*C15 -> 0 | I15: =$I$11*C15 -> 0 | J15: =$J$11*C15 -> 0 | K15: =$K$11*C15 -> 0 | L15: =$L$11*C15 -> 0 | M15: =$M$11*C15 -> 0 | N15: =$N$11*C15 -> 0 | O15: =$O$11*C15 -> 0 | P15: =$P$11*C15 -> 0 | Q15: =$Q$11*C15 -> 0 | R15: =$R$11*C15 -> 0 | S15: =$S$11*C15 -> 0 | T15: =$T$11*C15 -> 0 | U15: =$U$11*C15 -> 0 | V15: =$V$11*C15 -> 0 | W15: =$W$11*C15 -> 0 | X15: =$X$11*C15 -> 0 | Y15: =$Y$11*C15 -> 0 | Z15: =$Z$11*C15 -> 0 | AA15: =$AA$11*C15 -> 0 | AB15: =$AB$11*C15 -> 0 | AC15: =$AC$11*C15 -> 0 | AD15: =$AD$11*C15 -> 0 | AE15: =$AE$11*C15 -> 0 | AF15: =$AF$11*C15 -> 0 | AG15: =$AG$11*C15 -> 0
A16: Arsenic | B16: 7440382 | C16: 1.6e-05 | D16: 0 | E16: 0 | F16: 0 | G16: 0 | H16: 0 | I16: 0 | J16: 0 | K16: 0 | L16: 0 | M16: 0 | N16: 0 | O16: 0 | P16: 0 | Q16: 0 | R16: 0 | S16: 0 | T16: 0 | U16: 0 | V16: 0 | W16: 0 | X16: 0 | Y16: 0 | Z16: 0 | AA16: 0 | AB16: =$AB$11*C16 -> 0 | AC16: 0 | AD16: 0 | AE16: 0 | AF16: =$AF$11*C16 -> 0 | AG16: =$AG$11*C16 -> 0
A17: Barium | B17: 7440393 | C17: 0.000469 | D17: 0 | E17: 0 | F17: 0 | G17: 0 | H17: 0 | I17: 0 | J17: 0 | K17: 0 | L17: 0 | M17: 0 | N17: 0 | O17: 0 | P17: 0 | Q17: 0 | R17: 0 | S17: 0 | T17: 0 | U17: 0 | V17: 0 | W17: 0 | X17: 0 | Y17: 0 | Z17: 0 | AA17: 0 | AB17: =$AB$11*C17 -> 0 | AC17: 0 | AD17: 0 | AE17: 0 | AF17: 0 | AG17: 0
A18: Bromine | B18: 7726956 | C18: 4.4e-05 | D18: 0 | E18: 0 | F18: 0 | G18: 0 | H18: 0 | I18: 0 | J18: 0 | K18: 0 | L18: 0 | M18: 0 | N18: 0 | O18: 0 | P18: 0 | Q18: 0 | R18: 0 | S18: 0 | T18: =$T$11*C18 -> 0 | U18: 0 | V18: 0 | W18: 0 | X18: 0 | Y18: 0 | Z18: 0 | AA18: 0 | AB18: =$AB$11*C18 -> 0 | AC18: 0 | AD18: 0 | AE18: 0 | AF18: 0 | AG18: 0
A19: Chromium | B19: 7440473 | C19: 1.4e-05 | D19: 0 | E19: 0 | F19: 0 | G19: 0 | H19: 0 | I19: 0 | J19: 0 | K19: 0 | L19: 0 | M19: 0 | N19: 0 | O19: 0 | P19: 0 | Q19: 0 | R19: 0 | S19: 0 | T19: =$T$11*C19 -> 0 | U19: 0 | V19: 0 | W19: 0 | X19: 0 | Y19: 0 | Z19: 0 | AA19: 0 | AB19: 0 | AC19: 0 | AD19: 0 | AE19: 0 | AF19: 0 | AG19: 0
A20: Copper | B20: 7440508 | C20: 0.000132 | D20: 0 | E20: 0 | F20: 0 | G20: 0 | H20: 0 | I20: 0 | J20: 0 | K20: 0 | L20: 0 | M20: 0 | N20: 0 | O20: 0 | P20: 0 | Q20: 0 | R20: 0 | S20: 0 | T20: 0 | U20: 0 | V20: 0 | W20: 0 | X20: 0 | Y20: 0 | Z20: 0 | AA20: 0 | AB20: 0 | AC20: 0 | AD20: 0 | AE20: 0 | AF20: 0 | AG20: 0
A21: Hexavalent Chromium** | B21: 18540299 | C21: 7e-07 | D21: 0 | E21: 0 | F21: 0 | G21: 0 | H21: 0 | I21: 0 | J21: 0 | K21: 0 | L21: 0 | M21: 0 | N21: 0 | O21: 0 | P21: 0 | Q21: 0 | R21: 0 | S21: 0 | T21: 0 | U21: 0 | V21: 0 | W21: 0 | X21: 0 | Y21: 0 | Z21: 0 | AA21: 0 | AB21: 0 | AC21: 0 | AD21: 0 | AE21: 0 | AF21: 0 | AG21: 0
A22: Lead | B22: 7439921 | C22: 3.5e-05 | D22: 0 | E22: 0 | F22: 0 | G22: 0 | H22: 0 | I22: 0 | J22: 0 | K22: 0 | L22: 0 | M22: 0 | N22: 0 | O22: 0 | P22: 0 | Q22: 0 | R22: 0 | S22: 0 | T22: 0 | U22: 0 | V22: 0 | W22: 0 | X22: 0 | Y22: 0 | Z22: 0 | AA22: 0 | AB22: 0 | AC22: 0 | AD22: 0 | AE22: 0 | AF22: 0 | AG22: 0
A23: Manganese | B23: 7439965 | C23: 0.000759 | D23: 0 | E23: 0 | F23: 0 | G23: 0 | H23: 0 | I23: 0 | J23: 0 | K23: 0 | L23: 0 | M23: 0 | N23: 0 | O23: 0 | P23: 0 | Q23: 0 | R23: 0 | S23: 0 | T23: 0 | U23: 0 | V23: 0 | W23: 0 | X23: 0 | Y23: 0 | Z23: 0 | AA23: 0 | AB23: 0 | AC23: 0 | AD23: 0 | AE23: 0 | AF23: 0 | AG23: 0
A24: Mercury | B24: 7439976 | C24: 4e-06 | D24: 0 | E24: 0 | F24: 0 | G24: 0 | H24: 0 | I24: 0 | J24: 0 | K24: 0 | L24: 0 | M24: 0 | N24: 0 | O24: 0 | P24: 0 | Q24: 0 | R24: 0 | S24: 0 | T24: 0 | U24: 0 | V24: 0 | W24: 0 | X24: 0 | Y24: 0 | Z24: 0 | AA24: 0 | AB24: 0 | AC24: 0 | AD24: 0 | AE24: 0 | AF24: 0 | AG24: 0
A25: Nickel | B25: 7440020 | C25: 7e-06 | D25: 0 | E25: 0 | F25: 0 | G25: 0 | H25: 0 | I25: 0 | J25: 0 | K25: 0 | L25: 0 | M25: 0 | N25: 0 | O25: 0 | P25: 0 | Q25: 0 | R25: 0 | S25: 0 | T25: 0 | U25: 0 | V25: 0 | W25: 0 | X25: 0 | Y25: 0 | Z25: 0 | AA25: 0 | AB25: 0 | AC25: 0 | AD25: 0 | AE25: 0 | AF25: 0 | AG25: 0
A26: Phosphorus | B26: 7723140 | C26: 0.04014 | D26: 0 | E26: 0 | F26: 0 | G26: 0 | H26: 0 | I26: 0 | J26: 0 | K26: 0 | L26: 0 | M26: 0 | N26: 0 | O26: 0 | P26: 0 | Q26: 0 | R26: 0 | S26: 0 | T26: 0 | U26: 0 | V26: 0 | W26: 0 | X26: 0 | Y26: 0 | Z26: 0 | AA26: 0 | AB26: 0 | AC26: 0 | AD26: 0 | AE26: 0 | AF26: 0 | AG26: 0
A27: Selenium | B27: 7782492 | C27: 1e-06 | D27: 0 | E27: 0 | F27: 0 | G27: 0 | H27: 0 | I27: 0 | J27: 0 | K27: 0 | L27: 0 | M27: 0 | N27: 0 | O27: 0 | P27: 0 | Q27: 0 | R27: 0 | S27: 0 | T27: 0 | U27: 0 | V27: 0 | W27: 0 | X27: 0 | Y27: 0 | Z27: 0 | AA27: 0 | AB27: 0 | AC27: 0 | AD27: 0 | AE27: 0 | AF27: 0 | AG27: 0
A28: Sulfates | B28: 9960 | C28: 0.007283 | D28: 0 | E28: 0 | F28: 0 | G28: 0 | H28: 0 | I28: 0 | J28: 0 | K28: 0 | L28: 0 | M28: 0 | N28: 0 | O28: 0 | P28: 0 | Q28: 0 | R28: 0 | S28: 0 | T28: 0 | U28: 0 | V28: 0 | W28: 0 | X28: 0 | Y28: 0 | Z28: 0 | AA28: 0 | AB28: 0 | AC28: 0 | AD28: 0 | AE28: 0 | AF28: 0 | AG28: 0
A29: Vanadium | B29: 7440622 | C29: 3e-05 | D29: 0 | E29: 0 | F29: 0 | G29: 0 | H29: 0 | I29: 0 | J29: 0 | K29: 0 | L29: 0 | M29: 0 | N29: 0 | O29: 0 | P29: 0 | Q29: 0 | R29: 0 | S29: 0 | T29: 0 | U29: 0 | V29: 0 | W29: 0 | X29: 0 | Y29: 0 | Z29: 0 | AA29: 0 | AB29: 0 | AC29: 0 | AD29: 0 | AE29: 0 | AF29: 0 | AG29: 0
A30: Zinc | B30: 7440666 | C30: 0.000342 | D30: 0 | E30: 0 | F30: 0 | G30: 0 | H30: 0 | I30: 0 | J30: 0 | K30: 0 | L30: 0 | M30: 0 | N30: 0 | O30: 0 | P30: 0 | Q30: 0 | R30: 0 | S30: 0 | T30: =$T$11*C30 -> 0 | U30: 0 | V30: 0 | W30: 0 | X30: 0 | Y30: 0 | Z30: 0 | AA30: 0 | AB30: 0 | AC30: 0 | AD30: 0 | AE30: 0 | AF30: 0 | AG30: 0
A31: Ammonia | B31: 7664417 | D31: =IF('Cow Housing'!G69>0, 'Cow Housing'!G69, 0) -> 0 | E31: =IF('Cow Housing'!H69>0, 'Cow Housing'!H69, 0) -> 0 | F31: =IF('Cow Housing'!G70>0, 'Cow Housing'!G70, 0) -> 0 | G31: =IF('Cow Housing'!H70>0, 'Cow Housing'!H70, 0) -> 0 | H31: =IF('Cow Housing'!G71>0, 'Cow Housing'!G71, 0) -> 0 | I31: =IF('Cow Housing'!H71>0, 'Cow Housing'!H71, 0) -> 0 | J31: =IF('Cow Housing'!G72>0, 'Cow Housing'!G72, 0) -> 0 | K31: =IF('Cow Housing'!H72>0, 'Cow Housing'!H72, 0) -> 0 | L31: =IF('Cow Housing'!G73>0, 'Cow Housing'!G73, 0) -> 0 | M31: =IF('Cow Housing'!H73>0, 'Cow Housing'!H73, 0) -> 0 | N31: =IF('Cow Housing'!G74>0, 'Cow Housing'!G74, 0) -> 0 | O31: =IF('Cow Housing'!H74>0, 'Cow Housing'!H74, 0) -> 0 | P31: =IF('Cow Housing'!G75>0, 'Cow Housing'!G75, 0) -> 0 | Q31: =IF('Cow Housing'!H75>0, 'Cow Housing'!H75, 0) -> 0 | R31: =IF('Cow Housing'!G76>0, 'Cow Housing'!G76, 0) -> 0 | S31: =IF('Cow Housing'!H76>0, 'Cow Housing'!H76, 0) -> 0 | T31: =IF('Cow Housing'!G77>0, 'Cow Housing'!G77, 0) -> 0 | U31: =IF('Cow Housing'!H77>0, 'Cow Housing'!H77, 0) -> 0 | V31: =IF('Cow Housing'!G78>0, 'Cow Housing'!G78, 0) -> 0 | W31: =IF('Cow Housing'!H78>0, 'Cow Housing'!H78, 0) -> 0 | X31: =IF('Cow Housing'!G79>0, 'Cow Housing'!G79, 0) -> 0 | Y31: =IF('Cow Housing'!H79>0, 'Cow Housing'!H79, 0) -> 0 | Z31: =IF('Cow Housing'!G80>0, 'Cow Housing'!G80, 0) -> 0 | AA31: =IF('Cow Housing'!H80>0, 'Cow Housing'!H80, 0) -> 0 | AB31: =IF('Cow Housing'!$G81>0, 'Cow Housing'!$G81, 0) -> 0 | AC31: =IF('Cow Housing'!$H81>0, 'Cow Housing'!$H81, 0) -> 0 | AD31: =IF('Cow Housing'!$G82>0, 'Cow Housing'!$G82, 0) -> 0 | AE31: =IF('Cow Housing'!$H82>0, 'Cow Housing'!$H82, 0) -> 0 | AF31: =IF('Cow Housing'!$G83>0, 'Cow Housing'!$G83, 0) -> 0 | AG31: =IF('Cow Housing'!$H83>0, 'Cow Housing'!$H83, 0) -> 0
A33: References:
A34: * Emission factors are derived from a worst case composite of 1997 San Joaquin Valley soil profiles listed in EPA's speciation program.
A35: **Hexavalent chromium is assumed to be 5% of chromium.
A36: Pollutants required for toxic reporting. Current as of update date.
A38: Compounds Tested for but not detected | B38: CAS#
A42: Cadmium | B42: 7440439
A43: Cobalt | B43: 7440484

Sheet Dairy Miscellaneous
A1: Agricultural Miscellaneous Emissions from Dairy Operations (Cow Housing)
A2: Use this spreadsheet to characterize the miscellanous emissions from Dairy sources when VOC rates are known. VOC emission rates linked to Cow Housing worksheet. No entries required on this worksheet. Zero and null entries will be highlighted in red after entry.
A3: Author or updater | B3: Matthew Cegielski
A4: Last Update | B4: 2025-09-29
A5: Facility: | B5: ='Cow Housing'!C4 -> Happy Cows
A6: ID#: | B6: ='Cow Housing'!C5 -> C-7777
A7: Project #: | B7: ='Cow Housing'!C6 -> C-3333
A8: Formula | D8: ='Cow Housing'!$B$9 -> 0 | F8: ='Cow Housing'!$B$10 -> 0 | H8: ='Cow Housing'!$B$11 -> 0 | J8: ='Cow Housing'!$B$12 -> 0 | L8: ='Cow Housing'!$B$13 -> 0 | N8: ='Cow Housing'!$B$14 -> 0 | P8: ='Cow Housing'!$B$15 -> 0 | R8: ='Cow Housing'!$B$16 -> 0 | T8: ='Cow Housing'!$B$17 -> 0 | V8: ='Cow Housing'!$B$18 -> 0 | X8: ='Cow Housing'!$B$19 -> 0 | Z8: ='Cow Housing'!$B$20 -> 0 | AB8: ='Cow Housing'!$B$21 -> 0 | AD8: ='Cow Housing'!$B$22 -> 0 | AF8: ='Cow Housing'!$B$23 -> 0 | AH8: ='Cow Housing'!$B$24 -> 0 | AJ8: ='Cow Housing'!$B$25 -> 0 | AL8: ='Cow Housing'!$B$26 -> 0 | AN8: ='Cow Housing'!$B$27 -> 0 | AP8: ='Cow Housing'!$B$28 -> 0
A9: Emissions are calculated by the multiplication of the VOC Rates, and Emission Factors.
D10: lb/hr | E10: lb/yr | F10: lb/hr | G10: lb/yr | H10: lb/hr | I10: lb/yr | J10: lb/hr | K10: lb/yr | L10: lb/hr | M10: lb/yr | N10: lb/hr | O10: lb/yr | P10: lb/hr | Q10: lb/yr | R10: lb/hr | S10: lb/yr | T10: lb/hr | U10: lb/yr | V10: lb/hr | W10: lb/yr | X10: lb/hr | Y10: lb/yr | Z10: lb/hr | AA10: lb/yr | AB10: lb/hr | AC10: lb/yr | AD10: lb/hr | AE10: lb/yr | AF10: lb/hr | AG10: lb/yr | AH10: lb/hr | AI10: lb/yr | AJ10: lb/hr | AK10: lb/yr | AL10: lb/hr | AM10: lb/yr | AN10: lb/hr | AO10: lb/yr | AP10: lb/hr | AQ10: lb/yr
A11: VOC Emission Rates | D11: =IF('Cow Housing'!E9>0,'Cow Housing'!E9,0) -> 0 | E11: =IF('Cow Housing'!F9>0,'Cow Housing'!F9,0) -> 0 | F11: =IF('Cow Housing'!E10>0,'Cow Housing'!E10,0) -> 0 | G11: =IF('Cow Housing'!F10>0,'Cow Housing'!F10,0) -> 0 | H11: =IF('Cow Housing'!E11>0,'Cow Housing'!E11,0) -> 0 | I11: =IF('Cow Housing'!F11>0,'Cow Housing'!F11,0) -> 0 | J11: =IF('Cow Housing'!E12>0,'Cow Housing'!E12,0) -> 0 | K11: =IF('Cow Housing'!F12>0,'Cow Housing'!F12,0) -> 0 | L11: =IF('Cow Housing'!E13>0,'Cow Housing'!E13,0) -> 0 | M11: =IF('Cow Housing'!F13>0,'Cow Housing'!F13,0) -> 0 | N11: =IF('Cow Housing'!E14>0,'Cow Housing'!E14,0) -> 0 | O11: =IF('Cow Housing'!F14>0,'Cow Housing'!F14,0) -> 0 | P11: =IF('Cow Housing'!E15>0,'Cow Housing'!E15,0) -> 0 | Q11: =IF('Cow Housing'!F15>0,'Cow Housing'!F15,0) -> 0 | R11: =IF('Cow Housing'!E16>0,'Cow Housing'!E16,0) -> 0 | S11: =IF('Cow Housing'!F16>0,'Cow Housing'!F16,0) -> 0 | T11: =IF('Cow Housing'!E17>0,'Cow Housing'!E17,0) -> 0 | U11: =IF('Cow Housing'!F17>0,'Cow Housing'!F17,0) -> 0 | V11: =IF('Cow Housing'!E18>0,'Cow Housing'!E18,0) -> 0 | W11: =IF('Cow Housing'!F18>0,'Cow Housing'!F18,0) -> 0 | X11: =IF('Cow Housing'!E19>0,'Cow Housing'!E19,0) -> 0 | Y11: =IF('Cow Housing'!F19>0,'Cow Housing'!F19,0) -> 0 | Z11: =IF('Cow Housing'!E20>0,'Cow Housing'!E20,0) -> 0 | AA11: =IF('Cow Housing'!F20>0,'Cow Housing'!F20,0) -> 0 | AB11: =IF('Cow Housing'!E21>0,'Cow Housing'!E21,0) -> 0 | AC11: =IF('Cow Housing'!F21>0,'Cow Housing'!F21,0) -> 0 | AD11: =IF('Cow Housing'!E22>0,'Cow Housing'!E22,0) -> 0 | AE11: =IF('Cow Housing'!F22>0,'Cow Housing'!F22,0) -> 0 | AF11: =IF('Cow Housing'!E23>0,'Cow Housing'!E23,0) -> 0 | AG11: =IF('Cow Housing'!F23>0,'Cow Housing'!F23,0) -> 0 | AH11: =IF('Cow Housing'!E24>0,'Cow Housing'!E24,0) -> 0 | AI11: =IF('Cow Housing'!F24>0,'Cow Housing'!F24,0) -> 0 | AJ11: =IF('Cow Housing'!E25>0,'Cow Housing'!E25,0) -> 0 | AK11: =IF('Cow Housing'!F25>0,'Cow Housing'!F25,0) -> 0 | AL11: =IF('Cow Housing'!E26>0,'Cow Housing'!E26,0) -> 0 | AM11: =IF('Cow Housing'!F26>0,'Cow Housing'!F26,0) -> 0 | AN11: =IF('Cow Housing'!E27>0,'Cow Housing'!E27,0) -> 0 | AO11: =IF('Cow Housing'!F27>0,'Cow Housing'!F27,0) -> 0 | AP11: =IF('Cow Housing'!E28>0,'Cow Housing'!E28,0) -> 0 | AQ11: =IF('Cow Housing'!F28>0,'Cow Housing'!F28,0) -> 0
A12: Substances | B12: CAS# | C12: Volatiles (lb/lb VOC)* | D12: LB/HR | E12: LB/YR | F12: LB/HR | G12: LB/YR | H12: LB/HR | I12: LB/YR | J12: LB/HR | K12: LB/YR | L12: LB/HR | M12: LB/YR | N12: LB/HR | O12: LB/YR | P12: LB/HR | Q12: LB/YR | R12: LB/HR | S12: LB/YR | T12: LB/HR | U12: LB/YR | V12: LB/HR | W12: LB/YR | X12: LB/HR | Y12: LB/YR | Z12: LB/HR | AA12: LB/YR | AB12: LB/HR | AC12: LB/YR | AD12: LB/HR | AE12: LB/YR | AF12: LB/HR | AG12: LB/YR | AH12: LB/HR | AI12: LB/YR | AJ12: LB/HR | AK12: LB/YR | AL12: LB/HR | AM12: LB/YR | AN12: LB/HR | AO12: LB/YR | AP12: LB/HR | AQ12: LB/YR
A15: 1,1,2,2-Tetrachloroethane | B15: 79345 | C15: 8.73e-06 | D15: =$D$11*C15 -> 0 | E15: =$E$11*C15 -> 0 | F15: =$F$11*C15 -> 0 | G15: =$G$11*C15 -> 0 | H15: =$H$11*C15 -> 0 | I15: =$I$11*C15 -> 0 | J15: =$J$11*C15 -> 0 | K15: =$K$11*C15 -> 0 | L15: =$L$11*C15 -> 0 | M15: =$M$11*C15 -> 0 | N15: =$N$11*C15 -> 0 | O15: =$O$11*C15 -> 0 | P15: =$P$11*C15 -> 0 | Q15: =$Q$11*C15 -> 0 | R15: =$R$11*C15 -> 0 | S15: =$S$11*C15 -> 0 | T15: =$T$11*C15 -> 0 | U15: =$U$11*C15 -> 0 | V15: =$V$11*C15 -> 0 | W15: =$W$11*C15 -> 0 | X15: =$X$11*C15 -> 0 | Y15: =$Y$11*C15 -> 0 | Z15: =$Z$11*C15 -> 0 | AA15: =$AA$11*C15 -> 0 | AB15: =$AB$11*C15 -> 0 | AC15: =$AC$11*C15 -> 0 | AD15: =$AD$11*C15 -> 0 | AE15: =$AE$11*C15 -> 0 | AF15: =$AF$11*C15 -> 0 | AG15: =$AG$11*C15 -> 0 | AH15: =$AH$11*C15 -> 0 | AI15: =$AI$11*C15 -> 0 | AJ15: =$AJ$11*C15 -> 0 | AK15: =$AK$11*C15 -> 0 | AL15: =$AL$11*C15 -> 0 | AM15: =$AM$11*C15 -> 0 | AN15: =$AN$11*C15 -> 0 | AO15: =$AO$11*C15 -> 0 | AP15: =$AP$11*C15 -> 0 | AQ15: =$AQ$11*C15 -> 0
A16: 1,1,2-Trichloroethane | B16: 79005 | C16: 0.000226 | D16: =$D$11*C16 -> 0 | E16: =$E$11*C16 -> 0 | F16: =$F$11*C16 -> 0 | G16: =$G$11*C16 -> 0 | H16: =$H$11*C16 -> 0 | I16: =$I$11*C16 -> 0 | J16: =$J$11*C16 -> 0 | K16: =$K$11*C16 -> 0 | L16: =$L$11*C16 -> 0 | M16: =$M$11*C16 -> 0 | N16: =$N$11*C16 -> 0 | O16: =$O$11*C16 -> 0 | P16: =$P$11*C16 -> 0 | Q16: =$Q$11*C16 -> 0 | R16: =$R$11*C16 -> 0 | S16: =$S$11*C16 -> 0 | T16: =$T$11*C16 -> 0 | U16: =$U$11*C16 -> 0 | V16: =$V$11*C16 -> 0 | W16: =$W$11*C16 -> 0 | X16: =$X$11*C16 -> 0 | Y16: =$Y$11*C16 -> 0 | Z16: =$Z$11*C16 -> 0 | AA16: =$AA$11*C16 -> 0 | AB16: =$AB$11*C16 -> 0 | AC16: =$AC$11*C16 -> 0 | AD16: =$AD$11*C16 -> 0 | AE16: =$AE$11*C16 -> 0 | AF16: =$AF$11*C16 -> 0 | AG16: =$AG$11*C16 -> 0 | AH16: =$AH$11*C16 -> 0 | AI16: =$AI$11*C16 -> 0 | AJ16: =$AJ$11*C16 -> 0 | AK16: =$AK$11*C16 -> 0 | AL16: =$AL$11*C16 -> 0 | AM16: =$AM$11*C16 -> 0 | AN16: =$AN$11*C16 -> 0 | AO16: =$AO$11*C16 -> 0 | AP16: =$AP$11*C16 -> 0 | AQ16: =$AQ$11*C16 -> 0
A17: 1,2,3-Trichloropropane | B17: 96184 | C17: 0.000276 | D17: 0 | E17: 0 | F17: 0 | G17: 0 | H17: 0 | I17: 0 | J17: 0 | K17: 0 | L17: 0 | M17: 0 | N17: 0 | O17: 0 | P17: 0 | Q17: 0 | R17: 0 | S17: 0 | T17: 0 | U17: 0 | V17: 0 | W17: 0 | X17: 0 | Y17: 0 | Z17: 0 | AA17: 0 | AB17: 0 | AC17: 0 | AD17: 0 | AE17: 0 | AF17: 0 | AG17: 0 | AH17: =$AH$11*C17 -> 0 | AI17: =$AI$11*C17 -> 0 | AJ17: 0 | AK17: 0 | AL17: 0 | AM17: 0 | AN17: 0 | AO17: 0 | AP17: 0 | AQ17: 0
A18: 1,2,4-Trichlorobenzene | B18: 120821 | C18: 0.000779 | D18: 0 | E18: 0 | F18: 0 | G18: 0 | H18: 0 | I18: 0 | J18: 0 | K18: 0 | L18: 0 | M18: 0 | N18: 0 | O18: 0 | P18: 0 | Q18: 0 | R18: 0 | S18: 0 | T18: 0 | U18: 0 | V18: 0 | W18: 0 | X18: 0 | Y18: 0 | Z18: 0 | AA18: 0 | AB18: 0 | AC18: 0 | AD18: 0 | AE18: 0 | AF18: 0 | AG18: 0 | AH18: 0 | AI18: 0 | AJ18: 0 | AK18: 0 | AL18: 0 | AM18: 0 | AN18: 0 | AO18: 0 | AP18: 0 | AQ18: 0
A19: 1,2-Dibromo-3-chloropropane | B19: 96128 | C19: 4.94e-05 | D19: 0 | E19: 0 | F19: 0 | G19: 0 | H19: 0 | I19: 0 | J19: 0 | K19: 0 | L19: 0 | M19: 0 | N19: 0 | O19: 0 | P19: 0 | Q19: 0 | R19: 0 | S19: 0 | T19: 0 | U19: 0 | V19: 0 | W19: 0 | X19: 0 | Y19: 0 | Z19: 0 | AA19: 0 | AB19: 0 | AC19: 0 | AD19: 0 | AE19: 0 | AF19: 0 | AG19: 0 | AH19: 0 | AI19: 0 | AJ19: 0 | AK19: 0 | AL19: 0 | AM19: 0 | AN19: 0 | AO19: 0 | AP19: 0 | AQ19: 0
A20: 1,2-Dichlorobenzene | B20: 95501 | C20: 0.000548 | D20: 0 | E20: 0 | F20: 0 | G20: 0 | H20: 0 | I20: 0 | J20: 0 | K20: 0 | L20: 0 | M20: 0 | N20: 0 | O20: 0 | P20: 0 | Q20: 0 | R20: 0 | S20: 0 | T20: 0 | U20: 0 | V20: 0 | W20: 0 | X20: 0 | Y20: 0 | Z20: 0 | AA20: 0 | AB20: 0 | AC20: 0 | AD20: 0 | AE20: 0 | AF20: 0 | AG20: 0 | AH20: 0 | AI20: 0 | AJ20: 0 | AK20: 0 | AL20: 0 | AM20: 0 | AN20: 0 | AO20: 0 | AP20: 0 | AQ20: 0
A21: 1,3-Dichlorobenzene | B21: 541731 | C21: 0.00049 | D21: 0 | E21: 0 | F21: 0 | G21: 0 | H21: 0 | I21: 0 | J21: 0 | K21: 0 | L21: 0 | M21: 0 | N21: 0 | O21: 0 | P21: 0 | Q21: 0 | R21: 0 | S21: 0 | T21: 0 | U21: 0 | V21: 0 | W21: 0 | X21: 0 | Y21: 0 | Z21: 0 | AA21: 0 | AB21: 0 | AC21: 0 | AD21: 0 | AE21: 0 | AF21: 0 | AG21: 0 | AH21: 0 | AI21: 0 | AJ21: 0 | AK21: 0 | AL21: 0 | AM21: 0 | AN21: 0 | AO21: 0 | AP21: 0 | AQ21: 0
A22: 1,4 Dioxane | B22: 123911 | C22: 0.00141 | D22: 0 | E22: 0 | F22: 0 | G22: 0 | H22: 0 | I22: 0 | J22: 0 | K22: 0 | L22: 0 | M22: 0 | N22: 0 | O22: 0 | P22: 0 | Q22: 0 | R22: 0 | S22: 0 | T22: 0 | U22: 0 | V22: 0 | W22: 0 | X22: 0 | Y22: 0 | Z22: 0 | AA22: 0 | AB22: 0 | AC22: 0 | AD22: 0 | AE22: 0 | AF22: 0 | AG22: 0 | AH22: 0 | AI22: 0 | AJ22: 0 | AK22: 0 | AL22: 0 | AM22: 0 | AN22: 0 | AO22: 0 | AP22: 0 | AQ22: 0
A23: 1,4-Dichlorobenzene | B23: 106467 | C23: 0.000519 | D23: 0 | E23: 0 | F23: 0 | G23: 0 | H23: 0 | I23: 0 | J23: 0 | K23: 0 | L23: 0 | M23: 0 | N23: 0 | O23: 0 | P23: 0 | Q23: 0 | R23: 0 | S23: 0 | T23: 0 | U23: 0 | V23: 0 | W23: 0 | X23: 0 | Y23: 0 | Z23: 0 | AA23: 0 | AB23: 0 | AC23: 0 | AD23: 0 | AE23: 0 | AF23: 0 | AG23: 0 | AH23: 0 | AI23: 0 | AJ23: 0 | AK23: 0 | AL23: 0 | AM23: 0 | AN23: 0 | AO23: 0 | AP23: 0 | AQ23: 0
A24: Acetaldehyde | B24: 75070 | C24: 0.00241 | D24: 0 | E24: 0 | F24: 0 | G24: 0 | H24: 0 | I24: 0 | J24: 0 | K24: 0 | L24: 0 | M24: 0 | N24: 0 | O24: 0 | P24: 0 | Q24: 0 | R24: 0 | S24: 0 | T24: 0 | U24: 0 | V24: 0 | W24: 0 | X24: 0 | Y24: 0 | Z24: 0 | AA24: 0 | AB24: 0 | AC24: 0 | AD24: 0 | AE24: 0 | AF24: 0 | AG24: 0 | AH24: 0 | AI24: 0 | AJ24: 0 | AK24: 0 | AL24: 0 | AM24: 0 | AN24: 0 | AO24: 0 | AP24: 0 | AQ24: 0
A25: Acrylonitrile | B25: 107131 | C25: 0.000243 | D25: 0 | E25: 0 | F25: 0 | G25: 0 | H25: 0 | I25: 0 | J25: 0 | K25: 0 | L25: 0 | M25: 0 | N25: 0 | O25: 0 | P25: 0 | Q25: 0 | R25: 0 | S25: 0 | T25: 0 | U25: 0 | V25: 0 | W25: 0 | X25: 0 | Y25: 0 | Z25: 0 | AA25: 0 | AB25: 0 | AC25: 0 | AD25: 0 | AE25: 0 | AF25: 0 | AG25: 0 | AH25: 0 | AI25: 0 | AJ25: 0 | AK25: 0 | AL25: 0 | AM25: 0 | AN25: 0 | AO25: 0 | AP25: 0 | AQ25: 0
A26: Benzene | B26: 71432 | C26: 0.000319 | D26: 0 | E26: 0 | F26: 0 | G26: 0 | H26: 0 | I26: 0 | J26: 0 | K26: 0 | L26: 0 | M26: 0 | N26: 0 | O26: 0 | P26: 0 | Q26: 0 | R26: 0 | S26: 0 | T26: 0 | U26: 0 | V26: 0 | W26: 0 | X26: 0 | Y26: 0 | Z26: 0 | AA26: 0 | AB26: 0 | AC26: 0 | AD26: 0 | AE26: 0 | AF26: 0 | AG26: 0 | AH26: 0 | AI26: 0 | AJ26: 0 | AK26: 0 | AL26: 0 | AM26: 0 | AN26: 0 | AO26: 0 | AP26: 0 | AQ26: 0
A27: Benzyl chloride | B27: 100447 | C27: 0.000289 | D27: 0 | E27: 0 | F27: 0 | G27: 0 | H27: 0 | I27: 0 | J27: 0 | K27: 0 | L27: 0 | M27: 0 | N27: 0 | O27: 0 | P27: 0 | Q27: 0 | R27: 0 | S27: 0 | T27: 0 | U27: 0 | V27: 0 | W27: 0 | X27: 0 | Y27: 0 | Z27: 0 | AA27: 0 | AB27: 0 | AC27: 0 | AD27: 0 | AE27: 0 | AF27: 0 | AG27: 0 | AH27: 0 | AI27: 0 | AJ27: 0 | AK27: 0 | AL27: 0 | AM27: 0 | AN27: 0 | AO27: 0 | AP27: 0 | AQ27: 0
A28: Butyraldehyde | B28: 123728 | C28: 0.000114 | D28: 0 | E28: 0 | F28: 0 | G28: 0 | H28: 0 | I28: 0 | J28: 0 | K28: 0 | L28: 0 | M28: 0 | N28: 0 | O28: 0 | P28: 0 | Q28: 0 | R28: 0 | S28: 0 | T28: 0 | U28: 0 | V28: 0 | W28: 0 | X28: 0 | Y28: 0 | Z28: 0 | AA28: 0 | AB28: 0 | AC28: 0 | AD28: 0 | AE28: 0 | AF28: 0 | AG28: 0 | AH28: 0 | AI28: 0 | AJ28: 0 | AK28: 0 | AL28: 0 | AM28: 0 | AN28: 0 | AO28: 0 | AP28: 0 | AQ28: 0
A29: Carbon Disulfide | B29: 75150 | C29: 0.00249 | D29: 0 | E29: 0 | F29: 0 | G29: 0 | H29: 0 | I29: 0 | J29: 0 | K29: 0 | L29: 0 | M29: 0 | N29: 0 | O29: 0 | P29: 0 | Q29: 0 | R29: 0 | S29: 0 | T29: 0 | U29: 0 | V29: 0 | W29: 0 | X29: 0 | Y29: 0 | Z29: 0 | AA29: 0 | AB29: 0 | AC29: 0 | AD29: 0 | AE29: 0 | AF29: 0 | AG29: 0 | AH29: 0 | AI29: 0 | AJ29: 0 | AK29: 0 | AL29: 0 | AM29: 0 | AN29: 0 | AO29: 0 | AP29: 0 | AQ29: 0
A30: Carbon tetrachloride | B30: 56235 | C30: 5.87e-05 | D30: 0 | E30: 0 | F30: 0 | G30: 0 | H30: 0 | I30: 0 | J30: 0 | K30: 0 | L30: 0 | M30: 0 | N30: 0 | O30: 0 | P30: 0 | Q30: 0 | R30: 0 | S30: 0 | T30: 0 | U30: 0 | V30: 0 | W30: 0 | X30: 0 | Y30: 0 | Z30: 0 | AA30: 0 | AB30: 0 | AC30: 0 | AD30: 0 | AE30: 0 | AF30: 0 | AG30: 0 | AH30: 0 | AI30: 0 | AJ30: 0 | AK30: 0 | AL30: 0 | AM30: 0 | AN30: 0 | AO30: 0 | AP30: 0 | AQ30: 0
A31: Chlorobenzene | B31: 108907 | C31: 0.000272 | D31: 0 | E31: 0 | F31: 0 | G31: 0 | H31: 0 | I31: 0 | J31: 0 | K31: 0 | L31: 0 | M31: 0 | N31: 0 | O31: 0 | P31: 0 | Q31: 0 | R31: 0 | S31: 0 | T31: 0 | U31: 0 | V31: 0 | W31: 0 | X31: 0 | Y31: 0 | Z31: 0 | AA31: 0 | AB31: 0 | AC31: 0 | AD31: 0 | AE31: 0 | AF31: 0 | AG31: 0 | AH31: 0 | AI31: 0 | AJ31: 0 | AK31: 0 | AL31: 0 | AM31: 0 | AN31: 0 | AO31: 0 | AP31: 0 | AQ31: 0
A32: Chloroform | B32: 67663 | C32: 0.000131 | D32: 0 | E32: 0 | F32: 0 | G32: 0 | H32: 0 | I32: 0 | J32: 0 | K32: 0 | L32: 0 | M32: 0 | N32: 0 | O32: 0 | P32: 0 | Q32: 0 | R32: 0 | S32: 0 | T32: 0 | U32: 0 | V32: 0 | W32: 0 | X32: 0 | Y32: 0 | Z32: 0 | AA32: 0 | AB32: 0 | AC32: 0 | AD32: 0 | AE32: 0 | AF32: 0 | AG32: 0 | AH32: 0 | AI32: 0 | AJ32: 0 | AK32: 0 | AL32: 0 | AM32: 0 | AN32: 0 | AO32: 0 | AP32: 0 | AQ32: 0
A33: Chloromethane | B33: 74873 | C33: 0.000793 | D33: 0 | E33: 0 | F33: 0 | G33: 0 | H33: 0 | I33: 0 | J33: 0 | K33: 0 | L33: 0 | M33: 0 | N33: 0 | O33: 0 | P33: 0 | Q33: 0 | R33: 0 | S33: 0 | T33: 0 | U33: 0 | V33: 0 | W33: 0 | X33: 0 | Y33: 0 | Z33: 0 | AA33: 0 | AB33: 0 | AC33: 0 | AD33: 0 | AE33: 0 | AF33: 0 | AG33: 0 | AH33: 0 | AI33: 0 | AJ33: 0 | AK33: 0 | AL33: 0 | AM33: 0 | AN33: 0 | AO33: 0 | AP33: 0 | AQ33: 0
A34: Crotonaldehyde | B34: 4170303 | C34: 0.000141 | D34: 0 | E34: 0 | F34: 0 | G34: 0 | H34: 0 | I34: 0 | J34: 0 | K34: 0 | L34: 0 | M34: 0 | N34: 0 | O34: 0 | P34: 0 | Q34: 0 | R34: 0 | S34: 0 | T34: 0 | U34: 0 | V34: 0 | W34: 0 | X34: 0 | Y34: 0 | Z34: 0 | AA34: 0 | AB34: 0 | AC34: 0 | AD34: 0 | AE34: 0 | AF34: 0 | AG34: 0 | AH34: 0 | AI34: 0 | AJ34: 0 | AK34: 0 | AL34: 0 | AM34: 0 | AN34: 0 | AO34: 0 | AP34: 0 | AQ34: 0
A35: Cyclohexane | B35: 110827 | C35: 0.00683 | D35: 0 | E35: 0 | F35: 0 | G35: 0 | H35: 0 | I35: 0 | J35: 0 | K35: 0 | L35: 0 | M35: 0 | N35: 0 | O35: 0 | P35: 0 | Q35: 0 | R35: 0 | S35: 0 | T35: 0 | U35: 0 | V35: 0 | W35: 0 | X35: 0 | Y35: 0 | Z35: 0 | AA35: 0 | AB35: 0 | AC35: 0 | AD35: 0 | AE35: 0 | AF35: 0 | AG35: 0 | AH35: 0 | AI35: 0 | AJ35: 0 | AK35: 0 | AL35: 0 | AM35: 0 | AN35: 0 | AO35: 0 | AP35: 0 | AQ35: 0
A36: Ethyl Chloride | B36: 75003 | C36: 0.000239 | D36: 0 | E36: 0 | F36: 0 | G36: 0 | H36: 0 | I36: 0 | J36: 0 | K36: 0 | L36: 0 | M36: 0 | N36: 0 | O36: 0 | P36: 0 | Q36: 0 | R36: 0 | S36: 0 | T36: 0 | U36: 0 | V36: 0 | W36: 0 | X36: 0 | Y36: 0 | Z36: 0 | AA36: 0 | AB36: 0 | AC36: 0 | AD36: 0 | AE36: 0 | AF36: 0 | AG36: 0 | AH36: 0 | AI36: 0 | AJ36: 0 | AK36: 0 | AL36: 0 | AM36: 0 | AN36: 0 | AO36: 0 | AP36: 0 | AQ36: 0
A37: Ethylbenzene | B37: 100414 | C37: 0.000347 | D37: 0 | E37: 0 | F37: 0 | G37: 0 | H37: 0 | I37: 0 | J37: 0 | K37: 0 | L37: 0 | M37: 0 | N37: 0 | O37: 0 | P37: 0 | Q37: 0 | R37: 0 | S37: 0 | T37: 0 | U37: 0 | V37: 0 | W37: 0 | X37: 0 | Y37: 0 | Z37: 0 | AA37: 0 | AB37: 0 | AC37: 0 | AD37: 0 | AE37: 0 | AF37: 0 | AG37: 0 | AH37: 0 | AI37: 0 | AJ37: 0 | AK37: 0 | AL37: 0 | AM37: 0 | AN37: 0 | AO37: 0 | AP37: 0 | AQ37: 0
A38: Ethylene Dibromide (EDB) | B38: 106934 | C38: 0.000306 | D38: 0 | E38: 0 | F38: 0 | G38: 0 | H38: 0 | I38: 0 | J38: 0 | K38: 0 | L38: 0 | M38: 0 | N38: 0 | O38: 0 | P38: 0 | Q38: 0 | R38: 0 | S38: 0 | T38: 0 | U38: 0 | V38: 0 | W38: 0 | X38: 0 | Y38: 0 | Z38: 0 | AA38: 0 | AB38: 0 | AC38: 0 | AD38: 0 | AE38: 0 | AF38: 0 | AG38: 0 | AH38: 0 | AI38: 0 | AJ38: 0 | AK38: 0 | AL38: 0 | AM38: 0 | AN38: 0 | AO38: 0 | AP38: 0 | AQ38: 0
A39: Ethylene Dichloride (EDC) | B39: 107062 | C39: 5.89e-05 | D39: 0 | E39: 0 | F39: 0 | G39: 0 | H39: 0 | I39: 0 | J39: 0 | K39: 0 | L39: 0 | M39: 0 | N39: 0 | O39: 0 | P39: 0 | Q39: 0 | R39: 0 | S39: 0 | T39: 0 | U39: 0 | V39: 0 | W39: 0 | X39: 0 | Y39: 0 | Z39: 0 | AA39: 0 | AB39: 0 | AC39: 0 | AD39: 0 | AE39: 0 | AF39: 0 | AG39: 0 | AH39: 0 | AI39: 0 | AJ39: 0 | AK39: 0 | AL39: 0 | AM39: 0 | AN39: 0 | AO39: 0 | AP39: 0 | AQ39: 0
A40: Formaldehyde | B40: 50000 | C40: 0.000398 | D40: 0 | E40: 0 | F40: 0 | G40: 0 | H40: 0 | I40: 0 | J40: 0 | K40: 0 | L40: 0 | M40: 0 | N40: 0 | O40: 0 | P40: 0 | Q40: 0 | R40: 0 | S40: 0 | T40: 0 | U40: 0 | V40: 0 | W40: 0 | X40: 0 | Y40: 0 | Z40: 0 | AA40: 0 | AB40: 0 | AC40: 0 | AD40: 0 | AE40: 0 | AF40: 0 | AG40: 0 | AH40: 0 | AI40: 0 | AJ40: 0 | AK40: 0 | AL40: 0 | AM40: 0 | AN40: 0 | AO40: 0 | AP40: 0 | AQ40: 0
A41: Hexane | B41: 110543 | C41: 0.000812 | D41: 0 | E41: 0 | F41: 0 | G41: 0 | H41: 0 | I41: 0 | J41: 0 | K41: 0 | L41: 0 | M41: 0 | N41: 0 | O41: 0 | P41: 0 | Q41: 0 | R41: 0 | S41: 0 | T41: 0 | U41: 0 | V41: 0 | W41: 0 | X41: 0 | Y41: 0 | Z41: 0 | AA41: 0 | AB41: 0 | AC41: 0 | AD41: 0 | AE41: 0 | AF41: 0 | AG41: 0 | AH41: 0 | AI41: 0 | AJ41: 0 | AK41: 0 | AL41: 0 | AM41: 0 | AN41: 0 | AO41: 0 | AP41: 0 | AQ41: 0
A42: Isopropyl Alchol | B42: 67630 | C42: 0.00162 | D42: 0 | E42: 0 | F42: 0 | G42: 0 | H42: 0 | I42: 0 | J42: 0 | K42: 0 | L42: 0 | M42: 0 | N42: 0 | O42: 0 | P42: 0 | Q42: 0 | R42: 0 | S42: 0 | T42: 0 | U42: 0 | V42: 0 | W42: 0 | X42: 0 | Y42: 0 | Z42: 0 | AA42: 0 | AB42: 0 | AC42: 0 | AD42: 0 | AE42: 0 | AF42: 0 | AG42: 0 | AH42: 0 | AI42: 0 | AJ42: 0 | AK42: 0 | AL42: 0 | AM42: 0 | AN42: 0 | AO42: 0 | AP42: 0 | AQ42: 0
A43: Isopropylbenzene (Cumene) | B43: 98828 | C43: 5.61e-05 | D43: 0 | E43: 0 | F43: 0 | G43: 0 | H43: 0 | I43: 0 | J43: 0 | K43: 0 | L43: 0 | M43: 0 | N43: 0 | O43: 0 | P43: 0 | Q43: 0 | R43: 0 | S43: 0 | T43: 0 | U43: 0 | V43: 0 | W43: 0 | X43: 0 | Y43: 0 | Z43: 0 | AA43: 0 | AB43: 0 | AC43: 0 | AD43: 0 | AE43: 0 | AF43: 0 | AG43: 0 | AH43: 0 | AI43: 0 | AJ43: 0 | AK43: 0 | AL43: 0 | AM43: 0 | AN43: 0 | AO43: 0 | AP43: 0 | AQ43: 0
A44: Methyl Ethyl Ketone (2-butanone) | B44: 78933 | C44: 0.0146 | D44: 0 | E44: 0 | F44: 0 | G44: 0 | H44: 0 | I44: 0 | J44: 0 | K44: 0 | L44: 0 | M44: 0 | N44: 0 | O44: 0 | P44: 0 | Q44: 0 | R44: 0 | S44: 0 | T44: 0 | U44: 0 | V44: 0 | W44: 0 | X44: 0 | Y44: 0 | Z44: 0 | AA44: 0 | AB44: 0 | AC44: 0 | AD44: 0 | AE44: 0 | AF44: 0 | AG44: 0 | AH44: 0 | AI44: 0 | AJ44: 0 | AK44: 0 | AL44: 0 | AM44: 0 | AN44: 0 | AO44: 0 | AP44: 0 | AQ44: 0
A45: Methyl Isobutyl Ketone | B45: 108101 | C45: 0.000709 | D45: 0 | E45: 0 | F45: 0 | G45: 0 | H45: 0 | I45: 0 | J45: 0 | K45: 0 | L45: 0 | M45: 0 | N45: 0 | O45: 0 | P45: 0 | Q45: 0 | R45: 0 | S45: 0 | T45: 0 | U45: 0 | V45: 0 | W45: 0 | X45: 0 | Y45: 0 | Z45: 0 | AA45: 0 | AB45: 0 | AC45: 0 | AD45: 0 | AE45: 0 | AF45: 0 | AG45: 0 | AH45: 0 | AI45: 0 | AJ45: 0 | AK45: 0 | AL45: 0 | AM45: 0 | AN45: 0 | AO45: 0 | AP45: 0 | AQ45: 0
A46: Styrene | B46: 100425 | C46: 0.000359 | D46: 0 | E46: 0 | F46: 0 | G46: 0 | H46: 0 | I46: 0 | J46: 0 | K46: 0 | L46: 0 | M46: 0 | N46: 0 | O46: 0 | P46: 0 | Q46: 0 | R46: 0 | S46: 0 | T46: 0 | U46: 0 | V46: 0 | W46: 0 | X46: 0 | Y46: 0 | Z46: 0 | AA46: 0 | AB46: 0 | AC46: 0 | AD46: 0 | AE46: 0 | AF46: 0 | AG46: 0 | AH46: 0 | AI46: 0 | AJ46: 0 | AK46: 0 | AL46: 0 | AM46: 0 | AN46: 0 | AO46: 0 | AP46: 0 | AQ46: 0
A47: t-1,4-Dichloro-2-butene | B47: 764410 | C47: 0.000892 | D47: 0 | E47: 0 | F47: 0 | G47: 0 | H47: 0 | I47: 0 | J47: 0 | K47: 0 | L47: 0 | M47: 0 | N47: 0 | O47: 0 | P47: 0 | Q47: 0 | R47: 0 | S47: 0 | T47: 0 | U47: 0 | V47: 0 | W47: 0 | X47: 0 | Y47: 0 | Z47: 0 | AA47: 0 | AB47: 0 | AC47: 0 | AD47: 0 | AE47: 0 | AF47: 0 | AG47: 0 | AH47: 0 | AI47: 0 | AJ47: 0 | AK47: 0 | AL47: 0 | AM47: 0 | AN47: 0 | AO47: 0 | AP47: 0 | AQ47: 0
A48: Toluene | B48: 108883 | C48: 0.00107 | D48: 0 | E48: 0 | F48: 0 | G48: 0 | H48: 0 | I48: 0 | J48: 0 | K48: 0 | L48: 0 | M48: 0 | N48: 0 | O48: 0 | P48: 0 | Q48: 0 | R48: 0 | S48: 0 | T48: 0 | U48: 0 | V48: 0 | W48: 0 | X48: 0 | Y48: 0 | Z48: 0 | AA48: 0 | AB48: 0 | AC48: 0 | AD48: 0 | AE48: 0 | AF48: 0 | AG48: 0 | AH48: 0 | AI48: 0 | AJ48: 0 | AK48: 0 | AL48: 0 | AM48: 0 | AN48: 0 | AO48: 0 | AP48: 0 | AQ48: 0
A49: Trichlorofluoromethane* | B49: 75694 | C49: 1.08e-07 | D49: 0 | E49: 0 | F49: 0 | G49: 0 | H49: 0 | I49: 0 | J49: 0 | K49: 0 | L49: 0 | M49: 0 | N49: 0 | O49: 0 | P49: 0 | Q49: 0 | R49: 0 | S49: 0 | T49: 0 | U49: 0 | V49: 0 | W49: 0 | X49: 0 | Y49: 0 | Z49: 0 | AA49: 0 | AB49: 0 | AC49: 0 | AD49: 0 | AE49: 0 | AF49: 0 | AG49: 0 | AH49: 0 | AI49: 0 | AJ49: 0 | AK49: 0 | AL49: 0 | AM49: 0 | AN49: 0 | AO49: 0 | AP49: 0 | AQ49: 0
A50: Vinyl acetate | B50: 108054 | C50: 0.00197 | D50: 0 | E50: 0 | F50: 0 | G50: 0 | H50: 0 | I50: 0 | J50: 0 | K50: 0 | L50: 0 | M50: 0 | N50: 0 | O50: 0 | P50: 0 | Q50: 0 | R50: 0 | S50: 0 | T50: 0 | U50: 0 | V50: 0 | W50: 0 | X50: 0 | Y50: 0 | Z50: 0 | AA50: 0 | AB50: 0 | AC50: 0 | AD50: 0 | AE50: 0 | AF50: 0 | AG50: 0 | AH50: 0 | AI50: 0 | AJ50: 0 | AK50: 0 | AL50: 0 | AM50: 0 | AN50: 0 | AO50: 0 | AP50: 0 | AQ50: 0
A51: Xylenes | B51: 1330207 | C51: 0.0018 | D51: 0 | E51: 0 | F51: 0 | G51: 0 | H51: 0 | I51: 0 | J51: 0 | K51: 0 | L51: 0 | M51: 0 | N51: 0 | O51: 0 | P51: 0 | Q51: 0 | R51: 0 | S51: 0 | T51: 0 | U51: 0 | V51: 0 | W51: 0 | X51: 0 | Y51: 0 | Z51: 0 | AA51: 0 | AB51: 0 | AC51: 0 | AD51: 0 | AE51: 0 | AF51: 0 | AG51: 0 | AH51: 0 | AI51: 0 | AJ51: 0 | AK51: 0 | AL51: 0 | AM51: 0 | AN51: 0 | AO51: 0 | AP51: 0 | AQ51: 0
A53: References:
A54: *Emission factors are derived from the District's evaluation of dairy research studies conducted by California colleges and universities.
A55: Pollutants required for toxic reporting. Current as of update date.
A56: (Does not include emissions from Lagoons or enteric emissions from cows)

Sheet Dairy Miscellaneous 2
A1: Agricultural Miscellaneous Emissions from Dairy Operations (Cow Housing)
A2: Use this spreadsheet to characterize the miscellanous emissions from Dairy sources when VOC rates are known. VOC emission rates linked to Cow Housing worksheet. No entries required on this worksheet. Zero and null entries will be highlighted in red after entry.
A3: Author or updater | B3: Matthew Cegielski
A4: Last Update | B4: 2025-09-29
A5: Facility: | B5: ='Cow Housing'!C4 -> Happy Cows
A6: ID#: | B6: ='Cow Housing'!C5 -> C-7777
A7: Project #: | B7: ='Cow Housing'!C6 -> C-3333
A8: Formula | D8: ='Cow Housing'!$B$29 -> 0 | F8: ='Cow Housing'!$B$30 -> 0 | H8: ='Cow Housing'!$B$31 -> 0 | J8: ='Cow Housing'!$B$32 -> 0 | L8: ='Cow Housing'!$B$33 -> 0 | N8: ='Cow Housing'!$B$34 -> 0 | P8: ='Cow Housing'!$B$35 -> 0 | R8: ='Cow Housing'!$B$36 -> 0 | T8: ='Cow Housing'!$B$37 -> 0 | V8: ='Cow Housing'!$B$38 -> 0 | X8: ='Cow Housing'!$B$39 -> 0 | Z8: ='Cow Housing'!$B$40 -> 0 | AB8: ='Cow Housing'!$B$41 -> 0 | AD8: ='Cow Housing'!$B$42 -> 0 | AF8: ='Cow Housing'!$B$43 -> 0 | AH8: ='Cow Housing'!$B$44 -> 0 | AJ8: ='Cow Housing'!$B$45 -> 0 | AL8: ='Cow Housing'!$B$46 -> 0 | AN8: ='Cow Housing'!$B$47 -> 0 | AP8: ='Cow Housing'!$B$48 -> 0
A9: Emissions are calculated by the multiplication of the VOC Rates, and Emission Factors.
D10: lb/hr | E10: lb/yr | F10: lb/hr | G10: lb/yr | H10: lb/hr | I10: lb/yr | J10: lb/hr | K10: lb/yr | L10: lb/hr | M10: lb/yr | N10: lb/hr | O10: lb/yr | P10: lb/hr | Q10: lb/yr | R10: lb/hr | S10: lb/yr | T10: lb/hr | U10: lb/yr | V10: lb/hr | W10: lb/yr | X10: lb/hr | Y10: lb/yr | Z10: lb/hr | AA10: lb/yr | AB10: lb/hr | AC10: lb/yr | AD10: lb/hr | AE10: lb/yr | AF10: lb/hr | AG10: lb/yr | AH10: lb/hr | AI10: lb/yr | AJ10: lb/hr | AK10: lb/yr | AL10: lb/hr | AM10: lb/yr | AN10: lb/hr | AO10: lb/yr | AP10: lb/hr | AQ10: lb/yr
A11: VOC Emission Rates | D11: =IF('Cow Housing'!E29>0,'Cow Housing'!E29,0) -> 0 | E11: =IF('Cow Housing'!F29>0,'Cow Housing'!F29,0) -> 0 | F11: =IF('Cow Housing'!E30>0,'Cow Housing'!E30,0) -> 0 | G11: =IF('Cow Housing'!F30>0,'Cow Housing'!F30,0) -> 0 | H11: =IF('Cow Housing'!E31>0,'Cow Housing'!E31,0) -> 0 | I11: =IF('Cow Housing'!F31>0,'Cow Housing'!F31,0) -> 0 | J11: =IF('Cow Housing'!E32>0,'Cow Housing'!E32,0) -> 0 | K11: =IF('Cow Housing'!F32>0,'Cow Housing'!F32,0) -> 0 | L11: =IF('Cow Housing'!E33>0,'Cow Housing'!E33,0) -> 0 | M11: =IF('Cow Housing'!F33>0,'Cow Housing'!F33,0) -> 0 | N11: =IF('Cow Housing'!E34>0,'Cow Housing'!E34,0) -> 0 | O11: =IF('Cow Housing'!F34>0,'Cow Housing'!F34,0) -> 0 | P11: =IF('Cow Housing'!E35>0,'Cow Housing'!E35,0) -> 0 | Q11: =IF('Cow Housing'!F35>0,'Cow Housing'!F35,0) -> 0 | R11: =IF('Cow Housing'!E36>0,'Cow Housing'!E36,0) -> 0 | S11: =IF('Cow Housing'!F36>0,'Cow Housing'!F36,0) -> 0 | T11: =IF('Cow Housing'!E37>0,'Cow Housing'!E37,0) -> 0 | U11: =IF('Cow Housing'!F37>0,'Cow Housing'!F37,0) -> 0 | V11: =IF('Cow Housing'!E38>0,'Cow Housing'!E38,0) -> 0 | W11: =IF('Cow Housing'!F38>0,'Cow Housing'!F38,0) -> 0 | X11: =IF('Cow Housing'!E39>0,'Cow Housing'!E39,0) -> 0 | Y11: =IF('Cow Housing'!F39>0,'Cow Housing'!F39,0) -> 0 | Z11: =IF('Cow Housing'!E40>0,'Cow Housing'!E40,0) -> 0 | AA11: =IF('Cow Housing'!F40>0,'Cow Housing'!F40,0) -> 0 | AB11: =IF('Cow Housing'!E41>0,'Cow Housing'!E41,0) -> 0 | AC11: =IF('Cow Housing'!F41>0,'Cow Housing'!F41,0) -> 0 | AD11: =IF('Cow Housing'!E42>0,'Cow Housing'!E42,0) -> 0 | AE11: =IF('Cow Housing'!F42>0,'Cow Housing'!F42,0) -> 0 | AF11: =IF('Cow Housing'!E43>0,'Cow Housing'!E43,0) -> 0 | AG11: =IF('Cow Housing'!F43>0,'Cow Housing'!F43,0) -> 0 | AH11: =IF('Cow Housing'!E44>0,'Cow Housing'!E44,0) -> 0 | AI11: =IF('Cow Housing'!F44>0,'Cow Housing'!F44,0) -> 0 | AJ11: =IF('Cow Housing'!E45>0,'Cow Housing'!E45,0) -> 0 | AK11: =IF('Cow Housing'!F45>0,'Cow Housing'!F45,0) -> 0 | AL11: =IF('Cow Housing'!E46>0,'Cow Housing'!E46,0) -> 0 | AM11: =IF('Cow Housing'!F46>0,'Cow Housing'!F46,0) -> 0 | AN11: =IF('Cow Housing'!E47>0,'Cow Housing'!E47,0) -> 0 | AO11: =IF('Cow Housing'!F47>0,'Cow Housing'!F47,0) -> 0 | AP11: =IF('Cow Housing'!E48>0,'Cow Housing'!E48,0) -> 0 | AQ11: =IF('Cow Housing'!F48>0,'Cow Housing'!F48,0) -> 0
A12: Substances | B12: CAS# | C12: Volatiles (lb/lb VOC)* | D12: LB/HR | E12: LB/YR | F12: LB/HR | G12: LB/YR | H12: LB/HR | I12: LB/YR | J12: LB/HR | K12: LB/YR | L12: LB/HR | M12: LB/YR | N12: LB/HR | O12: LB/YR | P12: LB/HR | Q12: LB/YR | R12: LB/HR | S12: LB/YR | T12: LB/HR | U12: LB/YR | V12: LB/HR | W12: LB/YR | X12: LB/HR | Y12: LB/YR | Z12: LB/HR | AA12: LB/YR | AB12: LB/HR | AC12: LB/YR | AD12: LB/HR | AE12: LB/YR | AF12: LB/HR | AG12: LB/YR | AH12: LB/HR | AI12: LB/YR | AJ12: LB/HR | AK12: LB/YR | AL12: LB/HR | AM12: LB/YR | AN12: LB/HR | AO12: LB/YR | AP12: LB/HR | AQ12: LB/YR
A15: 1,1,2,2-Tetrachloroethane | B15: 79345 | C15: 8.73e-06 | D15: =$D$11*C15 -> 0 | E15: =$E$11*C15 -> 0 | F15: =$F$11*C15 -> 0 | G15: =$G$11*C15 -> 0 | H15: =$H$11*C15 -> 0 | I15: =$I$11*C15 -> 0 | J15: =$J$11*C15 -> 0 | K15: =$K$11*C15 -> 0 | L15: =$L$11*C15 -> 0 | M15: =$M$11*C15 -> 0 | N15: =$N$11*C15 -> 0 | O15: =$O$11*C15 -> 0 | P15: =$P$11*C15 -> 0 | Q15: =$Q$11*C15 -> 0 | R15: =$R$11*C15 -> 0 | S15: =$S$11*C15 -> 0 | T15: =$T$11*C15 -> 0 | U15: =$U$11*C15 -> 0 | V15: =$V$11*C15 -> 0 | W15: =$W$11*C15 -> 0 | X15: =$X$11*C15 -> 0 | Y15: =$Y$11*C15 -> 0 | Z15: =$Z$11*C15 -> 0 | AA15: =$AA$11*C15 -> 0 | AB15: =$AB$11*C15 -> 0 | AC15: =$AC$11*C15 -> 0 | AD15: =$AD$11*C15 -> 0 | AE15: =$AE$11*C15 -> 0 | AF15: =$AF$11*C15 -> 0 | AG15: =$AG$11*C15 -> 0 | AH15: =$AH$11*C15 -> 0 | AI15: =$AI$11*C15 -> 0 | AJ15: =$AJ$11*C15 -> 0 | AK15: =$AK$11*C15 -> 0 | AL15: =$AL$11*C15 -> 0 | AM15: =$AM$11*C15 -> 0 | AN15: =$AN$11*C15 -> 0 | AO15: =$AO$11*C15 -> 0 | AP15: =$AP$11*C15 -> 0 | AQ15: =$AQ$11*C15 -> 0
A16: 1,1,2-Trichloroethane | B16: 79005 | C16: 0.000226 | D16: =$D$11*C16 -> 0 | E16: =$E$11*C16 -> 0 | F16: =$F$11*C16 -> 0 | G16: =$G$11*C16 -> 0 | H16: =$H$11*C16 -> 0 | I16: =$I$11*C16 -> 0 | J16: =$J$11*C16 -> 0 | K16: =$K$11*C16 -> 0 | L16: =$L$11*C16 -> 0 | M16: =$M$11*C16 -> 0 | N16: =$N$11*C16 -> 0 | O16: =$O$11*C16 -> 0 | P16: =$P$11*C16 -> 0 | Q16: =$Q$11*C16 -> 0 | R16: =$R$11*C16 -> 0 | S16: =$S$11*C16 -> 0 | T16: =$T$11*C16 -> 0 | U16: =$U$11*C16 -> 0 | V16: =$V$11*C16 -> 0 | W16: =$W$11*C16 -> 0 | X16: =$X$11*C16 -> 0 | Y16: =$Y$11*C16 -> 0 | Z16: =$Z$11*C16 -> 0 | AA16: =$AA$11*C16 -> 0 | AB16: =$AB$11*C16 -> 0 | AC16: =$AC$11*C16 -> 0 | AD16: =$AD$11*C16 -> 0 | AE16: =$AE$11*C16 -> 0 | AF16: =$AF$11*C16 -> 0 | AG16: =$AG$11*C16 -> 0 | AH16: =$AH$11*C16 -> 0 | AI16: =$AI$11*C16 -> 0 | AJ16: =$AJ$11*C16 -> 0 | AK16: =$AK$11*C16 -> 0 | AL16: =$AL$11*C16 -> 0 | AM16: =$AM$11*C16 -> 0 | AN16: =$AN$11*C16 -> 0 | AO16: =$AO$11*C16 -> 0 | AP16: =$AP$11*C16 -> 0 | AQ16: =$AQ$11*C16 -> 0
A17: 1,2,3-Trichloropropane | B17: 96184 | C17: 0.000276 | D17: 0 | E17: 0 | F17: 0 | G17: 0 | H17: 0 | I17: 0 | J17: 0 | K17: 0 | L17: 0 | M17: 0 | N17: 0 | O17: 0 | P17: 0 | Q17: 0 | R17: 0 | S17: 0 | T17: 0 | U17: 0 | V17: 0 | W17: 0 | X17: 0 | Y17: 0 | Z17: 0 | AA17: 0 | AB17: 0 | AC17: 0 | AD17: 0 | AE17: 0 | AF17: 0 | AG17: 0 | AH17: 0 | AI17: 0 | AJ17: 0 | AK17: 0 | AL17: 0 | AM17: 0 | AN17: 0 | AO17: 0 | AP17: 0 | AQ17: 0
A18: 1,2,4-Trichlorobenzene | B18: 120821 | C18: 0.000779 | D18: 0 | E18: 0 | F18: 0 | G18: 0 | H18: 0 | I18: 0 | J18: 0 | K18: 0 | L18: 0 | M18: 0 | N18: 0 | O18: 0 | P18: 0 | Q18: 0 | R18: 0 | S18: 0 | T18: 0 | U18: 0 | V18: 0 | W18: 0 | X18: 0 | Y18: 0 | Z18: 0 | AA18: 0 | AB18: 0 | AC18: 0 | AD18: 0 | AE18: 0 | AF18: 0 | AG18: 0 | AH18: 0 | AI18: 0 | AJ18: 0 | AK18: 0 | AL18: 0 | AM18: 0 | AN18: 0 | AO18: 0 | AP18: 0 | AQ18: 0
A19: 1,2-Dibromo-3-chloropropane | B19: 96128 | C19: 4.94e-05 | D19: 0 | E19: 0 | F19: 0 | G19: 0 | H19: 0 | I19: 0 | J19: 0 | K19: 0 | L19: 0 | M19: 0 | N19: 0 | O19: 0 | P19: 0 | Q19: 0 | R19: 0 | S19: 0 | T19: 0 | U19: 0 | V19: 0 | W19: 0 | X19: 0 | Y19: 0 | Z19: 0 | AA19: 0 | AB19: 0 | AC19: 0 | AD19: 0 | AE19: 0 | AF19: 0 | AG19: 0 | AH19: 0 | AI19: 0 | AJ19: 0 | AK19: 0 | AL19: 0 | AM19: 0 | AN19: 0 | AO19: 0 | AP19: 0 | AQ19: 0
A20: 1,2-Dichlorobenzene | B20: 95501 | C20: 0.000548 | D20: 0 | E20: 0 | F20: 0 | G20: 0 | H20: 0 | I20: 0 | J20: 0 | K20: 0 | L20: 0 | M20: 0 | N20: 0 | O20: 0 | P20: 0 | Q20: 0 | R20: 0 | S20: 0 | T20: 0 | U20: 0 | V20: 0 | W20: 0 | X20: 0 | Y20: 0 | Z20: 0 | AA20: 0 | AB20: 0 | AC20: 0 | AD20: 0 | AE20: 0 | AF20: 0 | AG20: 0 | AH20: 0 | AI20: 0 | AJ20: 0 | AK20: 0 | AL20: 0 | AM20: 0 | AN20: 0 | AO20: 0 | AP20: 0 | AQ20: 0
A21: 1,3-Dichlorobenzene | B21: 541731 | C21: 0.00049 | D21: 0 | E21: 0 | F21: 0 | G21: 0 | H21: 0 | I21: 0 | J21: 0 | K21: 0 | L21: 0 | M21: 0 | N21: 0 | O21: 0 | P21: 0 | Q21: 0 | R21: 0 | S21: 0 | T21: 0 | U21: 0 | V21: 0 | W21: 0 | X21: 0 | Y21: 0 | Z21: 0 | AA21: 0 | AB21: 0 | AC21: 0 | AD21: 0 | AE21: 0 | AF21: 0 | AG21: 0 | AH21: 0 | AI21: 0 | AJ21: 0 | AK21: 0 | AL21: 0 | AM21: 0 | AN21: 0 | AO21: 0 | AP21: 0 | AQ21: 0
A22: 1,4 Dioxane | B22: 123911 | C22: 0.00141 | D22: 0 | E22: 0 | F22: 0 | G22: 0 | H22: 0 | I22: 0 | J22: 0 | K22: 0 | L22: 0 | M22: 0 | N22: 0 | O22: 0 | P22: 0 | Q22: 0 | R22: 0 | S22: 0 | T22: 0 | U22: 0 | V22: 0 | W22: 0 | X22: 0 | Y22: 0 | Z22: 0 | AA22: 0 | AB22: 0 | AC22: 0 | AD22: 0 | AE22: 0 | AF22: 0 | AG22: 0 | AH22: 0 | AI22: 0 | AJ22: 0 | AK22: 0 | AL22: 0 | AM22: 0 | AN22: 0 | AO22: 0 | AP22: 0 | AQ22: 0
A23: 1,4-Dichlorobenzene | B23: 106467 | C23: 0.000519 | D23: 0 | E23: 0 | F23: 0 | G23: 0 | H23: 0 | I23: 0 | J23: 0 | K23: 0 | L23: 0 | M23: 0 | N23: 0 | O23: 0 | P23: 0 | Q23: 0 | R23: 0 | S23: 0 | T23: 0 | U23: 0 | V23: 0 | W23: 0 | X23: 0 | Y23: 0 | Z23: 0 | AA23: 0 | AB23: 0 | AC23: 0 | AD23: 0 | AE23: 0 | AF23: 0 | AG23: 0 | AH23: 0 | AI23: 0 | AJ23: 0 | AK23: 0 | AL23: 0 | AM23: 0 | AN23: 0 | AO23: 0 | AP23: 0 | AQ23: 0
A24: Acetaldehyde | B24: 75070 | C24: 0.00241 | D24: 0 | E24: 0 | F24: 0 | G24: 0 | H24: 0 | I24: 0 | J24: 0 | K24: 0 | L24: 0 | M24: 0 | N24: 0 | O24: 0 | P24: 0 | Q24: 0 | R24: 0 | S24: 0 | T24: 0 | U24: 0 | V24: 0 | W24: 0 | X24: 0 | Y24: 0 | Z24: 0 | AA24: 0 | AB24: 0 | AC24: 0 | AD24: 0 | AE24: 0 | AF24: 0 | AG24: 0 | AH24: 0 | AI24: 0 | AJ24: 0 | AK24: 0 | AL24: 0 | AM24: 0 | AN24: 0 | AO24: 0 | AP24: 0 | AQ24: 0
A25: Acrylonitrile | B25: 107131 | C25: 0.000243 | D25: 0 | E25: 0 | F25: 0 | G25: 0 | H25: 0 | I25: 0 | J25: 0 | K25: 0 | L25: 0 | M25: 0 | N25: 0 | O25: 0 | P25: 0 | Q25: 0 | R25: 0 | S25: 0 | T25: 0 | U25: 0 | V25: 0 | W25: 0 | X25: 0 | Y25: 0 | Z25: 0 | AA25: 0 | AB25: 0 | AC25: 0 | AD25: 0 | AE25: 0 | AF25: 0 | AG25: 0 | AH25: 0 | AI25: 0 | AJ25: 0 | AK25: 0 | AL25: 0 | AM25: 0 | AN25: 0 | AO25: 0 | AP25: 0 | AQ25: 0
A26: Benzene | B26: 71432 | C26: 0.000319 | D26: 0 | E26: 0 | F26: 0 | G26: 0 | H26: 0 | I26: 0 | J26: 0 | K26: 0 | L26: 0 | M26: 0 | N26: 0 | O26: 0 | P26: 0 | Q26: 0 | R26: 0 | S26: 0 | T26: 0 | U26: 0 | V26: 0 | W26: 0 | X26: 0 | Y26: 0 | Z26: 0 | AA26: 0 | AB26: 0 | AC26: 0 | AD26: 0 | AE26: 0 | AF26: 0 | AG26: 0 | AH26: 0 | AI26: 0 | AJ26: 0 | AK26: 0 | AL26: 0 | AM26: 0 | AN26: 0 | AO26: 0 | AP26: 0 | AQ26: 0
A27: Benzyl chloride | B27: 100447 | C27: 0.000289 | D27: 0 | E27: 0 | F27: 0 | G27: 0 | H27: 0 | I27: 0 | J27: 0 | K27: 0 | L27: 0 | M27: 0 | N27: 0 | O27: 0 | P27: 0 | Q27: 0 | R27: 0 | S27: 0 | T27: 0 | U27: 0 | V27: 0 | W27: 0 | X27: 0 | Y27: 0 | Z27: 0 | AA27: 0 | AB27: 0 | AC27: 0 | AD27: 0 | AE27: 0 | AF27: 0 | AG27: 0 | AH27: 0 | AI27: 0 | AJ27: 0 | AK27: 0 | AL27: 0 | AM27: 0 | AN27: 0 | AO27: 0 | AP27: 0 | AQ27: 0
A28: Butyraldehyde | B28: 123728 | C28: 0.000114 | D28: 0 | E28: 0 | F28: 0 | G28: 0 | H28: 0 | I28: 0 | J28: 0 | K28: 0 | L28: 0 | M28: 0 | N28: 0 | O28: 0 | P28: 0 | Q28: 0 | R28: 0 | S28: 0 | T28: 0 | U28: 0 | V28: 0 | W28: 0 | X28: 0 | Y28: 0 | Z28: 0 | AA28: 0 | AB28: 0 | AC28: 0 | AD28: 0 | AE28: 0 | AF28: 0 | AG28: 0 | AH28: 0 | AI28: 0 | AJ28: 0 | AK28: 0 | AL28: 0 | AM28: 0 | AN28: 0 | AO28: 0 | AP28: 0 | AQ28: 0
A29: Carbon Disulfide | B29: 75150 | C29: 0.00249 | D29: 0 | E29: 0 | F29: 0 | G29: 0 | H29: 0 | I29: 0 | J29: 0 | K29: 0 | L29: 0 | M29: 0 | N29: 0 | O29: 0 | P29: 0 | Q29: 0 | R29: 0 | S29: 0 | T29: 0 | U29: 0 | V29: 0 | W29: 0 | X29: 0 | Y29: 0 | Z29: 0 | AA29: 0 | AB29: 0 | AC29: 0 | AD29: 0 | AE29: 0 | AF29: 0 | AG29: 0 | AH29: 0 | AI29: 0 | AJ29: 0 | AK29: 0 | AL29: 0 | AM29: 0 | AN29: 0 | AO29: 0 | AP29: 0 | AQ29: 0
A30: Carbon tetrachloride | B30: 56235 | C30: 5.87e-05 | D30: 0 | E30: 0 | F30: 0 | G30: 0 | H30: 0 | I30: 0 | J30: 0 | K30: 0 | L30: 0 | M30: 0 | N30: 0 | O30: 0 | P30: 0 | Q30: 0 | R30: 0 | S30: 0 | T30: 0 | U30: 0 | V30: 0 | W30: 0 | X30: 0 | Y30: 0 | Z30: 0 | AA30: 0 | AB30: 0 | AC30: 0 | AD30: 0 | AE30: 0 | AF30: 0 | AG30: 0 | AH30: 0 | AI30: 0 | AJ30: 0 | AK30: 0 | AL30: 0 | AM30: 0 | AN30: 0 | AO30: 0 | AP30: 0 | AQ30: 0
A31: Chlorobenzene | B31: 108907 | C31: 0.000272 | D31: 0 | E31: 0 | F31: 0 | G31: 0 | H31: 0 | I31: 0 | J31: 0 | K31: 0 | L31: 0 | M31: 0 | N31: 0 | O31: 0 | P31: 0 | Q31: 0 | R31: 0 | S31: 0 | T31: 0 | U31: 0 | V31: 0 | W31: 0 | X31: 0 | Y31: 0 | Z31: 0 | AA31: 0 | AB31: 0 | AC31: 0 | AD31: 0 | AE31: 0 | AF31: 0 | AG31: 0 | AH31: 0 | AI31: 0 | AJ31: 0 | AK31: 0 | AL31: 0 | AM31: 0 | AN31: 0 | AO31: 0 | AP31: 0 | AQ31: 0
A32: Chloroform | B32: 67663 | C32: 0.000131 | D32: 0 | E32: 0 | F32: 0 | G32: 0 | H32: 0 | I32: 0 | J32: 0 | K32: 0 | L32: 0 | M32: 0 | N32: 0 | O32: 0 | P32: 0 | Q32: 0 | R32: 0 | S32: 0 | T32: 0 | U32: 0 | V32: 0 | W32: 0 | X32: 0 | Y32: 0 | Z32: 0 | AA32: 0 | AB32: 0 | AC32: 0 | AD32: 0 | AE32: 0 | AF32: 0 | AG32: 0 | AH32: 0 | AI32: 0 | AJ32: 0 | AK32: 0 | AL32: 0 | AM32: 0 | AN32: 0 | AO32: 0 | AP32: 0 | AQ32: 0
A33: Chloromethane | B33: 74873 | C33: 0.000793 | D33: 0 | E33: 0 | F33: 0 | G33: 0 | H33: 0 | I33: 0 | J33: 0 | K33: 0 | L33: 0 | M33: 0 | N33: 0 | O33: 0 | P33: 0 | Q33: 0 | R33: 0 | S33: 0 | T33: 0 | U33: 0 | V33: 0 | W33: 0 | X33: 0 | Y33: 0 | Z33: 0 | AA33: 0 | AB33: 0 | AC33: 0 | AD33: 0 | AE33: 0 | AF33: 0 | AG33: 0 | AH33: 0 | AI33: 0 | AJ33: 0 | AK33: 0 | AL33: 0 | AM33: 0 | AN33: 0 | AO33: 0 | AP33: 0 | AQ33: 0
A34: Crotonaldehyde | B34: 4170303 | C34: 0.000141 | D34: 0 | E34: 0 | F34: 0 | G34: 0 | H34: 0 | I34: 0 | J34: 0 | K34: 0 | L34: 0 | M34: 0 | N34: 0 | O34: 0 | P34: 0 | Q34: 0 | R34: 0 | S34: 0 | T34: 0 | U34: 0 | V34: 0 | W34: 0 | X34: 0 | Y34: 0 | Z34: 0 | AA34: 0 | AB34: 0 | AC34: 0 | AD34: 0 | AE34: 0 | AF34: 0 | AG34: 0 | AH34: 0 | AI34: 0 | AJ34: 0 | AK34: 0 | AL34: 0 | AM34: 0 | AN34: 0 | AO34: 0 | AP34: 0 | AQ34: 0
A35: Cyclohexane | B35: 110827 | C35: 0.00683 | D35: 0 | E35: 0 | F35: 0 | G35: 0 | H35: 0 | I35: 0 | J35: 0 | K35: 0 | L35: 0 | M35: 0 | N35: 0 | O35: 0 | P35: 0 | Q35: 0 | R35: 0 | S35: 0 | T35: 0 | U35: 0 | V35: 0 | W35: 0 | X35: 0 | Y35: 0 | Z35: 0 | AA35: 0 | AB35: 0 | AC35: 0 | AD35: 0 | AE35: 0 | AF35: 0 | AG35: 0 | AH35: 0 | AI35: 0 | AJ35: 0 | AK35: 0 | AL35: 0 | AM35: 0 | AN35: 0 | AO35: 0 | AP35: 0 | AQ35: 0
A36: Ethyl Chloride | B36: 75003 | C36: 0.000239 | D36: 0 | E36: 0 | F36: 0 | G36: 0 | H36: 0 | I36: 0 | J36: 0 | K36: 0 | L36: 0 | M36: 0 | N36: 0 | O36: 0 | P36: 0 | Q36: 0 | R36: 0 | S36: 0 | T36: 0 | U36: 0 | V36: 0 | W36: 0 | X36: 0 | Y36: 0 | Z36: 0 | AA36: 0 | AB36: 0 | AC36: 0 | AD36: 0 | AE36: 0 | AF36: 0 | AG36: 0 | AH36: 0 | AI36: 0 | AJ36: 0 | AK36: 0 | AL36: 0 | AM36: 0 | AN36: 0 | AO36: 0 | AP36: 0 | AQ36: 0
A37: Ethylbenzene | B37: 100414 | C37: 0.000347 | D37: 0 | E37: 0 | F37: 0 | G37: 0 | H37: 0 | I37: 0 | J37: 0 | K37: 0 | L37: 0 | M37: 0 | N37: 0 | O37: 0 | P37: 0 | Q37: 0 | R37: 0 | S37: 0 | T37: 0 | U37: 0 | V37: 0 | W37: 0 | X37: 0 | Y37: 0 | Z37: 0 | AA37: 0 | AB37: 0 | AC37: 0 | AD37: 0 | AE37: 0 | AF37: 0 | AG37: 0 | AH37: 0 | AI37: 0 | AJ37: 0 | AK37: 0 | AL37: 0 | AM37: 0 | AN37: 0 | AO37: 0 | AP37: 0 | AQ37: 0
A38: Ethylene Dibromide (EDB) | B38: 106934 | C38: 0.000306 | D38: 0 | E38: 0 | F38: 0 | G38: 0 | H38: 0 | I38: 0 | J38: 0 | K38: 0 | L38: 0 | M38: 0 | N38: 0 | O38: 0 | P38: 0 | Q38: 0 | R38: 0 | S38: 0 | T38: 0 | U38: 0 | V38: 0 | W38: 0 | X38: 0 | Y38: 0 | Z38: 0 | AA38: 0 | AB38: 0 | AC38: 0 | AD38: 0 | AE38: 0 | AF38: 0 | AG38: 0 | AH38: 0 | AI38: 0 | AJ38: 0 | AK38: 0 | AL38: 0 | AM38: 0 | AN38: 0 | AO38: 0 | AP38: 0 | AQ38: 0
A39: Ethylene Dichloride (EDC) | B39: 107062 | C39: 5.89e-05 | D39: 0 | E39: 0 | F39: 0 | G39: 0 | H39: 0 | I39: 0 | J39: 0 | K39: 0 | L39: 0 | M39: 0 | N39: 0 | O39: 0 | P39: 0 | Q39: 0 | R39: 0 | S39: 0 | T39: 0 | U39: 0 | V39: 0 | W39: 0 | X39: 0 | Y39: 0 | Z39: 0 | AA39: 0 | AB39: 0 | AC39: 0 | AD39: 0 | AE39: 0 | AF39: 0 | AG39: 0 | AH39: 0 | AI39: 0 | AJ39: 0 | AK39: 0 | AL39: 0 | AM39: 0 | AN39: 0 | AO39: 0 | AP39: 0 | AQ39: 0
A40: Formaldehyde | B40: 50000 | C40: 0.000398 | D40: 0 | E40: 0 | F40: 0 | G40: 0 | H40: 0 | I40: 0 | J40: 0 | K40: 0 | L40: 0 | M40: 0 | N40: 0 | O40: 0 | P40: 0 | Q40: 0 | R40: 0 | S40: 0 | T40: 0 | U40: 0 | V40: 0 | W40: 0 | X40: 0 | Y40: 0 | Z40: 0 | AA40: 0 | AB40: 0 | AC40: 0 | AD40: 0 | AE40: 0 | AF40: 0 | AG40: 0 | AH40: 0 | AI40: 0 | AJ40: 0 | AK40: 0 | AL40: 0 | AM40: 0 | AN40: 0 | AO40: 0 | AP40: 0 | AQ40: 0
A41: Hexane | B41: 110543 | C41: 0.000812 | D41: 0 | E41: 0 | F41: 0 | G41: 0 | H41: 0 | I41: 0 | J41: 0 | K41: 0 | L41: 0 | M41: 0 | N41: 0 | O41: 0 | P41: 0 | Q41: 0 | R41: 0 | S41: 0 | T41: 0 | U41: 0 | V41: 0 | W41: 0 | X41: 0 | Y41: 0 | Z41: 0 | AA41: 0 | AB41: 0 | AC41: 0 | AD41: 0 | AE41: 0 | AF41: 0 | AG41: 0 | AH41: 0 | AI41: 0 | AJ41: 0 | AK41: 0 | AL41: 0 | AM41: 0 | AN41: 0 | AO41: 0 | AP41: 0 | AQ41: 0
A42: Isopropyl Alchol | B42: 67630 | C42: 0.00162 | D42: 0 | E42: 0 | F42: 0 | G42: 0 | H42: 0 | I42: 0 | J42: 0 | K42: 0 | L42: 0 | M42: 0 | N42: 0 | O42: 0 | P42: 0 | Q42: 0 | R42: 0 | S42: 0 | T42: 0 | U42: 0 | V42: 0 | W42: 0 | X42: 0 | Y42: 0 | Z42: 0 | AA42: 0 | AB42: 0 | AC42: 0 | AD42: 0 | AE42: 0 | AF42: 0 | AG42: 0 | AH42: 0 | AI42: 0 | AJ42: 0 | AK42: 0 | AL42: 0 | AM42: 0 | AN42: 0 | AO42: 0 | AP42: 0 | AQ42: 0
A43: Isopropylbenzene (Cumene) | B43: 98828 | C43: 5.61e-05 | D43: 0 | E43: 0 | F43: 0 | G43: 0 | H43: 0 | I43: 0 | J43: 0 | K43: 0 | L43: 0 | M43: 0 | N43: 0 | O43: 0 | P43: 0 | Q43: 0 | R43: 0 | S43: 0 | T43: 0 | U43: 0 | V43: 0 | W43: 0 | X43: 0 | Y43: 0 | Z43: 0 | AA43: 0 | AB43: 0 | AC43: 0 | AD43: 0 | AE43: 0 | AF43: 0 | AG43: 0 | AH43: 0 | AI43: 0 | AJ43: 0 | AK43: 0 | AL43: 0 | AM43: 0 | AN43: 0 | AO43: 0 | AP43: 0 | AQ43: 0
A44: Methyl Ethyl Ketone (2-butanone) | B44: 78933 | C44: 0.0146 | D44: 0 | E44: 0 | F44: 0 | G44: 0 | H44: 0 | I44: 0 | J44: 0 | K44: 0 | L44: 0 | M44: 0 | N44: 0 | O44: 0 | P44: 0 | Q44: 0 | R44: 0 | S44: 0 | T44: 0 | U44: 0 | V44: 0 | W44: 0 | X44: 0 | Y44: 0 | Z44: 0 | AA44: 0 | AB44: 0 | AC44: 0 | AD44: 0 | AE44: 0 | AF44: 0 | AG44: 0 | AH44: 0 | AI44: 0 | AJ44: 0 | AK44: 0 | AL44: 0 | AM44: 0 | AN44: 0 | AO44: 0 | AP44: 0 | AQ44: 0
A45: Methyl Isobutyl Ketone | B45: 108101 | C45: 0.000709 | D45: 0 | E45: 0 | F45: 0 | G45: 0 | H45: 0 | I45: 0 | J45: 0 | K45: 0 | L45: 0 | M45: 0 | N45: 0 | O45: 0 | P45: 0 | Q45: 0 | R45: 0 | S45: 0 | T45: 0 | U45: 0 | V45: 0 | W45: 0 | X45: 0 | Y45: 0 | Z45: 0 | AA45: 0 | AB45: 0 | AC45: 0 | AD45: 0 | AE45: 0 | AF45: 0 | AG45: 0 | AH45: 0 | AI45: 0 | AJ45: 0 | AK45: 0 | AL45: 0 | AM45: 0 | AN45: 0 | AO45: 0 | AP45: 0 | AQ45: 0
A46: Styrene | B46: 100425 | C46: 0.000359 | D46: 0 | E46: 0 | F46: 0 | G46: 0 | H46: 0 | I46: 0 | J46: 0 | K46: 0 | L46: 0 | M46: 0 | N46: 0 | O46: 0 | P46: 0 | Q46: 0 | R46: 0 | S46: 0 | T46: 0 | U46: 0 | V46: 0 | W46: 0 | X46: 0 | Y46: 0 | Z46: 0 | AA46: 0 | AB46: 0 | AC46: 0 | AD46: 0 | AE46: 0 | AF46: 0 | AG46: 0 | AH46: 0 | AI46: 0 | AJ46: 0 | AK46: 0 | AL46: 0 | AM46: 0 | AN46: 0 | AO46: 0 | AP46: 0 | AQ46: 0
A47: t-1,4-Dichloro-2-butene | B47: 764410 | C47: 0.000892 | D47: 0 | E47: 0 | F47: 0 | G47: 0 | H47: 0 | I47: 0 | J47: 0 | K47: 0 | L47: 0 | M47: 0 | N47: 0 | O47: 0 | P47: 0 | Q47: 0 | R47: 0 | S47: 0 | T47: 0 | U47: 0 | V47: 0 | W47: 0 | X47: 0 | Y47: 0 | Z47: 0 | AA47: 0 | AB47: 0 | AC47: 0 | AD47: 0 | AE47: 0 | AF47: 0 | AG47: 0 | AH47: 0 | AI47: 0 | AJ47: 0 | AK47: 0 | AL47: 0 | AM47: 0 | AN47: 0 | AO47: 0 | AP47: 0 | AQ47: 0
A48: Toluene | B48: 108883 | C48: 0.00107 | D48: 0 | E48: 0 | F48: 0 | G48: 0 | H48: 0 | I48: 0 | J48: 0 | K48: 0 | L48: 0 | M48: 0 | N48: 0 | O48: 0 | P48: 0 | Q48: 0 | R48: 0 | S48: 0 | T48: 0 | U48: 0 | V48: 0 | W48: 0 | X48: 0 | Y48: 0 | Z48: 0 | AA48: 0 | AB48: 0 | AC48: 0 | AD48: 0 | AE48: 0 | AF48: 0 | AG48: 0 | AH48: 0 | AI48: 0 | AJ48: 0 | AK48: 0 | AL48: 0 | AM48: 0 | AN48: 0 | AO48: 0 | AP48: 0 | AQ48: 0
A49: Trichlorofluoromethane* | B49: 75694 | C49: 1.08e-07 | D49: 0 | E49: 0 | F49: 0 | G49: 0 | H49: 0 | I49: 0 | J49: 0 | K49: 0 | L49: 0 | M49: 0 | N49: 0 | O49: 0 | P49: 0 | Q49: 0 | R49: 0 | S49: 0 | T49: 0 | U49: 0 | V49: 0 | W49: 0 | X49: 0 | Y49: 0 | Z49: 0 | AA49: 0 | AB49: 0 | AC49: 0 | AD49: 0 | AE49: 0 | AF49: 0 | AG49: 0 | AH49: 0 | AI49: 0 | AJ49: 0 | AK49: 0 | AL49: 0 | AM49: 0 | AN49: 0 | AO49: 0 | AP49: 0 | AQ49: 0
A50: Vinyl acetate | B50: 108054 | C50: 0.00197 | D50: 0 | E50: 0 | F50: 0 | G50: 0 | H50: 0 | I50: 0 | J50: 0 | K50: 0 | L50: 0 | M50: 0 | N50: 0 | O50: 0 | P50: 0 | Q50: 0 | R50: 0 | S50: 0 | T50: 0 | U50: 0 | V50: 0 | W50: 0 | X50: 0 | Y50: 0 | Z50: 0 | AA50: 0 | AB50: 0 | AC50: 0 | AD50: 0 | AE50: 0 | AF50: 0 | AG50: 0 | AH50: 0 | AI50: 0 | AJ50: 0 | AK50: 0 | AL50: 0 | AM50: 0 | AN50: 0 | AO50: 0 | AP50: 0 | AQ50: 0
A51: Xylenes | B51: 1330207 | C51: 0.0018 | D51: 0 | E51: 0 | F51: 0 | G51: 0 | H51: 0 | I51: 0 | J51: 0 | K51: 0 | L51: 0 | M51: 0 | N51: 0 | O51: 0 | P51: 0 | Q51: 0 | R51: 0 | S51: 0 | T51: 0 | U51: 0 | V51: 0 | W51: 0 | X51: 0 | Y51: 0 | Z51: 0 | AA51: 0 | AB51: 0 | AC51: 0 | AD51: 0 | AE51: 0 | AF51: 0 | AG51: 0 | AH51: 0 | AI51: 0 | AJ51: 0 | AK51: 0 | AL51: 0 | AM51: 0 | AN51: 0 | AO51: 0 | AP51: 0 | AQ51: 0
A54: References:
A55: *Emission factors are derived from the District's evaluation of dairy research studies conducted by California colleges and universities.
A56: Pollutants required for toxic reporting. Current as of update date.
A57: (Does not include emissions from Lagoons or enteric emissions from cows)

Sheet Dairy Miscellaneous 3
A1: Agricultural Miscellaneous Emissions from Dairy Operations (Cow Housing)
A2: Use this spreadsheet to characterize the miscellanous emissions from Dairy sources when VOC rates are known. VOC emission rates linked to Cow Housing worksheet. No entries required on this worksheet. Zero and null entries will be highlighted in red after entry.
A3: Author or updater | B3: Matthew Cegielski
A4: Last Update | B4: 2025-09-29
A5: Facility: | B5: ='Cow Housing'!C4 -> Happy Cows
A6: ID#: | B6: ='Cow Housing'!C5 -> C-7777
A7: Project #: | B7: ='Cow Housing'!C6 -> C-3333
A8: Formula | D8: ='Cow Housing'!$B$49 -> 0 | F8: ='Cow Housing'!$B50 -> 0 | H8: ='Cow Housing'!$B51 -> 0 | J8: ='Cow Housing'!$B$52 -> 0 | L8: ='Cow Housing'!$B$53 -> 0 | N8: ='Cow Housing'!$B$54 -> 0 | P8: ='Cow Housing'!$B$55 -> 0 | R8: ='Cow Housing'!$B$56 -> 0 | T8: ='Cow Housing'!$B$57 -> 0 | V8: ='Cow Housing'!$B$58 -> 0 | X8: ='Cow Housing'!$B$59 -> 0 | Z8: ='Cow Housing'!$B$60 -> 0 | AB8: ='Cow Housing'!$B$61 -> 0 | AD8: ='Cow Housing'!$B$62 -> 0 | AF8: ='Cow Housing'!$B$63 -> 0 | AH8: ='Cow Housing'!$B$64 -> 0 | AJ8: ='Cow Housing'!$B$65 -> 0 | AL8: ='Cow Housing'!$B$66 -> 0 | AN8: ='Cow Housing'!$B$67 -> 0 | AP8: ='Cow Housing'!$B$68 -> 0
A9: Emissions are calculated by the multiplication of the VOC Rates, and Emission Factors.
D10: lb/hr | E10: lb/yr | F10: lb/hr | G10: lb/yr | H10: lb/hr | I10: lb/yr | J10: lb/hr | K10: lb/yr | L10: lb/hr | M10: lb/yr | N10: lb/hr | O10: lb/yr | P10: lb/hr | Q10: lb/yr | R10: lb/hr | S10: lb/yr | T10: lb/hr | U10: lb/yr | V10: lb/hr | W10: lb/yr | X10: lb/hr | Y10: lb/yr | Z10: lb/hr | AA10: lb/yr | AB10: lb/hr | AC10: lb/yr | AD10: lb/hr | AE10: lb/yr | AF10: lb/hr | AG10: lb/yr | AH10: lb/hr | AI10: lb/yr | AJ10: lb/hr | AK10: lb/yr | AL10: lb/hr | AM10: lb/yr | AN10: lb/hr | AO10: lb/yr | AP10: lb/hr | AQ10: lb/yr
A11: VOC Emission Rates | D11: =IF('Cow Housing'!E49>0,'Cow Housing'!E49,0) -> 0 | E11: =IF('Cow Housing'!F49>0,'Cow Housing'!F49,0) -> 0 | F11: =IF('Cow Housing'!E50>0,'Cow Housing'!E50,0) -> 0 | G11: =IF('Cow Housing'!F50>0,'Cow Housing'!F50,0) -> 0 | H11: =IF('Cow Housing'!E51>0,'Cow Housing'!E51,0) -> 0 | I11: =IF('Cow Housing'!F51>0,'Cow Housing'!F51,0) -> 0 | J11: =IF('Cow Housing'!E52>0,'Cow Housing'!E52,0) -> 0 | K11: =IF('Cow Housing'!F52>0,'Cow Housing'!F52,0) -> 0 | L11: =IF('Cow Housing'!E53>0,'Cow Housing'!E53,0) -> 0 | M11: =IF('Cow Housing'!F53>0,'Cow Housing'!F53,0) -> 0 | N11: =IF('Cow Housing'!E54>0,'Cow Housing'!E54,0) -> 0 | O11: =IF('Cow Housing'!F54>0,'Cow Housing'!F54,0) -> 0 | P11: =IF('Cow Housing'!E55>0,'Cow Housing'!E55,0) -> 0 | Q11: =IF('Cow Housing'!F55>0,'Cow Housing'!F55,0) -> 0 | R11: =IF('Cow Housing'!E56>0,'Cow Housing'!E56,0) -> 0 | S11: =IF('Cow Housing'!F56>0,'Cow Housing'!F56,0) -> 0 | T11: =IF('Cow Housing'!E57>0,'Cow Housing'!E57,0) -> 0 | U11: =IF('Cow Housing'!F57>0,'Cow Housing'!F57,0) -> 0 | V11: =IF('Cow Housing'!E58>0,'Cow Housing'!E58,0) -> 0 | W11: =IF('Cow Housing'!F58>0,'Cow Housing'!F58,0) -> 0 | X11: =IF('Cow Housing'!E59>0,'Cow Housing'!E59,0) -> 0 | Y11: =IF('Cow Housing'!F59>0,'Cow Housing'!F59,0) -> 0 | Z11: =IF('Cow Housing'!E60>0,'Cow Housing'!E60,0) -> 0 | AA11: =IF('Cow Housing'!F60>0,'Cow Housing'!F60,0) -> 0 | AB11: =IF('Cow Housing'!E61>0,'Cow Housing'!E61,0) -> 0 | AC11: =IF('Cow Housing'!F61>0,'Cow Housing'!F61,0) -> 0 | AD11: =IF('Cow Housing'!E62>0,'Cow Housing'!E62,0) -> 0 | AE11: =IF('Cow Housing'!F62>0,'Cow Housing'!F62,0) -> 0 | AF11: =IF('Cow Housing'!E63>0,'Cow Housing'!E63,0) -> 0 | AG11: =IF('Cow Housing'!F63>0,'Cow Housing'!F63,0) -> 0 | AH11: =IF('Cow Housing'!E64>0,'Cow Housing'!E64,0) -> 0 | AI11: =IF('Cow Housing'!F64>0,'Cow Housing'!F64,0) -> 0 | AJ11: =IF('Cow Housing'!E65>0,'Cow Housing'!E65,0) -> 0 | AK11: =IF('Cow Housing'!F65>0,'Cow Housing'!F65,0) -> 0 | AL11: =IF('Cow Housing'!E66>0,'Cow Housing'!E66,0) -> 0 | AM11: =IF('Cow Housing'!F66>0,'Cow Housing'!F66,0) -> 0 | AN11: =IF('Cow Housing'!E67>0,'Cow Housing'!E67,0) -> 0 | AO11: =IF('Cow Housing'!F67>0,'Cow Housing'!F67,0) -> 0 | AP11: =IF('Cow Housing'!E68>0,'Cow Housing'!E68,0) -> 0 | AQ11: =IF('Cow Housing'!F68>0,'Cow Housing'!F68,0) -> 0
A12: Substances | B12: CAS# | C12: Volatiles (lb/lb VOC)* | D12: LB/HR | E12: LB/YR | F12: LB/HR | G12: LB/YR | H12: LB/HR | I12: LB/YR | J12: LB/HR | K12: LB/YR | L12: LB/HR | M12: LB/YR | N12: LB/HR | O12: LB/YR | P12: LB/HR | Q12: LB/YR | R12: LB/HR | S12: LB/YR | T12: LB/HR | U12: LB/YR | V12: LB/HR | W12: LB/YR | X12: LB/HR | Y12: LB/YR | Z12: LB/HR | AA12: LB/YR | AB12: LB/HR | AC12: LB/YR | AD12: LB/HR | AE12: LB/YR | AF12: LB/HR | AG12: LB/YR | AH12: LB/HR | AI12: LB/YR | AJ12: LB/HR | AK12: LB/YR | AL12: LB/HR | AM12: LB/YR | AN12: LB/HR | AO12: LB/YR | AP12: LB/HR | AQ12: LB/YR
A15: 1,1,2,2-Tetrachloroethane | B15: 79345 | C15: 8.73e-06 | D15: =$D$11*C15 -> 0 | E15: =$E$11*C15 -> 0 | F15: =$F$11*C15 -> 0 | G15: =$G$11*C15 -> 0 | H15: =$H$11*C15 -> 0 | I15: =$I$11*C15 -> 0 | J15: =$J$11*C15 -> 0 | K15: =$K$11*C15 -> 0 | L15: =$L$11*C15 -> 0 | M15: =$M$11*C15 -> 0 | N15: =$N$11*C15 -> 0 | O15: =$O$11*C15 -> 0 | P15: =$P$11*C15 -> 0 | Q15: =$Q$11*C15 -> 0 | R15: =$R$11*C15 -> 0 | S15: =$S$11*C15 -> 0 | T15: =$T$11*C15 -> 0 | U15: =$U$11*C15 -> 0 | V15: =$V$11*C15 -> 0 | W15: =$W$11*C15 -> 0 | X15: =$X$11*C15 -> 0 | Y15: =$Y$11*C15 -> 0 | Z15: =$Z$11*C15 -> 0 | AA15: =$AA$11*C15 -> 0 | AB15: =$AB$11*C15 -> 0 | AC15: =$AC$11*C15 -> 0 | AD15: =$AD$11*C15 -> 0 | AE15: =$AE$11*C15 -> 0 | AF15: =$AF$11*C15 -> 0 | AG15: =$AG$11*C15 -> 0 | AH15: =$AH$11*C15 -> 0 | AI15: =$AI$11*C15 -> 0 | AJ15: =$AJ$11*C15 -> 0 | AK15: =$AK$11*C15 -> 0 | AL15: =$AL$11*C15 -> 0 | AM15: =$AM$11*C15 -> 0 | AN15: =$AN$11*C15 -> 0 | AO15: =$AO$11*C15 -> 0 | AP15: =$AP$11*C15 -> 0 | AQ15: =$AQ$11*C15 -> 0
A16: 1,1,2-Trichloroethane | B16: 79005 | C16: 0.000226 | D16: =$D$11*C16 -> 0 | E16: =$E$11*C16 -> 0 | F16: =$F$11*C16 -> 0 | G16: =$G$11*C16 -> 0 | H16: =$H$11*C16 -> 0 | I16: =$I$11*C16 -> 0 | J16: =$J$11*C16 -> 0 | K16: =$K$11*C16 -> 0 | L16: =$L$11*C16 -> 0 | M16: =$M$11*C16 -> 0 | N16: =$N$11*C16 -> 0 | O16: =$O$11*C16 -> 0 | P16: =$P$11*C16 -> 0 | Q16: =$Q$11*C16 -> 0 | R16: =$R$11*C16 -> 0 | S16: =$S$11*C16 -> 0 | T16: =$T$11*C16 -> 0 | U16: =$U$11*C16 -> 0 | V16: =$V$11*C16 -> 0 | W16: =$W$11*C16 -> 0 | X16: =$X$11*C16 -> 0 | Y16: =$Y$11*C16 -> 0 | Z16: =$Z$11*C16 -> 0 | AA16: =$AA$11*C16 -> 0 | AB16: =$AB$11*C16 -> 0 | AC16: =$AC$11*C16 -> 0 | AD16: =$AD$11*C16 -> 0 | AE16: =$AE$11*C16 -> 0 | AF16: =$AF$11*C16 -> 0 | AG16: =$AG$11*C16 -> 0 | AH16: =$AH$11*C16 -> 0 | AI16: =$AI$11*C16 -> 0 | AJ16: =$AJ$11*C16 -> 0 | AK16: =$AK$11*C16 -> 0 | AL16: =$AL$11*C16 -> 0 | AM16: =$AM$11*C16 -> 0 | AN16: =$AN$11*C16 -> 0 | AO16: =$AO$11*C16 -> 0 | AP16: =$AP$11*C16 -> 0 | AQ16: =$AQ$11*C16 -> 0
A17: 1,2,3-Trichloropropane | B17: 96184 | C17: 0.000276 | D17: 0 | E17: 0 | F17: 0 | G17: 0 | H17: 0 | I17: 0 | J17: 0 | K17: 0 | L17: 0 | M17: 0 | N17: 0 | O17: 0 | P17: 0 | Q17: 0 | R17: 0 | S17: 0 | T17: 0 | U17: 0 | V17: 0 | W17: 0 | X17: 0 | Y17: 0 | Z17: 0 | AA17: 0 | AB17: 0 | AC17: 0 | AD17: 0 | AE17: 0 | AF17: 0 | AG17: 0 | AH17: 0 | AI17: 0 | AJ17: 0 | AK17: 0 | AL17: 0 | AM17: 0 | AN17: 0 | AO17: 0 | AP17: 0 | AQ17: 0
A18: 1,2,4-Trichlorobenzene | B18: 120821 | C18: 0.000779 | D18: 0 | E18: 0 | F18: 0 | G18: 0 | H18: 0 | I18: 0 | J18: 0 | K18: 0 | L18: 0 | M18: 0 | N18: 0 | O18: 0 | P18: 0 | Q18: 0 | R18: 0 | S18: 0 | T18: 0 | U18: 0 | V18: 0 | W18: 0 | X18: 0 | Y18: 0 | Z18: 0 | AA18: 0 | AB18: 0 | AC18: 0 | AD18: 0 | AE18: 0 | AF18: 0 | AG18: 0 | AH18: 0 | AI18: 0 | AJ18: 0 | AK18: 0 | AL18: 0 | AM18: 0 | AN18: 0 | AO18: 0 | AP18: 0 | AQ18: 0
A19: 1,2-Dibromo-3-chloropropane | B19: 96128 | C19: 4.94e-05 | D19: 0 | E19: 0 | F19: 0 | G19: 0 | H19: 0 | I19: 0 | J19: 0 | K19: 0 | L19: 0 | M19: 0 | N19: 0 | O19: 0 | P19: 0 | Q19: 0 | R19: 0 | S19: 0 | T19: 0 | U19: 0 | V19: 0 | W19: 0 | X19: 0 | Y19: 0 | Z19: 0 | AA19: 0 | AB19: 0 | AC19: 0 | AD19: 0 | AE19: 0 | AF19: 0 | AG19: 0 | AH19: 0 | AI19: 0 | AJ19: 0 | AK19: 0 | AL19: 0 | AM19: 0 | AN19: 0 | AO19: 0 | AP19: 0 | AQ19: 0
A20: 1,2-Dichlorobenzene | B20: 95501 | C20: 0.000548 | D20: 0 | E20: 0 | F20: 0 | G20: 0 | H20: 0 | I20: 0 | J20: 0 | K20: 0 | L20: 0 | M20: 0 | N20: 0 | O20: 0 | P20: 0 | Q20: 0 | R20: 0 | S20: 0 | T20: 0 | U20: 0 | V20: 0 | W20: 0 | X20: 0 | Y20: 0 | Z20: 0 | AA20: 0 | AB20: 0 | AC20: 0 | AD20: 0 | AE20: 0 | AF20: 0 | AG20: 0 | AH20: 0 | AI20: 0 | AJ20: 0 | AK20: 0 | AL20: 0 | AM20: 0 | AN20: 0 | AO20: 0 | AP20: 0 | AQ20: 0
A21: 1,3-Dichlorobenzene | B21: 541731 | C21: 0.00049 | D21: 0 | E21: 0 | F21: 0 | G21: 0 | H21: 0 | I21: 0 | J21: 0 | K21: 0 | L21: 0 | M21: 0 | N21: 0 | O21: 0 | P21: 0 | Q21: 0 | R21: 0 | S21: 0 | T21: 0 | U21: 0 | V21: 0 | W21: 0 | X21: 0 | Y21: 0 | Z21: 0 | AA21: 0 | AB21: 0 | AC21: 0 | AD21: 0 | AE21: 0 | AF21: 0 | AG21: 0 | AH21: 0 | AI21: 0 | AJ21: 0 | AK21: 0 | AL21: 0 | AM21: 0 | AN21: 0 | AO21: 0 | AP21: 0 | AQ21: 0
A22: 1,4 Dioxane | B22: 123911 | C22: 0.00141 | D22: 0 | E22: 0 | F22: 0 | G22: 0 | H22: 0 | I22: 0 | J22: 0 | K22: 0 | L22: 0 | M22: 0 | N22: 0 | O22: 0 | P22: 0 | Q22: 0 | R22: 0 | S22: 0 | T22: 0 | U22: 0 | V22: 0 | W22: 0 | X22: 0 | Y22: 0 | Z22: 0 | AA22: 0 | AB22: 0 | AC22: 0 | AD22: 0 | AE22: 0 | AF22: 0 | AG22: 0 | AH22: 0 | AI22: 0 | AJ22: 0 | AK22: 0 | AL22: 0 | AM22: 0 | AN22: 0 | AO22: 0 | AP22: 0 | AQ22: 0
A23: 1,4-Dichlorobenzene | B23: 106467 | C23: 0.000519 | D23: 0 | E23: 0 | F23: 0 | G23: 0 | H23: 0 | I23: 0 | J23: 0 | K23: 0 | L23: 0 | M23: 0 | N23: 0 | O23: 0 | P23: 0 | Q23: 0 | R23: 0 | S23: 0 | T23: 0 | U23: 0 | V23: 0 | W23: 0 | X23: 0 | Y23: 0 | Z23: 0 | AA23: 0 | AB23: 0 | AC23: 0 | AD23: 0 | AE23: 0 | AF23: 0 | AG23: 0 | AH23: 0 | AI23: 0 | AJ23: 0 | AK23: 0 | AL23: 0 | AM23: 0 | AN23: 0 | AO23: 0 | AP23: 0 | AQ23: 0
A24: Acetaldehyde | B24: 75070 | C24: 0.00241 | D24: 0 | E24: 0 | F24: 0 | G24: 0 | H24: 0 | I24: 0 | J24: 0 | K24: 0 | L24: 0 | M24: 0 | N24: 0 | O24: 0 | P24: 0 | Q24: 0 | R24: 0 | S24: 0 | T24: 0 | U24: 0 | V24: 0 | W24: 0 | X24: 0 | Y24: 0 | Z24: 0 | AA24: 0 | AB24: 0 | AC24: 0 | AD24: 0 | AE24: 0 | AF24: 0 | AG24: 0 | AH24: 0 | AI24: 0 | AJ24: 0 | AK24: 0 | AL24: 0 | AM24: 0 | AN24: 0 | AO24: 0 | AP24: 0 | AQ24: 0
A25: Acrylonitrile | B25: 107131 | C25: 0.000243 | D25: 0 | E25: 0 | F25: 0 | G25: 0 | H25: 0 | I25: 0 | J25: 0 | K25: 0 | L25: 0 | M25: 0 | N25: 0 | O25: 0 | P25: 0 | Q25: 0 | R25: 0 | S25: 0 | T25: 0 | U25: 0 | V25: 0 | W25: 0 | X25: 0 | Y25: 0 | Z25: 0 | AA25: 0 | AB25: 0 | AC25: 0 | AD25: 0 | AE25: 0 | AF25: 0 | AG25: 0 | AH25: 0 | AI25: 0 | AJ25: 0 | AK25: 0 | AL25: 0 | AM25: 0 | AN25: 0 | AO25: 0 | AP25: 0 | AQ25: 0
A26: Benzene | B26: 71432 | C26: 0.000319 | D26: 0 | E26: 0 | F26: 0 | G26: 0 | H26: 0 | I26: 0 | J26: 0 | K26: 0 | L26: 0 | M26: 0 | N26: 0 | O26: 0 | P26: 0 | Q26: 0 | R26: 0 | S26: 0 | T26: 0 | U26: 0 | V26: 0 | W26: 0 | X26: 0 | Y26: 0 | Z26: 0 | AA26: 0 | AB26: 0 | AC26: 0 | AD26: 0 | AE26: 0 | AF26: 0 | AG26: 0 | AH26: 0 | AI26: 0 | AJ26: 0 | AK26: 0 | AL26: 0 | AM26: 0 | AN26: 0 | AO26: 0 | AP26: 0 | AQ26: 0
A27: Benzyl chloride | B27: 100447 | C27: 0.000289 | D27: 0 | E27: 0 | F27: 0 | G27: 0 | H27: 0 | I27: 0 | J27: 0 | K27: 0 | L27: 0 | M27: 0 | N27: 0 | O27: 0 | P27: 0 | Q27: 0 | R27: 0 | S27: 0 | T27: 0 | U27: 0 | V27: 0 | W27: 0 | X27: 0 | Y27: 0 | Z27: 0 | AA27: 0 | AB27: 0 | AC27: 0 | AD27: 0 | AE27: 0 | AF27: 0 | AG27: 0 | AH27: 0 | AI27: 0 | AJ27: 0 | AK27: 0 | AL27: 0 | AM27: 0 | AN27: 0 | AO27: 0 | AP27: 0 | AQ27: 0
A28: Butyraldehyde | B28: 123728 | C28: 0.000114 | D28: 0 | E28: 0 | F28: 0 | G28: 0 | H28: 0 | I28: 0 | J28: 0 | K28: 0 | L28: 0 | M28: 0 | N28: 0 | O28: 0 | P28: 0 | Q28: 0 | R28: 0 | S28: 0 | T28: 0 | U28: 0 | V28: 0 | W28: 0 | X28: 0 | Y28: 0 | Z28: 0 | AA28: 0 | AB28: 0 | AC28: 0 | AD28: 0 | AE28: 0 | AF28: 0 | AG28: 0 | AH28: 0 | AI28: 0 | AJ28: 0 | AK28: 0 | AL28: 0 | AM28: 0 | AN28: 0 | AO28: 0 | AP28: 0 | AQ28: 0
A29: Carbon Disulfide | B29: 75150 | C29: 0.00249 | D29: 0 | E29: 0 | F29: 0 | G29: 0 | H29: 0 | I29: 0 | J29: 0 | K29: 0 | L29: 0 | M29: 0 | N29: 0 | O29: 0 | P29: 0 | Q29: 0 | R29: 0 | S29: 0 | T29: 0 | U29: 0 | V29: 0 | W29: 0 | X29: 0 | Y29: 0 | Z29: 0 | AA29: 0 | AB29: 0 | AC29: 0 | AD29: 0 | AE29: 0 | AF29: 0 | AG29: 0 | AH29: 0 | AI29: 0 | AJ29: 0 | AK29: 0 | AL29: 0 | AM29: 0 | AN29: 0 | AO29: 0 | AP29: 0 | AQ29: 0
A30: Carbon tetrachloride | B30: 56235 | C30: 5.87e-05 | D30: 0 | E30: 0 | F30: 0 | G30: 0 | H30: 0 | I30: 0 | J30: 0 | K30: 0 | L30: 0 | M30: 0 | N30: 0 | O30: 0 | P30: 0 | Q30: 0 | R30: 0 | S30: 0 | T30: 0 | U30: 0 | V30: 0 | W30: 0 | X30: 0 | Y30: 0 | Z30: 0 | AA30: 0 | AB30: 0 | AC30: 0 | AD30: 0 | AE30: 0 | AF30: 0 | AG30: 0 | AH30: 0 | AI30: 0 | AJ30: 0 | AK30: 0 | AL30: 0 | AM30: 0 | AN30: 0 | AO30: 0 | AP30: 0 | AQ30: 0
A31: Chlorobenzene | B31: 108907 | C31: 0.000272 | D31: 0 | E31: 0 | F31: 0 | G31: 0 | H31: 0 | I31: 0 | J31: 0 | K31: 0 | L31: 0 | M31: 0 | N31: 0 | O31: 0 | P31: 0 | Q31: 0 | R31: 0 | S31: 0 | T31: 0 | U31: 0 | V31: 0 | W31: 0 | X31: 0 | Y31: 0 | Z31: 0 | AA31: 0 | AB31: 0 | AC31: 0 | AD31: 0 | AE31: 0 | AF31: 0 | AG31: 0 | AH31: 0 | AI31: 0 | AJ31: 0 | AK31: 0 | AL31: 0 | AM31: 0 | AN31: 0 | AO31: 0 | AP31: 0 | AQ31: 0
A32: Chloroform | B32: 67663 | C32: 0.000131 | D32: 0 | E32: 0 | F32: 0 | G32: 0 | H32: 0 | I32: 0 | J32: 0 | K32: 0 | L32: 0 | M32: 0 | N32: 0 | O32: 0 | P32: 0 | Q32: 0 | R32: 0 | S32: 0 | T32: 0 | U32: 0 | V32: 0 | W32: 0 | X32: 0 | Y32: 0 | Z32: 0 | AA32: 0 | AB32: 0 | AC32: 0 | AD32: 0 | AE32: 0 | AF32: 0 | AG32: 0 | AH32: 0 | AI32: 0 | AJ32: 0 | AK32: 0 | AL32: 0 | AM32: 0 | AN32: 0 | AO32: 0 | AP32: 0 | AQ32: 0
A33: Chloromethane | B33: 74873 | C33: 0.000793 | D33: 0 | E33: 0 | F33: 0 | G33: 0 | H33: 0 | I33: 0 | J33: 0 | K33: 0 | L33: 0 | M33: 0 | N33: 0 | O33: 0 | P33: 0 | Q33: 0 | R33: 0 | S33: 0 | T33: 0 | U33: 0 | V33: 0 | W33: 0 | X33: 0 | Y33: 0 | Z33: 0 | AA33: 0 | AB33: 0 | AC33: 0 | AD33: 0 | AE33: 0 | AF33: 0 | AG33: 0 | AH33: 0 | AI33: 0 | AJ33: 0 | AK33: 0 | AL33: 0 | AM33: 0 | AN33: 0 | AO33: 0 | AP33: 0 | AQ33: 0
A34: Crotonaldehyde | B34: 4170303 | C34: 0.000141 | D34: 0 | E34: 0 | F34: 0 | G34: 0 | H34: 0 | I34: 0 | J34: 0 | K34: 0 | L34: 0 | M34: 0 | N34: 0 | O34: 0 | P34: 0 | Q34: 0 | R34: 0 | S34: 0 | T34: 0 | U34: 0 | V34: 0 | W34: 0 | X34: 0 | Y34: 0 | Z34: 0 | AA34: 0 | AB34: 0 | AC34: 0 | AD34: 0 | AE34: 0 | AF34: 0 | AG34: 0 | AH34: 0 | AI34: 0 | AJ34: 0 | AK34: 0 | AL34: 0 | AM34: 0 | AN34: 0 | AO34: 0 | AP34: 0 | AQ34: 0
A35: Cyclohexane | B35: 110827 | C35: 0.00683 | D35: 0 | E35: 0 | F35: 0 | G35: 0 | H35: 0 | I35: 0 | J35: 0 | K35: 0 | L35: 0 | M35: 0 | N35: 0 | O35: 0 | P35: 0 | Q35: 0 | R35: 0 | S35: 0 | T35: 0 | U35: 0 | V35: 0 | W35: 0 | X35: 0 | Y35: 0 | Z35: 0 | AA35: 0 | AB35: 0 | AC35: 0 | AD35: 0 | AE35: 0 | AF35: 0 | AG35: 0 | AH35: 0 | AI35: 0 | AJ35: 0 | AK35: 0 | AL35: 0 | AM35: 0 | AN35: 0 | AO35: 0 | AP35: 0 | AQ35: 0
A36: Ethyl Chloride | B36: 75003 | C36: 0.000239 | D36: 0 | E36: 0 | F36: 0 | G36: 0 | H36: 0 | I36: 0 | J36: 0 | K36: 0 | L36: 0 | M36: 0 | N36: 0 | O36: 0 | P36: 0 | Q36: 0 | R36: 0 | S36: 0 | T36: 0 | U36: 0 | V36: 0 | W36: 0 | X36: 0 | Y36: 0 | Z36: 0 | AA36: 0 | AB36: 0 | AC36: 0 | AD36: 0 | AE36: 0 | AF36: 0 | AG36: 0 | AH36: 0 | AI36: 0 | AJ36: 0 | AK36: 0 | AL36: 0 | AM36: 0 | AN36: 0 | AO36: 0 | AP36: 0 | AQ36: 0
A37: Ethylbenzene | B37: 100414 | C37: 0.000347 | D37: 0 | E37: 0 | F37: 0 | G37: 0 | H37: 0 | I37: 0 | J37: 0 | K37: 0 | L37: 0 | M37: 0 | N37: 0 | O37: 0 | P37: 0 | Q37: 0 | R37: 0 | S37: 0 | T37: 0 | U37: 0 | V37: 0 | W37: 0 | X37: 0 | Y37: 0 | Z37: 0 | AA37: 0 | AB37: 0 | AC37: 0 | AD37: 0 | AE37: 0 | AF37: 0 | AG37: 0 | AH37: 0 | AI37: 0 | AJ37: 0 | AK37: 0 | AL37: 0 | AM37: 0 | AN37: 0 | AO37: 0 | AP37: 0 | AQ37: 0
A38: Ethylene Dibromide (EDB) | B38: 106934 | C38: 0.000306 | D38: 0 | E38: 0 | F38: 0 | G38: 0 | H38: 0 | I38: 0 | J38: 0 | K38: 0 | L38: 0 | M38: 0 | N38: 0 | O38: 0 | P38: 0 | Q38: 0 | R38: 0 | S38: 0 | T38: 0 | U38: 0 | V38: 0 | W38: 0 | X38: 0 | Y38: 0 | Z38: 0 | AA38: 0 | AB38: 0 | AC38: 0 | AD38: 0 | AE38: 0 | AF38: 0 | AG38: 0 | AH38: 0 | AI38: 0 | AJ38: 0 | AK38: 0 | AL38: 0 | AM38: 0 | AN38: 0 | AO38: 0 | AP38: 0 | AQ38: 0
A39: Ethylene Dichloride (EDC) | B39: 107062 | C39: 5.89e-05 | D39: 0 | E39: 0 | F39: 0 | G39: 0 | H39: 0 | I39: 0 | J39: 0 | K39: 0 | L39: 0 | M39: 0 | N39: 0 | O39: 0 | P39: 0 | Q39: 0 | R39: 0 | S39: 0 | T39: 0 | U39: 0 | V39: 0 | W39: 0 | X39: 0 | Y39: 0 | Z39: 0 | AA39: 0 | AB39: 0 | AC39: 0 | AD39: 0 | AE39: 0 | AF39: 0 | AG39: 0 | AH39: 0 | AI39: 0 | AJ39: 0 | AK39: 0 | AL39: 0 | AM39: 0 | AN39: 0 | AO39: 0 | AP39: 0 | AQ39: 0
A40: Formaldehyde | B40: 50000 | C40: 0.000398 | D40: 0 | E40: 0 | F40: 0 | G40: 0 | H40: 0 | I40: 0 | J40: 0 | K40: 0 | L40: 0 | M40: 0 | N40: 0 | O40: 0 | P40: 0 | Q40: 0 | R40: 0 | S40: 0 | T40: 0 | U40: 0 | V40: 0 | W40: 0 | X40: 0 | Y40: 0 | Z40: 0 | AA40: 0 | AB40: 0 | AC40: 0 | AD40: 0 | AE40: 0 | AF40: 0 | AG40: 0 | AH40: 0 | AI40: 0 | AJ40: 0 | AK40: 0 | AL40: 0 | AM40: 0 | AN40: 0 | AO40: 0 | AP40: 0 | AQ40: 0
A41: Hexane | B41: 110543 | C41: 0.000812 | D41: 0 | E41: 0 | F41: 0 | G41: 0 | H41: 0 | I41: 0 | J41: 0 | K41: 0 | L41: 0 | M41: 0 | N41: 0 | O41: 0 | P41: 0 | Q41: 0 | R41: 0 | S41: 0 | T41: 0 | U41: 0 | V41: 0 | W41: 0 | X41: 0 | Y41: 0 | Z41: 0 | AA41: 0 | AB41: 0 | AC41: 0 | AD41: 0 | AE41: 0 | AF41: 0 | AG41: 0 | AH41: 0 | AI41: 0 | AJ41: 0 | AK41: 0 | AL41: 0 | AM41: 0 | AN41: 0 | AO41: 0 | AP41: 0 | AQ41: 0
A42: Isopropyl Alchol | B42: 67630 | C42: 0.00162 | D42: 0 | E42: 0 | F42: 0 | G42: 0 | H42: 0 | I42: 0 | J42: 0 | K42: 0 | L42: 0 | M42: 0 | N42: 0 | O42: 0 | P42: 0 | Q42: 0 | R42: 0 | S42: 0 | T42: 0 | U42: 0 | V42: 0 | W42: 0 | X42: 0 | Y42: 0 | Z42: 0 | AA42: 0 | AB42: 0 | AC42: 0 | AD42: 0 | AE42: 0 | AF42: 0 | AG42: 0 | AH42: 0 | AI42: 0 | AJ42: 0 | AK42: 0 | AL42: 0 | AM42: 0 | AN42: 0 | AO42: 0 | AP42: 0 | AQ42: 0
A43: Isopropylbenzene (Cumene) | B43: 98828 | C43: 5.61e-05 | D43: 0 | E43: 0 | F43: 0 | G43: 0 | H43: 0 | I43: 0 | J43: 0 | K43: 0 | L43: 0 | M43: 0 | N43: 0 | O43: 0 | P43: 0 | Q43: 0 | R43: 0 | S43: 0 | T43: 0 | U43: 0 | V43: 0 | W43: 0 | X43: 0 | Y43: 0 | Z43: 0 | AA43: 0 | AB43: 0 | AC43: 0 | AD43: 0 | AE43: 0 | AF43: 0 | AG43: 0 | AH43: 0 | AI43: 0 | AJ43: 0 | AK43: 0 | AL43: 0 | AM43: 0 | AN43: 0 | AO43: 0 | AP43: 0 | AQ43: 0
A44: Methyl Ethyl Ketone (2-butanone) | B44: 78933 | C44: 0.0146 | D44: 0 | E44: 0 | F44: 0 | G44: 0 | H44: 0 | I44: 0 | J44: 0 | K44: 0 | L44: 0 | M44: 0 | N44: 0 | O44: 0 | P44: 0 | Q44: 0 | R44: 0 | S44: 0 | T44: 0 | U44: 0 | V44: 0 | W44: 0 | X44: 0 | Y44: 0 | Z44: 0 | AA44: 0 | AB44: 0 | AC44: 0 | AD44: 0 | AE44: 0 | AF44: 0 | AG44: 0 | AH44: 0 | AI44: 0 | AJ44: 0 | AK44: 0 | AL44: 0 | AM44: 0 | AN44: 0 | AO44: 0 | AP44: 0 | AQ44: 0
A45: Methyl Isobutyl Ketone | B45: 108101 | C45: 0.000709 | D45: 0 | E45: 0 | F45: 0 | G45: 0 | H45: 0 | I45: 0 | J45: 0 | K45: 0 | L45: 0 | M45: 0 | N45: 0 | O45: 0 | P45: 0 | Q45: 0 | R45: 0 | S45: 0 | T45: 0 | U45: 0 | V45: 0 | W45: 0 | X45: 0 | Y45: 0 | Z45: 0 | AA45: 0 | AB45: 0 | AC45: 0 | AD45: 0 | AE45: 0 | AF45: 0 | AG45: 0 | AH45: 0 | AI45: 0 | AJ45: 0 | AK45: 0 | AL45: 0 | AM45: 0 | AN45: 0 | AO45: 0 | AP45: 0 | AQ45: 0
A46: Styrene | B46: 100425 | C46: 0.000359 | D46: 0 | E46: 0 | F46: 0 | G46: 0 | H46: 0 | I46: 0 | J46: 0 | K46: 0 | L46: 0 | M46: 0 | N46: 0 | O46: 0 | P46: 0 | Q46: 0 | R46: 0 | S46: 0 | T46: 0 | U46: 0 | V46: 0 | W46: 0 | X46: 0 | Y46: 0 | Z46: 0 | AA46: 0 | AB46: 0 | AC46: 0 | AD46: 0 | AE46: 0 | AF46: 0 | AG46: 0 | AH46: 0 | AI46: 0 | AJ46: 0 | AK46: 0 | AL46: 0 | AM46: 0 | AN46: 0 | AO46: 0 | AP46: 0 | AQ46: 0
A47: t-1,4-Dichloro-2-butene | B47: 764410 | C47: 0.000892 | D47: 0 | E47: 0 | F47: 0 | G47: 0 | H47: 0 | I47: 0 | J47: 0 | K47: 0 | L47: 0 | M47: 0 | N47: 0 | O47: 0 | P47: 0 | Q47: 0 | R47: 0 | S47: 0 | T47: 0 | U47: 0 | V47: 0 | W47: 0 | X47: 0 | Y47: 0 | Z47: 0 | AA47: 0 | AB47: 0 | AC47: 0 | AD47: 0 | AE47: 0 | AF47: 0 | AG47: 0 | AH47: 0 | AI47: 0 | AJ47: 0 | AK47: 0 | AL47: 0 | AM47: 0 | AN47: 0 | AO47: 0 | AP47: 0 | AQ47: 0
A48: Toluene | B48: 108883 | C48: 0.00107 | D48: 0 | E48: 0 | F48: 0 | G48: 0 | H48: 0 | I48: 0 | J48: 0 | K48: 0 | L48: 0 | M48: 0 | N48: 0 | O48: 0 | P48: 0 | Q48: 0 | R48: 0 | S48: 0 | T48: 0 | U48: 0 | V48: 0 | W48: 0 | X48: 0 | Y48: 0 | Z48: 0 | AA48: 0 | AB48: 0 | AC48: 0 | AD48: 0 | AE48: 0 | AF48: 0 | AG48: 0 | AH48: 0 | AI48: 0 | AJ48: 0 | AK48: 0 | AL48: 0 | AM48: 0 | AN48: 0 | AO48: 0 | AP48: 0 | AQ48: 0
A49: Trichlorofluoromethane* | B49: 75694 | C49: 1.08e-07 | D49: 0 | E49: 0 | F49: 0 | G49: 0 | H49: 0 | I49: 0 | J49: 0 | K49: 0 | L49: 0 | M49: 0 | N49: 0 | O49: 0 | P49: 0 | Q49: 0 | R49: 0 | S49: 0 | T49: 0 | U49: 0 | V49: 0 | W49: 0 | X49: 0 | Y49: 0 | Z49: 0 | AA49: 0 | AB49: 0 | AC49: 0 | AD49: 0 | AE49: 0 | AF49: 0 | AG49: 0 | AH49: 0 | AI49: 0 | AJ49: 0 | AK49: 0 | AL49: 0 | AM49: 0 | AN49: 0 | AO49: 0 | AP49: 0 | AQ49: 0
A50: Vinyl acetate | B50: 108054 | C50: 0.00197 | D50: 0 | E50: 0 | F50: 0 | G50: 0 | H50: 0 | I50: 0 | J50: 0 | K50: 0 | L50: 0 | M50: 0 | N50: 0 | O50: 0 | P50: 0 | Q50: 0 | R50: 0 | S50: 0 | T50: 0 | U50: 0 | V50: 0 | W50: 0 | X50: 0 | Y50: 0 | Z50: 0 | AA50: 0 | AB50: 0 | AC50: 0 | AD50: 0 | AE50: 0 | AF50: 0 | AG50: 0 | AH50: 0 | AI50: 0 | AJ50: 0 | AK50: 0 | AL50: 0 | AM50: 0 | AN50: 0 | AO50: 0 | AP50: 0 | AQ50: 0
A51: Xylenes | B51: 1330207 | C51: 0.0018 | D51: 0 | E51: 0 | F51: 0 | G51: 0 | H51: 0 | I51: 0 | J51: 0 | K51: 0 | L51: 0 | M51: 0 | N51: 0 | O51: 0 | P51: 0 | Q51: 0 | R51: 0 | S51: 0 | T51: 0 | U51: 0 | V51: 0 | W51: 0 | X51: 0 | Y51: 0 | Z51: 0 | AA51: 0 | AB51: 0 | AC51: 0 | AD51: 0 | AE51: 0 | AF51: 0 | AG51: 0 | AH51: 0 | AI51: 0 | AJ51: 0 | AK51: 0 | AL51: 0 | AM51: 0 | AN51: 0 | AO51: 0 | AP51: 0 | AQ51: 0
A54: References:
A55: *Emission factors are derived from the District's evaluation of dairy research studies conducted by California colleges and universities.
A56: Pollutants required for toxic reporting. Current as of update date.
A57: (Does not include emissions from Lagoons or enteric emissions from cows)

Sheet Dairy Miscellaneous 4
A1: Agricultural Miscellaneous Emissions from Dairy Operations (Cow Housing)
A2: Use this spreadsheet to characterize the miscellanous emissions from Dairy sources when VOC rates are known. VOC emission rates linked to Cow Housing worksheet. No entries required on this worksheet. Zero and null entries will be highlighted in red after entry.
A3: Author or updater | B3: Matthew Cegielski
A4: Last Update | B4: 2025-09-29
A5: Facility: | B5: ='Cow Housing'!C4 -> Happy Cows
A6: ID#: | B6: ='Cow Housing'!C5 -> C-7777
A7: Project #: | B7: ='Cow Housing'!C6 -> C-3333
A8: Formula | D8: ='Cow Housing'!$B$69 -> 0 | F8: ='Cow Housing'!$B70 -> 0 | H8: ='Cow Housing'!$B71 -> 0 | J8: ='Cow Housing'!$B$72 -> 0 | L8: ='Cow Housing'!$B$73 -> 0 | N8: ='Cow Housing'!$B$74 -> 0 | P8: ='Cow Housing'!$B$75 -> 0 | R8: ='Cow Housing'!$B$76 -> 0 | T8: ='Cow Housing'!$B$77 -> 0 | V8: ='Cow Housing'!$B$78 -> 0 | X8: ='Cow Housing'!$B$79 -> 0 | Z8: ='Cow Housing'!$B$80 -> 0 | AB8: ='Cow Housing'!$B$81 -> 0 | AD8: ='Cow Housing'!$B$82 -> 0 | AF8: ='Cow Housing'!$B$83 -> 0
A9: Emissions are calculated by the multiplication of the VOC Rates, and Emission Factors.
D10: lb/hr | E10: lb/yr | F10: lb/hr | G10: lb/yr | H10: lb/hr | I10: lb/yr | J10: lb/hr | K10: lb/yr | L10: lb/hr | M10: lb/yr | N10: lb/hr | O10: lb/yr | P10: lb/hr | Q10: lb/yr | R10: lb/hr | S10: lb/yr | T10: lb/hr | U10: lb/yr | V10: lb/hr | W10: lb/yr | X10: lb/hr | Y10: lb/yr | Z10: lb/hr | AA10: lb/yr | AB10: lb/hr | AC10: lb/yr | AD10: lb/hr | AE10: lb/yr | AF10: lb/hr | AG10: lb/yr
A11: VOC Emission Rates | D11: =IF('Cow Housing'!E69>0,'Cow Housing'!E69,0) -> 0 | E11: =IF('Cow Housing'!F69>0,'Cow Housing'!F69,0) -> 0 | F11: =IF('Cow Housing'!E70>0,'Cow Housing'!E70,0) -> 0 | G11: =IF('Cow Housing'!F70>0,'Cow Housing'!F70,0) -> 0 | H11: =IF('Cow Housing'!E71>0,'Cow Housing'!E71,0) -> 0 | I11: =IF('Cow Housing'!F71>0,'Cow Housing'!F71,0) -> 0 | J11: =IF('Cow Housing'!E72>0,'Cow Housing'!E72,0) -> 0 | K11: =IF('Cow Housing'!F72>0,'Cow Housing'!F72,0) -> 0 | L11: =IF('Cow Housing'!E73>0,'Cow Housing'!E73,0) -> 0 | M11: =IF('Cow Housing'!F73>0,'Cow Housing'!F73,0) -> 0 | N11: =IF('Cow Housing'!E74>0,'Cow Housing'!E74,0) -> 0 | O11: =IF('Cow Housing'!F74>0,'Cow Housing'!F74,0) -> 0 | P11: =IF('Cow Housing'!E75>0,'Cow Housing'!E75,0) -> 0 | Q11: =IF('Cow Housing'!F75>0,'Cow Housing'!F75,0) -> 0 | R11: =IF('Cow Housing'!E76>0,'Cow Housing'!E76,0) -> 0 | S11: =IF('Cow Housing'!F76>0,'Cow Housing'!F76,0) -> 0 | T11: =IF('Cow Housing'!E77>0,'Cow Housing'!E77,0) -> 0 | U11: =IF('Cow Housing'!F77>0,'Cow Housing'!F77,0) -> 0 | V11: =IF('Cow Housing'!E78>0,'Cow Housing'!E78,0) -> 0 | W11: =IF('Cow Housing'!F78>0,'Cow Housing'!F78,0) -> 0 | X11: =IF('Cow Housing'!E79>0,'Cow Housing'!E79,0) -> 0 | Y11: =IF('Cow Housing'!F79>0,'Cow Housing'!F79,0) -> 0 | Z11: =IF('Cow Housing'!E80>0,'Cow Housing'!E80,0) -> 0 | AA11: =IF('Cow Housing'!F80>0,'Cow Housing'!F80,0) -> 0 | AB11: =IF('Cow Housing'!E81>0,'Cow Housing'!E81,0) -> 0 | AC11: =IF('Cow Housing'!F81>0,'Cow Housing'!F81,0) -> 0 | AD11: =IF('Cow Housing'!E82>0,'Cow Housing'!E82,0) -> 0 | AE11: =IF('Cow Housing'!F82>0,'Cow Housing'!F82,0) -> 0 | AF11: =IF('Cow Housing'!E83>0,'Cow Housing'!E83,0) -> 0 | AG11: =IF('Cow Housing'!F83>0,'Cow Housing'!F83,0) -> 0
A12: Substances | B12: CAS# | C12: Volatiles (lb/lb VOC)* | D12: LB/HR | E12: LB/YR | F12: LB/HR | G12: LB/YR | H12: LB/HR | I12: LB/YR | J12: LB/HR | K12: LB/YR | L12: LB/HR | M12: LB/YR | N12: LB/HR | O12: LB/YR | P12: LB/HR | Q12: LB/YR | R12: LB/HR | S12: LB/YR | T12: LB/HR | U12: LB/YR | V12: LB/HR | W12: LB/YR | X12: LB/HR | Y12: LB/YR | Z12: LB/HR | AA12: LB/YR | AB12: LB/HR | AC12: LB/YR | AD12: LB/HR | AE12: LB/YR | AF12: LB/HR | AG12: LB/YR
A15: 1,1,2,2-Tetrachloroethane | B15: 79345 | C15: 8.73e-06 | D15: =$D$11*C15 -> 0 | E15: =$E$11*C15 -> 0 | F15: =$F$11*C15 -> 0 | G15: =$G$11*C15 -> 0 | H15: =$H$11*C15 -> 0 | I15: =$I$11*C15 -> 0 | J15: =$J$11*C15 -> 0 | K15: =$K$11*C15 -> 0 | L15: =$L$11*C15 -> 0 | M15: =$M$11*C15 -> 0 | N15: =$N$11*C15 -> 0 | O15: =$O$11*C15 -> 0 | P15: =$P$11*C15 -> 0 | Q15: =$Q$11*C15 -> 0 | R15: =$R$11*C15 -> 0 | S15: =$S$11*C15 -> 0 | T15: =$T$11*C15 -> 0 | U15: =$U$11*C15 -> 0 | V15: =$V$11*C15 -> 0 | W15: =$W$11*C15 -> 0 | X15: =$X$11*C15 -> 0 | Y15: =$Y$11*C15 -> 0 | Z15: =$Z$11*C15 -> 0 | AA15: =$AA$11*C15 -> 0 | AB15: =$AB$11*C15 -> 0 | AC15: =$AC$11*C15 -> 0 | AD15: =$AD$11*C15 -> 0 | AE15: =$AE$11*C15 -> 0 | AF15: =$AF$11*C15 -> 0 | AG15: =$AG$11*C15 -> 0
A16: 1,1,2-Trichloroethane | B16: 79005 | C16: 0.000226 | D16: =$D$11*C16 -> 0 | E16: =$E$11*C16 -> 0 | F16: =$F$11*C16 -> 0 | G16: =$G$11*C16 -> 0 | H16: =$H$11*C16 -> 0 | I16: =$I$11*C16 -> 0 | J16: =$J$11*C16 -> 0 | K16: =$K$11*C16 -> 0 | L16: =$L$11*C16 -> 0 | M16: =$M$11*C16 -> 0 | N16: =$N$11*C16 -> 0 | O16: =$O$11*C16 -> 0 | P16: =$P$11*C16 -> 0 | Q16: =$Q$11*C16 -> 0 | R16: =$R$11*C16 -> 0 | S16: =$S$11*C16 -> 0 | T16: =$T$11*C16 -> 0 | U16: =$U$11*C16 -> 0 | V16: =$V$11*C16 -> 0 | W16: =$W$11*C16 -> 0 | X16: =$X$11*C16 -> 0 | Y16: =$Y$11*C16 -> 0 | Z16: =$Z$11*C16 -> 0 | AA16: =$AA$11*C16 -> 0 | AB16: =$AB$11*C16 -> 0 | AC16: =$AC$11*C16 -> 0 | AD16: =$AD$11*C16 -> 0 | AE16: =$AE$11*C16 -> 0 | AF16: =$AF$11*C16 -> 0 | AG16: =$AG$11*C16 -> 0
A17: 1,2,3-Trichloropropane | B17: 96184 | C17: 0.000276 | D17: 0 | E17: 0 | F17: 0 | G17: 0 | H17: 0 | I17: 0 | J17: 0 | K17: 0 | L17: 0 | M17: 0 | N17: 0 | O17: 0 | P17: 0 | Q17: 0 | R17: 0 | S17: 0 | T17: 0 | U17: 0 | V17: 0 | W17: 0 | X17: 0 | Y17: 0 | Z17: 0 | AA17: 0 | AB17: 0 | AC17: 0 | AD17: 0 | AE17: 0 | AF17: 0 | AG17: 0
A18: 1,2,4-Trichlorobenzene | B18: 120821 | C18: 0.000779 | D18: 0 | E18: 0 | F18: 0 | G18: 0 | H18: 0 | I18: 0 | J18: 0 | K18: 0 | L18: 0 | M18: 0 | N18: 0 | O18: 0 | P18: 0 | Q18: 0 | R18: 0 | S18: 0 | T18: 0 | U18: 0 | V18: 0 | W18: 0 | X18: 0 | Y18: 0 | Z18: 0 | AA18: 0 | AB18: 0 | AC18: 0 | AD18: 0 | AE18: 0 | AF18: 0 | AG18: 0
A19: 1,2-Dibromo-3-chloropropane | B19: 96128 | C19: 4.94e-05 | D19: 0 | E19: 0 | F19: 0 | G19: 0 | H19: 0 | I19: 0 | J19: 0 | K19: 0 | L19: 0 | M19: 0 | N19: 0 | O19: 0 | P19: 0 | Q19: 0 | R19: 0 | S19: 0 | T19: 0 | U19: 0 | V19: 0 | W19: 0 | X19: 0 | Y19: 0 | Z19: 0 | AA19: 0 | AB19: 0 | AC19: 0 | AD19: 0 | AE19: 0 | AF19: 0 | AG19: 0
A20: 1,2-Dichlorobenzene | B20: 95501 | C20: 0.000548 | D20: 0 | E20: 0 | F20: 0 | G20: 0 | H20: 0 | I20: 0 | J20: 0 | K20: 0 | L20: 0 | M20: 0 | N20: 0 | O20: 0 | P20: 0 | Q20: 0 | R20: 0 | S20: 0 | T20: 0 | U20: 0 | V20: 0 | W20: 0 | X20: 0 | Y20: 0 | Z20: 0 | AA20: 0 | AB20: 0 | AC20: 0 | AD20: 0 | AE20: 0 | AF20: 0 | AG20: 0
A21: 1,3-Dichlorobenzene | B21: 541731 | C21: 0.00049 | D21: 0 | E21: 0 | F21: 0 | G21: 0 | H21: 0 | I21: 0 | J21: 0 | K21: 0 | L21: 0 | M21: 0 | N21: 0 | O21: 0 | P21: 0 | Q21: 0 | R21: 0 | S21: 0 | T21: 0 | U21: 0 | V21: 0 | W21: 0 | X21: 0 | Y21: 0 | Z21: 0 | AA21: 0 | AB21: 0 | AC21: 0 | AD21: 0 | AE21: 0 | AF21: 0 | AG21: 0
A22: 1,4 Dioxane | B22: 123911 | C22: 0.00141 | D22: 0 | E22: 0 | F22: 0 | G22: 0 | H22: 0 | I22: 0 | J22: 0 | K22: 0 | L22: 0 | M22: 0 | N22: 0 | O22: 0 | P22: 0 | Q22: 0 | R22: 0 | S22: 0 | T22: 0 | U22: 0 | V22: 0 | W22: 0 | X22: 0 | Y22: 0 | Z22: 0 | AA22: 0 | AB22: 0 | AC22: 0 | AD22: 0 | AE22: 0 | AF22: 0 | AG22: 0
A23: 1,4-Dichlorobenzene | B23: 106467 | C23: 0.000519 | D23: 0 | E23: 0 | F23: 0 | G23: 0 | H23: 0 | I23: 0 | J23: 0 | K23: 0 | L23: 0 | M23: 0 | N23: 0 | O23: 0 | P23: 0 | Q23: 0 | R23: 0 | S23: 0 | T23: 0 | U23: 0 | V23: 0 | W23: 0 | X23: 0 | Y23: 0 | Z23: 0 | AA23: 0 | AB23: 0 | AC23: 0 | AD23: 0 | AE23: 0 | AF23: 0 | AG23: 0
A24: Acetaldehyde | B24: 75070 | C24: 0.00241 | D24: 0 | E24: 0 | F24: 0 | G24: 0 | H24: 0 | I24: 0 | J24: 0 | K24: 0 | L24: 0 | M24: 0 | N24: 0 | O24: 0 | P24: 0 | Q24: 0 | R24: 0 | S24: 0 | T24: 0 | U24: 0 | V24: 0 | W24: 0 | X24: 0 | Y24: 0 | Z24: 0 | AA24: 0 | AB24: 0 | AC24: 0 | AD24: 0 | AE24: 0 | AF24: 0 | AG24: 0
A25: Acrylonitrile | B25: 107131 | C25: 0.000243 | D25: 0 | E25: 0 | F25: 0 | G25: 0 | H25: 0 | I25: 0 | J25: 0 | K25: 0 | L25: 0 | M25: 0 | N25: 0 | O25: 0 | P25: 0 | Q25: 0 | R25: 0 | S25: 0 | T25: 0 | U25: 0 | V25: 0 | W25: 0 | X25: 0 | Y25: 0 | Z25: 0 | AA25: 0 | AB25: 0 | AC25: 0 | AD25: 0 | AE25: 0 | AF25: 0 | AG25: 0
A26: Benzene | B26: 71432 | C26: 0.000319 | D26: 0 | E26: 0 | F26: 0 | G26: 0 | H26: 0 | I26: 0 | J26: 0 | K26: 0 | L26: 0 | M26: 0 | N26: 0 | O26: 0 | P26: 0 | Q26: 0 | R26: 0 | S26: 0 | T26: 0 | U26: 0 | V26: 0 | W26: 0 | X26: 0 | Y26: 0 | Z26: 0 | AA26: 0 | AB26: 0 | AC26: 0 | AD26: 0 | AE26: 0 | AF26: 0 | AG26: 0
A27: Benzyl chloride | B27: 100447 | C27: 0.000289 | D27: 0 | E27: 0 | F27: 0 | G27: 0 | H27: 0 | I27: 0 | J27: 0 | K27: 0 | L27: 0 | M27: 0 | N27: 0 | O27: 0 | P27: 0 | Q27: 0 | R27: 0 | S27: 0 | T27: 0 | U27: 0 | V27: 0 | W27: 0 | X27: 0 | Y27: 0 | Z27: 0 | AA27: 0 | AB27: 0 | AC27: 0 | AD27: 0 | AE27: 0 | AF27: 0 | AG27: 0
A28: Butyraldehyde | B28: 123728 | C28: 0.000114 | D28: 0 | E28: 0 | F28: 0 | G28: 0 | H28: 0 | I28: 0 | J28: 0 | K28: 0 | L28: 0 | M28: 0 | N28: 0 | O28: 0 | P28: 0 | Q28: 0 | R28: 0 | S28: 0 | T28: 0 | U28: 0 | V28: 0 | W28: 0 | X28: 0 | Y28: 0 | Z28: 0 | AA28: 0 | AB28: 0 | AC28: 0 | AD28: 0 | AE28: 0 | AF28: 0 | AG28: 0
A29: Carbon Disulfide | B29: 75150 | C29: 0.00249 | D29: 0 | E29: 0 | F29: 0 | G29: 0 | H29: 0 | I29: 0 | J29: 0 | K29: 0 | L29: 0 | M29: 0 | N29: 0 | O29: 0 | P29: 0 | Q29: 0 | R29: 0 | S29: 0 | T29: 0 | U29: 0 | V29: 0 | W29: 0 | X29: 0 | Y29: 0 | Z29: 0 | AA29: 0 | AB29: 0 | AC29: 0 | AD29: 0 | AE29: 0 | AF29: 0 | AG29: 0
A30: Carbon tetrachloride | B30: 56235 | C30: 5.87e-05 | D30: 0 | E30: 0 | F30: 0 | G30: 0 | H30: 0 | I30: 0 | J30: 0 | K30: 0 | L30: 0 | M30: 0 | N30: 0 | O30: 0 | P30: 0 | Q30: 0 | R30: 0 | S30: 0 | T30: 0 | U30: 0 | V30: 0 | W30: 0 | X30: 0 | Y30: 0 | Z30: 0 | AA30: 0 | AB30: 0 | AC30: 0 | AD30: 0 | AE30: 0 | AF30: 0 | AG30: 0
A31: Chlorobenzene | B31: 108907 | C31: 0.000272 | D31: 0 | E31: 0 | F31: 0 | G31: 0 | H31: 0 | I31: 0 | J31: 0 | K31: 0 | L31: 0 | M31: 0 | N31: 0 | O31: 0 | P31: 0 | Q31: 0 | R31: 0 | S31: 0 | T31: 0 | U31: 0 | V31: 0 | W31: 0 | X31: 0 | Y31: 0 | Z31: 0 | AA31: 0 | AB31: 0 | AC31: 0 | AD31: 0 | AE31: 0 | AF31: 0 | AG31: 0
A32: Chloroform | B32: 67663 | C32: 0.000131 | D32: 0 | E32: 0 | F32: 0 | G32: 0 | H32: 0 | I32: 0 | J32: 0 | K32: 0 | L32: 0 | M32: 0 | N32: 0 | O32: 0 | P32: 0 | Q32: 0 | R32: 0 | S32: 0 | T32: 0 | U32: 0 | V32: 0 | W32: 0 | X32: 0 | Y32: 0 | Z32: 0 | AA32: 0 | AB32: 0 | AC32: 0 | AD32: 0 | AE32: 0 | AF32: 0 | AG32: 0
A33: Chloromethane | B33: 74873 | C33: 0.000793 | D33: 0 | E33: 0 | F33: 0 | G33: 0 | H33: 0 | I33: 0 | J33: 0 | K33: 0 | L33: 0 | M33: 0 | N33: 0 | O33: 0 | P33: 0 | Q33: 0 | R33: 0 | S33: 0 | T33: 0 | U33: 0 | V33: 0 | W33: 0 | X33: 0 | Y33: 0 | Z33: 0 | AA33: 0 | AB33: 0 | AC33: 0 | AD33: 0 | AE33: 0 | AF33: 0 | AG33: 0
A34: Crotonaldehyde | B34: 4170303 | C34: 0.000141 | D34: 0 | E34: 0 | F34: 0 | G34: 0 | H34: 0 | I34: 0 | J34: 0 | K34: 0 | L34: 0 | M34: 0 | N34: 0 | O34: 0 | P34: 0 | Q34: 0 | R34: 0 | S34: 0 | T34: 0 | U34: 0 | V34: 0 | W34: 0 | X34: 0 | Y34: 0 | Z34: 0 | AA34: 0 | AB34: 0 | AC34: 0 | AD34: 0 | AE34: 0 | AF34: 0 | AG34: 0
A35: Cyclohexane | B35: 110827 | C35: 0.00683 | D35: 0 | E35: 0 | F35: 0 | G35: 0 | H35: 0 | I35: 0 | J35: 0 | K35: 0 | L35: 0 | M35: 0 | N35: 0 | O35: 0 | P35: 0 | Q35: 0 | R35: 0 | S35: 0 | T35: 0 | U35: 0 | V35: 0 | W35: 0 | X35: 0 | Y35: 0 | Z35: 0 | AA35: 0 | AB35: 0 | AC35: 0 | AD35: 0 | AE35: 0 | AF35: 0 | AG35: 0
A36: Ethyl Chloride | B36: 75003 | C36: 0.000239 | D36: 0 | E36: 0 | F36: 0 | G36: 0 | H36: 0 | I36: 0 | J36: 0 | K36: 0 | L36: 0 | M36: 0 | N36: 0 | O36: 0 | P36: 0 | Q36: 0 | R36: 0 | S36: 0 | T36: 0 | U36: 0 | V36: 0 | W36: 0 | X36: 0 | Y36: 0 | Z36: 0 | AA36: 0 | AB36: 0 | AC36: 0 | AD36: 0 | AE36: 0 | AF36: 0 | AG36: 0
A37: Ethylbenzene | B37: 100414 | C37: 0.000347 | D37: 0 | E37: 0 | F37: 0 | G37: 0 | H37: 0 | I37: 0 | J37: 0 | K37: 0 | L37: 0 | M37: 0 | N37: 0 | O37: 0 | P37: 0 | Q37: 0 | R37: 0 | S37: 0 | T37: 0 | U37: 0 | V37: 0 | W37: 0 | X37: 0 | Y37: 0 | Z37: 0 | AA37: 0 | AB37: 0 | AC37: 0 | AD37: 0 | AE37: 0 | AF37: 0 | AG37: 0
A38: Ethylene Dibromide (EDB) | B38: 106934 | C38: 0.000306 | D38: 0 | E38: 0 | F38: 0 | G38: 0 | H38: 0 | I38: 0 | J38: 0 | K38: 0 | L38: 0 | M38: 0 | N38: 0 | O38: 0 | P38: 0 | Q38: 0 | R38: 0 | S38: 0 | T38: 0 | U38: 0 | V38: 0 | W38: 0 | X38: 0 | Y38: 0 | Z38: 0 | AA38: 0 | AB38: 0 | AC38: 0 | AD38: 0 | AE38: 0 | AF38: 0 | AG38: 0
A39: Ethylene Dichloride (EDC) | B39: 107062 | C39: 5.89e-05 | D39: 0 | E39: 0 | F39: 0 | G39: 0 | H39: 0 | I39: 0 | J39: 0 | K39: 0 | L39: 0 | M39: 0 | N39: 0 | O39: 0 | P39: 0 | Q39: 0 | R39: 0 | S39: 0 | T39: 0 | U39: 0 | V39: 0 | W39: 0 | X39: 0 | Y39: 0 | Z39: 0 | AA39: 0 | AB39: 0 | AC39: 0 | AD39: 0 | AE39: 0 | AF39: 0 | AG39: 0
A40: Formaldehyde | B40: 50000 | C40: 0.000398 | D40: 0 | E40: 0 | F40: 0 | G40: 0 | H40: 0 | I40: 0 | J40: 0 | K40: 0 | L40: 0 | M40: 0 | N40: 0 | O40: 0 | P40: 0 | Q40: 0 | R40: 0 | S40: 0 | T40: 0 | U40: 0 | V40: 0 | W40: 0 | X40: 0 | Y40: 0 | Z40: 0 | AA40: 0 | AB40: 0 | AC40: 0 | AD40: 0 | AE40: 0 | AF40: 0 | AG40: 0
A41: Hexane | B41: 110543 | C41: 0.000812 | D41: 0 | E41: 0 | F41: 0 | G41: 0 | H41: 0 | I41: 0 | J41: 0 | K41: 0 | L41: 0 | M41: 0 | N41: 0 | O41: 0 | P41: 0 | Q41: 0 | R41: 0 | S41: 0 | T41: 0 | U41: 0 | V41: 0 | W41: 0 | X41: 0 | Y41: 0 | Z41: 0 | AA41: 0 | AB41: 0 | AC41: 0 | AD41: 0 | AE41: 0 | AF41: 0 | AG41: 0
A42: Isopropyl Alchol | B42: 67630 | C42: 0.00162 | D42: 0 | E42: 0 | F42: 0 | G42: 0 | H42: 0 | I42: 0 | J42: 0 | K42: 0 | L42: 0 | M42: 0 | N42: 0 | O42: 0 | P42: 0 | Q42: 0 | R42: 0 | S42: 0 | T42: 0 | U42: 0 | V42: 0 | W42: 0 | X42: 0 | Y42: 0 | Z42: 0 | AA42: 0 | AB42: 0 | AC42: 0 | AD42: 0 | AE42: 0 | AF42: 0 | AG42: 0
A43: Isopropylbenzene (Cumene) | B43: 98828 | C43: 5.61e-05 | D43: 0 | E43: 0 | F43: 0 | G43: 0 | H43: 0 | I43: 0 | J43: 0 | K43: 0 | L43: 0 | M43: 0 | N43: 0 | O43: 0 | P43: 0 | Q43: 0 | R43: 0 | S43: 0 | T43: 0 | U43: 0 | V43: 0 | W43: 0 | X43: 0 | Y43: 0 | Z43: 0 | AA43: 0 | AB43: 0 | AC43: 0 | AD43: 0 | AE43: 0 | AF43: 0 | AG43: 0
A44: Methyl Ethyl Ketone (2-butanone) | B44: 78933 | C44: 0.0146 | D44: 0 | E44: 0 | F44: 0 | G44: 0 | H44: 0 | I44: 0 | J44: 0 | K44: 0 | L44: 0 | M44: 0 | N44: 0 | O44: 0 | P44: 0 | Q44: 0 | R44: 0 | S44: 0 | T44: 0 | U44: 0 | V44: 0 | W44: 0 | X44: 0 | Y44: 0 | Z44: 0 | AA44: 0 | AB44: 0 | AC44: 0 | AD44: 0 | AE44: 0 | AF44: 0 | AG44: 0
A45: Methyl Isobutyl Ketone | B45: 108101 | C45: 0.000709 | D45: 0 | E45: 0 | F45: 0 | G45: 0 | H45: 0 | I45: 0 | J45: 0 | K45: 0 | L45: 0 | M45: 0 | N45: 0 | O45: 0 | P45: 0 | Q45: 0 | R45: 0 | S45: 0 | T45: 0 | U45: 0 | V45: 0 | W45: 0 | X45: 0 | Y45: 0 | Z45: 0 | AA45: 0 | AB45: 0 | AC45: 0 | AD45: 0 | AE45: 0 | AF45: 0 | AG45: 0
A46: Styrene | B46: 100425 | C46: 0.000359 | D46: =$D$11*C46 -> 0 | E46: =$E$11*C46 -> 0 | F46: =$F$11*C46 -> 0 | G46: =$G$11*C46 -> 0 | H46: =$H$11*C46 -> 0 | I46: =$I$11*C46 -> 0 | J46: =$J$11*C46 -> 0 | K46: =$K$11*C46 -> 0 | L46: =$L$11*C46 -> 0 | M46: =$M$11*C46 -> 0 | N46: =$N$11*C46 -> 0 | O46: =$O$11*C46 -> 0 | P46: =$P$11*C46 -> 0 | Q46: =$Q$11*C46 -> 0 | R46: =$R$11*C46 -> 0 | S46: =$S$11*C46 -> 0 | T46: =$T$11*C46 -> 0 | U46: =$U$11*C46 -> 0 | V46: =$V$11*C46 -> 0 | W46: =$W$11*C46 -> 0 | X46: =$X$11*C46 -> 0 | Y46: =$Y$11*C46 -> 0 | Z46: =$Z$11*C46 -> 0 | AA46: =$AA$11*C46 -> 0 | AB46: =$AB$11*C46 -> 0 | AC46: =$AC$11*C46 -> 0 | AD46: =$AD$11*C46 -> 0 | AE46: =$AE$11*C46 -> 0 | AF46: =$AF$11*C46 -> 0 | AG46: =$AG$11*C46 -> 0
A47: t-1,4-Dichloro-2-butene | B47: 764410 | C47: 0.000892 | D47: 0 | E47: 0 | F47: 0 | G47: 0 | H47: 0 | I47: 0 | J47: 0 | K47: 0 | L47: 0 | M47: 0 | N47: 0 | O47: 0 | P47: 0 | Q47: 0 | R47: 0 | S47: 0 | T47: 0 | U47: 0 | V47: 0 | W47: 0 | X47: 0 | Y47: 0 | Z47: 0 | AA47: 0 | AB47: 0 | AC47: 0 | AD47: 0 | AE47: 0 | AF47: 0 | AG47: 0
A48: Toluene | B48: 108883 | C48: 0.00107 | D48: 0 | E48: 0 | F48: 0 | G48: 0 | H48: 0 | I48: 0 | J48: 0 | K48: 0 | L48: 0 | M48: 0 | N48: 0 | O48: 0 | P48: 0 | Q48: 0 | R48: 0 | S48: 0 | T48: 0 | U48: 0 | V48: 0 | W48: 0 | X48: 0 | Y48: 0 | Z48: 0 | AA48: 0 | AB48: 0 | AC48: 0 | AD48: 0 | AE48: 0 | AF48: 0 | AG48: 0
A49: Trichlorofluoromethane* | B49: 75694 | C49: 1.08e-07 | D49: 0 | E49: 0 | F49: 0 | G49: 0 | H49: 0 | I49: 0 | J49: 0 | K49: 0 | L49: 0 | M49: 0 | N49: 0 | O49: 0 | P49: 0 | Q49: 0 | R49: 0 | S49: 0 | T49: 0 | U49: 0 | V49: 0 | W49: 0 | X49: 0 | Y49: 0 | Z49: 0 | AA49: 0 | AB49: 0 | AC49: 0 | AD49: 0 | AE49: 0 | AF49: 0 | AG49: 0
A50: Vinyl acetate | B50: 108054 | C50: 0.00197 | D50: 0 | E50: 0 | F50: 0 | G50: 0 | H50: 0 | I50: 0 | J50: 0 | K50: 0 | L50: 0 | M50: 0 | N50: 0 | O50: 0 | P50: 0 | Q50: 0 | R50: 0 | S50: 0 | T50: 0 | U50: 0 | V50: 0 | W50: 0 | X50: 0 | Y50: 0 | Z50: 0 | AA50: 0 | AB50: 0 | AC50: 0 | AD50: 0 | AE50: 0 | AF50: 0 | AG50: 0
A51: Xylenes | B51: 1330207 | C51: 0.0018 | D51: 0 | E51: 0 | F51: 0 | G51: 0 | H51: 0 | I51: 0 | J51: 0 | K51: 0 | L51: 0 | M51: 0 | N51: 0 | O51: 0 | P51: 0 | Q51: 0 | R51: 0 | S51: 0 | T51: 0 | U51: 0 | V51: 0 | W51: 0 | X51: 0 | Y51: 0 | Z51: 0 | AA51: 0 | AB51: 0 | AC51: 0 | AD51: 0 | AE51: 0 | AF51: 0 | AG51: 0
A54: References:
A55: *Emission factors are derived from the District's evaluation of dairy research studies conducted by California colleges and universities.
A56: Pollutants required for toxic reporting. Current as of update date.
A57: (Does not include emissions from Lagoons or enteric emissions from cows)

Sheet Milk Parlor
A1: Name | B1: Agricultural Miscellaneous Emissions from Dairy Operations (Milk Parlors)
A2: Applicability | B2: Use this spreadsheet to characterize the miscellanous emissions from Dairy sources when VOC rates are known. VOC emission rates linked to RMR worksheet. Enter VOC and NH3 rates if there is more than one Milk Parlor.
A3: Author or updater | B3: Matthew Cegielski | D3: Last Update | E3: 2025-09-29
A4: Facility: | B4: ='Cow Housing'!C4 -> Happy Cows
A5: ID#: | B5: ='Cow Housing'!C5 -> C-7777
A6: Project #: | B6: ='Cow Housing'!C6 -> C-3333
A7: More than one Milk Parlor? | B7: Y | D7: Formula
A8: Inputs | B8: VOC lb/yr | C8: NH3 lb/yr | D8: Select N or Y from the dropdown. If there is more than one Milk Parlor, enter VOC and NH3 rates. Toxic emissions are calculated by the multiplication of the VOC Rates and Emission Factors.
A9: Milk Parlor 1 | B9: 25 | C9: 5
A10: Milk Parlor 2 | B10: 50 | C10: 40 | D10: lb/hr | E10: lb/yr | F10: lb/hr | G10: lb/yr
A11: VOC Emission Rates | D11: =E11/8760 -> 0.002853881279 | E11: =MAX(IF(B7="N",RMR!F11,B9),0) -> 25 | F11: =G11/8760 -> 0.005707762557 | G11: =MAX(IF(B7="N",0,$B$10),0) -> 50
A12: Substances | B12: CAS# | C12: Toxic EF's (lb/lb VOC)* | D12: LB/HR | E12: LB/YR | F12: LB/HR | G12: LB/YR
A15: 1,1,2,2-Tetrachloroethane | B15: 79345 | C15: 8.73e-06 | D15: =$D$11*C15 -> 2.491438356e-08 | E15: =$E$11*C15 -> 0.00021825 | F15: =$F$11*C15 -> 4.982876712e-08 | G15: =$G$11*C15 -> 0.0004365
A16: 1,1,2-Trichloroethane | B16: 79005 | C16: 0.000226 | D16: =$D$11*C16 -> 6.449771689e-07 | E16: =$E$11*C16 -> 0.00565 | F16: =$F$11*C16 -> 1.289954338e-06 | G16: =$G$11*C16 -> 0.0113
A17: 1,2,3-Trichloropropane | B17: 96184 | C17: 0.000276 | D17: 7.876712329e-07 | E17: 0.0069 | F17: 1.575342466e-06 | G17: 0.0138
A18: 1,2,4-Trichlorobenzene | B18: 120821 | C18: 0.000779 | D18: 2.223173516e-06 | E18: 0.019475 | F18: 4.446347032e-06 | G18: 0.03895
A19: 1,2-Dibromo-3-chloropropane | B19: 96128 | C19: 4.94e-05 | D19: 1.409817352e-07 | E19: 0.001235 | F19: 2.819634703e-07 | G19: 0.00247
A20: 1,2-Dichlorobenzene | B20: 95501 | C20: 0.000548 | D20: 1.563926941e-06 | E20: 0.0137 | F20: 3.127853881e-06 | G20: 0.0274
A21: 1,3-Dichlorobenzene | B21: 541731 | C21: 0.00049 | D21: 1.398401826e-06 | E21: 0.01225 | F21: 2.796803653e-06 | G21: 0.0245
A22: 1,4 Dioxane | B22: 123911 | C22: 0.00141 | D22: 4.023972603e-06 | E22: 0.03525 | F22: 8.047945205e-06 | G22: 0.0705
A23: 1,4-Dichlorobenzene | B23: 106467 | C23: 0.000519 | D23: 1.481164384e-06 | E23: 0.012975 | F23: 2.962328767e-06 | G23: 0.02595
A24: Acetaldehyde | B24: 75070 | C24: 0.00241 | D24: 6.877853881e-06 | E24: 0.06025 | F24: 1.375570776e-05 | G24: 0.1205
A25: Acrylonitrile | B25: 107131 | C25: 0.000243 | D25: 6.934931507e-07 | E25: 0.006075 | F25: 1.386986301e-06 | G25: 0.01215
A26: Benzene | B26: 71432 | C26: 0.000319 | D26: 9.103881279e-07 | E26: 0.007975 | F26: 1.820776256e-06 | G26: 0.01595
A27: Benzyl chloride | B27: 100447 | C27: 0.000289 | D27: 8.247716895e-07 | E27: 0.007225 | F27: 1.649543379e-06 | G27: 0.01445
A28: Butyraldehyde | B28: 123728 | C28: 0.000114 | D28: 3.253424658e-07 | E28: 0.00285 | F28: 6.506849315e-07 | G28: 0.0057
A29: Carbon Disulfide | B29: 75150 | C29: 0.00249 | D29: 7.106164384e-06 | E29: 0.06225 | F29: 1.421232877e-05 | G29: 0.1245
A30: Carbon tetrachloride | B30: 56235 | C30: 5.87e-05 | D30: 1.675228311e-07 | E30: 0.0014675 | F30: 3.350456621e-07 | G30: 0.002935
A31: Chlorobenzene | B31: 108907 | C31: 0.000272 | D31: 7.762557078e-07 | E31: 0.0068 | F31: 1.552511416e-06 | G31: 0.0136
A32: Chloroform | B32: 67663 | C32: 0.000131 | D32: 3.738584475e-07 | E32: 0.003275 | F32: 7.47716895e-07 | G32: 0.00655
A33: Chloromethane | B33: 74873 | C33: 0.000793 | D33: 2.263127854e-06 | E33: 0.019825 | F33: 4.526255708e-06 | G33: 0.03965
A34: Crotonaldehyde | B34: 4170303 | C34: 0.000141 | D34: 4.023972603e-07 | E34: 0.003525 | F34: 8.047945205e-07 | G34: 0.00705
A35: Cyclohexane | B35: 110827 | C35: 0.00683 | D35: 1.949200913e-05 | E35: 0.17075 | F35: 3.898401826e-05 | G35: 0.3415
A36: Ethyl Chloride | B36: 75003 | C36: 0.000239 | D36: 6.820776256e-07 | E36: 0.005975 | F36: 1.364155251e-06 | G36: 0.01195
A37: Ethylbenzene | B37: 100414 | C37: 0.000347 | D37: 9.902968037e-07 | E37: 0.008675 | F37: 1.980593607e-06 | G37: 0.01735
A38: Ethylene Dibromide (EDB) | B38: 106934 | C38: 0.000306 | D38: 8.732876712e-07 | E38: 0.00765 | F38: 1.746575342e-06 | G38: 0.0153
A39: Ethylene Dichloride (EDC) | B39: 107062 | C39: 5.89e-05 | D39: 1.680936073e-07 | E39: 0.0014725 | F39: 3.361872146e-07 | G39: 0.002945
A40: Formaldehyde | B40: 50000 | C40: 0.000398 | D40: 1.135844749e-06 | E40: 0.00995 | F40: 2.271689498e-06 | G40: 0.0199
A41: Hexane | B41: 110543 | C41: 0.000812 | D41: 2.317351598e-06 | E41: 0.0203 | F41: 4.634703196e-06 | G41: 0.0406
A42: Isopropyl Alchol | B42: 67630 | C42: 0.00162 | D42: 4.623287671e-06 | E42: 0.0405 | F42: 9.246575342e-06 | G42: 0.081
A43: Isopropylbenzene (Cumene) | B43: 98828 | C43: 5.61e-05 | D43: 1.601027397e-07 | E43: 0.0014025 | F43: 3.202054795e-07 | G43: 0.002805
A44: Methyl Ethyl Ketone (2-butanone) | B44: 78933 | C44: 0.0146 | D44: 4.166666667e-05 | E44: 0.365 | F44: 8.333333333e-05 | G44: 0.73
A45: Methyl Isobutyl Ketone | B45: 108101 | C45: 0.000709 | D45: 2.023401826e-06 | E45: 0.017725 | F45: 4.046803653e-06 | G45: 0.03545
A46: Styrene | B46: 100425 | C46: 0.000359 | D46: 1.024543379e-06 | E46: 0.008975 | F46: 2.049086758e-06 | G46: 0.01795
A47: t-1,4-Dichloro-2-butene | B47: 764410 | C47: 0.000892 | D47: 2.5456621e-06 | E47: 0.0223 | F47: 5.091324201e-06 | G47: 0.0446
A48: Toluene | B48: 108883 | C48: 0.00107 | D48: 3.053652968e-06 | E48: 0.02675 | F48: 6.107305936e-06 | G48: 0.0535
A49: Trichlorofluoromethane* | B49: 75694 | C49: 1.08e-07 | D49: 3.082191781e-10 | E49: 2.7e-06 | F49: 6.164383562e-10 | G49: 5.4e-06
A50: Vinyl acetate | B50: 108054 | C50: 0.00197 | D50: 5.622146119e-06 | E50: 0.04925 | F50: 1.124429224e-05 | G50: 0.0985
A51: Xylenes | B51: 1330207 | C51: 0.0018 | D51: 5.136986301e-06 | E51: 0.045 | F51: 1.02739726e-05 | G51: 0.09
A52: Ammonia | B52: 7664417 | D52: =IF(B7="N",RMR!G11,C9/8760) -> 0.0005707762557 | E52: =IF(B7="N",RMR!H11,C9) -> 5 | F52: =G52/8760 -> 0.004566210046 | G52: =IF(B7="N",0,$C$10) -> 40
A54: References:
A55: *Emission factors are derived from the District's evaluation of dairy research studies conducted by California colleges and universities.
A56: Pollutants required for toxic reporting. Current as of update date.
B60: Milk Parlor
B61: N
B62: Y

Sheet Dairy Lagoon
A1: Name | B1: Agricultural Lagoon Emissions from Dairy Operations | O1: Lagoon Area m2 | P1: Lagoon Fraction
A2: Applicability | B2: Use this spreadsheet when the emissions are from a Dairy Lagoon sources and the VOC rates are known. The VOC rates are linked to the RMR worksheet cells VOC rates in 'Lagoon/Storage Pond row'. Enter values into the Lagoon area calculator on the right to determine area fraction(s). Total ammonia value is linked to the RMR worksheet cells, 'Lagoon/Storage Pond'. Individual Lagoon values are calculated by multiplying the total lagoon ammonia by their area fraction. Entries required in yellow areas, output in gray areas. | O2: 500 | P2: =O2/$O$5 -> 0.5
A3: Author or updater | B3: Matthew Cegielski | D3: Last Update | E3: 2025-09-29 | O3: 250 | P3: =O3/$O$5 -> 0.25
A4: Facility: | B4: ='Cow Housing'!C4 -> Happy Cows | O4: 250 | P4: =O4/$O$5 -> 0.25
A5: ID#: | B5: ='Cow Housing'!C5 -> C-7777 | N5: Totals | O5: =SUM(O2:O4) -> 1000 | P5: =SUM(P2:P4) -> 1
A6: Project #: | B6: ='Cow Housing'!C6 -> C-3333 | O6: lb/hr | P6: lb/yr
A7: Inputs | B7: lb/hr | C7: lb/yr | D7: Formula | N7: Lagoon NH3 | O7: =RMR!G16 -> 0 | P7: =RMR!H16 -> 0
A8: VOC Rate | B8: =IF(RMR!E16<0,0,RMR!E16) -> 0 | C8: =IF(RMR!F16<0,0,RMR!F16) -> 0 | D8: Emissions are calculated by the multiplication of the VOC rates, area fracton, and emission factors.
D9: Lagoon Area Fraction | F9: =P2 -> 0.5 | H9: =P3 -> 0.25 | J9: =P4 -> 0.25
A10: Substances | B10: CAS# | C10: Emissions Factors lb/VOC* | D10: LB/HR | E10: LB/YR | F10: Lagoon LB/HR | G10: Lagoon LB/YR | H10: Lagoon 2 LB/HR | I10: Lagoon 2 LB/YR | J10: Lagoon 3 LB/HR | K10: Lagoon 3 LB/YR
A13: 1,1,2,2-Tetrachloroethane | B13: 79345 | C13: 0.034375 | D13: =$B$8*C13 -> 0 | E13: =$C$8*C13 -> 0 | F13: =D13*$F$9 -> 0 | G13: =E13*$F$9 -> 0 | H13: =D13*$H$9 -> 0 | I13: =E13*$H$9 -> 0 | J13: =D13*$J$9 -> 0 | K13: =E13*$J$9 -> 0
A14: 1,1,2-Trichloroethane | B14: 79005 | C14: 0.0079375 | D14: =$B$8*C14 -> 0 | E14: =$C$8*C14 -> 0 | F14: =D14*$F$9 -> 0 | G14: 0 | H14: 0 | I14: 0 | J14: 0 | K14: 0
A15: 1,2,4-Trimethylbenzene | B15: 95636 | C15: 0.029375 | D15: 0 | E15: 0 | F15: 0 | G15: 0 | H15: 0 | I15: 0 | J15: 0 | K15: 0
A16: 1,2-Dichlorobenzene | B16: 95501 | C16: 0.0625 | D16: 0 | E16: 0 | F16: 0 | G16: 0 | H16: 0 | I16: 0 | J16: 0 | K16: 0
A17: 1,3-Dichlorobenzene | B17: 541731 | C17: 0.049375 | D17: 0 | E17: 0 | F17: 0 | G17: 0 | H17: 0 | I17: 0 | J17: 0 | K17: 0
A18: 1,3-Dichloropropene | B18: 542756 | C18: 0.0074375 | D18: 0 | E18: 0 | F18: 0 | G18: 0 | H18: 0 | I18: 0 | J18: 0 | K18: 0
A19: 1,4 Dioxane | B19: 123911 | C19: 0.025 | D19: 0 | E19: 0 | F19: 0 | G19: 0 | H19: 0 | I19: 0 | J19: 0 | K19: 0
A20: 1,4-Dichloro-2-butene | B20: 764410 | C20: 0.06875 | D20: 0 | E20: 0 | F20: 0 | G20: 0 | H20: 0 | I20: 0 | J20: 0 | K20: 0
A21: 1,4-Dichlorobenzene | B21: 106467 | C21: 0.051875 | D21: 0 | E21: 0 | F21: 0 | G21: 0 | H21: 0 | I21: 0 | J21: 0 | K21: 0
A22: Acetaldehyde | B22: 75070 | C22: 0.015625 | D22: 0 | E22: 0 | F22: 0 | G22: 0 | H22: 0 | I22: 0 | J22: 0 | K22: 0
A23: Acrylonitrile | B23: 107131 | C23: 0.0073125 | D23: 0 | E23: 0 | F23: 0 | G23: 0 | H23: 0 | I23: 0 | J23: 0 | K23: 0
A24: Benzene | B24: 71432 | C24: 0.002875 | D24: 0 | E24: 0 | F24: 0 | G24: 0 | H24: 0 | I24: 0 | J24: 0 | K24: 0
A25: Benzyl chloride | B25: 100447 | C25: 0.03125 | D25: 0 | E25: 0 | F25: 0 | G25: 0 | H25: 0 | I25: 0 | J25: 0 | K25: 0
A26: Carbon disulfide | B26: 75150 | C26: 0.039375 | D26: 0 | E26: 0 | F26: =D26*$F$9 -> 0 | G26: 0 | H26: 0 | I26: 0 | J26: 0 | K26: 0
A27: Chlorobenzene | B27: 108907 | C27: 0.013125 | D27: 0 | E27: 0 | F27: 0 | G27: 0 | H27: 0 | I27: 0 | J27: 0 | K27: 0
A28: Cumene | B28: 98828 | C28: 0.019375 | D28: 0 | E28: 0 | F28: 0 | G28: 0 | H28: 0 | I28: 0 | J28: 0 | K28: 0
A29: Cyclohexane | B29: 110827 | C29: 0.0081875 | D29: 0 | E29: 0 | F29: 0 | G29: 0 | H29: 0 | I29: 0 | J29: 0 | K29: 0
A30: Ethyl Chloride | B30: 75003 | C30: 0.004625 | D30: 0 | E30: 0 | F30: 0 | G30: 0 | H30: 0 | I30: 0 | J30: 0 | K30: 0
A31: Ethylbenzene | B31: 100414 | C31: 0.01 | D31: 0 | E31: 0 | F31: 0 | G31: 0 | H31: 0 | I31: 0 | J31: 0 | K31: 0
A32: Ethylene Dibromide (EDB) | B32: 106934 | C32: 0.014375 | D32: 0 | E32: 0 | F32: 0 | G32: 0 | H32: 0 | I32: 0 | J32: 0 | K32: 0
A33: Ethylene Dichloride (EDC) | B33: 107062 | C33: 0.0040625 | D33: 0 | E33: 0 | F33: 0 | G33: 0 | H33: 0 | I33: 0 | J33: 0 | K33: 0
A34: Formaldehyde | B34: 50000 | C34: 0.008125 | D34: 0 | E34: 0 | F34: 0 | G34: 0 | H34: 0 | I34: 0 | J34: 0 | K34: 0
A35: Hexane | B35: 110543 | C35: 0.0043125 | D35: 0 | E35: 0 | F35: 0 | G35: 0 | H35: 0 | I35: 0 | J35: 0 | K35: 0
A36: Isopropyl Alchol | B36: 67630 | C36: 0.0075 | D36: 0 | E36: 0 | F36: 0 | G36: 0 | H36: 0 | I36: 0 | J36: 0 | K36: 0
A37: Methyl Ethyl Ketone | B37: 78933 | C37: 0.01375 | D37: 0 | E37: 0 | F37: 0 | G37: 0 | H37: 0 | I37: 0 | J37: 0 | K37: 0
A38: Methyl Isobutyl Ketone | B38: 108101 | C38: 0.0113125 | D38: 0 | E38: 0 | F38: 0 | G38: 0 | H38: 0 | I38: 0 | J38: 0 | K38: 0
A39: Styrene | B39: 100425 | C39: 0.01625 | D39: 0 | E39: 0 | F39: 0 | G39: 0 | H39: 0 | I39: 0 | J39: 0 | K39: 0
A40: Toluene | B40: 108883 | C40: 0.0125 | D40: 0 | E40: 0 | F40: 0 | G40: 0 | H40: 0 | I40: 0 | J40: 0 | K40: 0
A41: Trichloroethylene | B41: 79016 | C41: 0.0111875 | D41: 0 | E41: 0 | F41: 0 | G41: 0 | H41: 0 | I41: 0 | J41: 0 | K41: 0
A42: Xylenes | B42: 1330207 | C42: 0.01875 | D42: 0 | E42: 0 | F42: 0 | G42: 0 | H42: 0 | I42: 0 | J42: 0 | K42: 0
A43: Ammonia | B43: 7664417 | F43: =O7*F9 -> 0 | G43: =P7*F9 -> 0 | H43: =O7*H9 -> 0 | I43: =P7*H9 -> 0 | J43: =O7*J9 -> 0 | K43: =P7*J9 -> 0
A46: References:
A47: *Emission factors are derived from data used to establish the District’s volatile organic compound (VOC) emission factor for dairies
A48: Pollutants required for toxic reporting. Current as of update date.
A49: (Does not include emissions from Miscellaneous Processes or enteric emissions from cows)

Sheet SHARP
A1: Project ID | B1: Device Name | C1: DEV | D1: PROID
A3: ='Cow Housing'!$C$6 -> C-3333 | B3: Soild Pile Storage | C3: 4 | D3: 1 | M3: Solid Pile Area m2 | N3: Pile Fraction
A4: ='Cow Housing'!$C$6 -> C-3333 | B4: Soild Pile Storage | C4: 4 | D4: 2 | N4: =M4/$M$7 -> 
A5: ='Cow Housing'!$C$6 -> C-3333 | B5: Soild Pile Storage | C5: 4 | D5: 3 | N5: =M5/$M$7 -> 
A6: ='Cow Housing'!$C$6 -> C-3333 | B6: Land App Solid | C6: 4 | D6: 4 | N6: =M6/$M$7 -> 
A7: ='Cow Housing'!$C$6 -> C-3333 | B7: Land App Solid | C7: 4 | D7: 5 | L7: Totals | M7: =SUM(M4:M6) -> 0 | N7: =SUM(N4:N6) -> 
A8: ='Cow Housing'!$C$6 -> C-3333 | B8: Land App Solid | C8: 4 | D8: 6 | M8: lb/hr | N8: lb/yr
A9: ='Cow Housing'!$C$6 -> C-3333 | B9: Land App Liquid | C9: 3 | D9: 4 | L9: Solid NH3 | M9: =RMR!G19 -> 0 | N9: =RMR!H19 -> 0
A10: ='Cow Housing'!$C$6 -> C-3333 | B10: Land App Liquid | C10: 3 | D10: 5
A11: ='Cow Housing'!$C$6 -> C-3333 | B11: Land App Liquid | C11: 3 | D11: 6
A12: ='Cow Housing'!$C$6 -> C-3333 | B12: Lagoon 1 | C12: 3 | D12: 1 | M12: Land App Area m2 | N12: Land App Fraction
A13: ='Cow Housing'!$C$6 -> C-3333 | B13: Lagoon 2 | C13: 3 | D13: 2 | N13: =M13/$M$16 -> 
A14: ='Cow Housing'!$C$6 -> C-3333 | B14: Lagoon 3 | C14: 3 | D14: 3 | N14: =M14/$M$16 -> 
A15: ='Cow Housing'!$C$6 -> C-3333 | B15: Milk Parlor 1 | C15: 1 | D15: 1 | N15: =M15/$M$16 -> 
A16: ='Cow Housing'!$C$6 -> C-3333 | B16: Milk Parlor 2 | C16: 1 | D16: 2 | L16: Totals | M16: =SUM(M13:M15) -> 0 | N16: =SUM(N13:N15) -> 
A17: ='Cow Housing'!$C$6 -> C-3333 | B17: ='Cow Housing'!B9 -> 0 | C17: 2 | D17: 1 | M17: lb/hr | N17: lb/yr
A18: ='Cow Housing'!$C$6 -> C-3333 | B18: ='Cow Housing'!B10 -> 0 | C18: 2 | D18: 2 | L18: Land App Soild NH3 | M18: =RMR!G18 -> 0 | N18: =RMR!H18 -> 0
A19: ='Cow Housing'!$C$6 -> C-3333 | B19: ='Cow Housing'!B11 -> 0 | C19: 2 | D19: 3 | L19: Land App Liquid NH3 | M19: =RMR!G17 -> 0 | N19: =RMR!H17 -> 0
A20: ='Cow Housing'!$C$6 -> C-3333 | B20: ='Cow Housing'!B12 -> 0 | C20: 2 | D20: 4
A21: ='Cow Housing'!$C$6 -> C-3333 | B21: ='Cow Housing'!B13 -> 0 | C21: 2 | D21: 5
A22: ='Cow Housing'!$C$6 -> C-3333 | B22: ='Cow Housing'!B14 -> 0 | C22: 2 | D22: 6
A23: ='Cow Housing'!$C$6 -> C-3333 | B23: ='Cow Housing'!B15 -> 0 | C23: 2 | D23: 7
A24: ='Cow Housing'!$C$6 -> C-3333 | B24: ='Cow Housing'!B16 -> 0 | C24: 2 | D24: 8
A25: ='Cow Housing'!$C$6 -> C-3333 | B25: ='Cow Housing'!B17 -> 0 | C25: 2 | D25: 9
A26: ='Cow Housing'!$C$6 -> C-3333 | B26: ='Cow Housing'!B18 -> 0 | C26: 2 | D26: 10
A27: ='Cow Housing'!$C$6 -> C-3333 | B27: ='Cow Housing'!B19 -> 0 | C27: 2 | D27: 11
A28: ='Cow Housing'!$C$6 -> C-3333 | B28: ='Cow Housing'!B20 -> 0 | C28: 2 | D28: 12
A29: ='Cow Housing'!$C$6 -> C-3333 | B29: ='Cow Housing'!B21 -> 0 | C29: 2 | D29: 13
A30: ='Cow Housing'!$C$6 -> C-3333 | B30: ='Cow Housing'!B22 -> 0 | C30: 2 | D30: 14
A31: ='Cow Housing'!$C$6 -> C-3333 | B31: ='Cow Housing'!B23 -> 0 | C31: 2 | D31: 15
A32: ='Cow Housing'!$C$6 -> C-3333 | B32: ='Cow Housing'!B24 -> 0 | C32: 2 | D32: 16
A33: ='Cow Housing'!$C$6 -> C-3333 | B33: ='Cow Housing'!B25 -> 0 | C33: 2 | D33: 17
A34: ='Cow Housing'!$C$6 -> C-3333 | B34: ='Cow Housing'!B26 -> 0 | C34: 2 | D34: 18
A35: ='Cow Housing'!$C$6 -> C-3333 | B35: ='Cow Housing'!B27 -> 0 | C35: 2 | D35: 19
A36: ='Cow Housing'!$C$6 -> C-3333 | B36: ='Cow Housing'!B28 -> 0 | C36: 2 | D36: 20
A37: ='Cow Housing'!$C$6 -> C-3333 | B37: ='Cow Housing'!B29 -> 0 | C37: 2 | D37: 21
A38: ='Cow Housing'!$C$6 -> C-3333 | B38: ='Cow Housing'!B30 -> 0 | C38: 2 | D38: 22
A39: ='Cow Housing'!$C$6 -> C-3333 | B39: ='Cow Housing'!B31 -> 0 | C39: 2 | D39: 23
A40: ='Cow Housing'!$C$6 -> C-3333 | B40: ='Cow Housing'!B32 -> 0 | C40: 2 | D40: 24
A41: ='Cow Housing'!$C$6 -> C-3333 | B41: ='Cow Housing'!B33 -> 0 | C41: 2 | D41: 25
A42: ='Cow Housing'!$C$6 -> C-3333 | B42: ='Cow Housing'!B34 -> 0 | C42: 2 | D42: 26
A43: ='Cow Housing'!$C$6 -> C-3333 | B43: ='Cow Housing'!B35 -> 0 | C43: 2 | D43: 27
A44: ='Cow Housing'!$C$6 -> C-3333 | B44: ='Cow Housing'!B36 -> 0 | C44: 2 | D44: 28
A45: ='Cow Housing'!$C$6 -> C-3333 | B45: ='Cow Housing'!B37 -> 0 | C45: 2 | D45: 29
A46: ='Cow Housing'!$C$6 -> C-3333 | B46: ='Cow Housing'!B38 -> 0 | C46: 2 | D46: 30
A47: ='Cow Housing'!$C$6 -> C-3333 | B47: ='Cow Housing'!B39 -> 0 | C47: 2 | D47: 31
A48: ='Cow Housing'!$C$6 -> C-3333 | B48: ='Cow Housing'!B40 -> 0 | C48: 2 | D48: 32
A49: ='Cow Housing'!$C$6 -> C-3333 | B49: ='Cow Housing'!B41 -> 0 | C49: 2 | D49: 33
A50: ='Cow Housing'!$C$6 -> C-3333 | B50: ='Cow Housing'!B42 -> 0 | C50: 2 | D50: 34
A51: ='Cow Housing'!$C$6 -> C-3333 | B51: ='Cow Housing'!B43 -> 0 | C51: 2 | D51: 35
A52: ='Cow Housing'!$C$6 -> C-3333 | B52: ='Cow Housing'!B44 -> 0 | C52: 2 | D52: 36
A53: ='Cow Housing'!$C$6 -> C-3333 | B53: ='Cow Housing'!B45 -> 0 | C53: 2 | D53: 37
A54: ='Cow Housing'!$C$6 -> C-3333 | B54: ='Cow Housing'!B46 -> 0 | C54: 2 | D54: 38
A55: ='Cow Housing'!$C$6 -> C-3333 | B55: ='Cow Housing'!B47 -> 0 | C55: 2 | D55: 39
A56: ='Cow Housing'!$C$6 -> C-3333 | B56: ='Cow Housing'!B48 -> 0 | C56: 2 | D56: 40
A57: ='Cow Housing'!$C$6 -> C-3333 | B57: ='Cow Housing'!B49 -> 0 | C57: 2 | D57: 41
A58: ='Cow Housing'!$C$6 -> C-3333 | B58: ='Cow Housing'!B50 -> 0 | C58: 2 | D58: 42
A59: ='Cow Housing'!$C$6 -> C-3333 | B59: ='Cow Housing'!B51 -> 0 | C59: 2 | D59: 43
A60: ='Cow Housing'!$C$6 -> C-3333 | B60: ='Cow Housing'!B52 -> 0 | C60: 2 | D60: 44
A61: ='Cow Housing'!$C$6 -> C-3333 | B61: ='Cow Housing'!B53 -> 0 | C61: 2 | D61: 45
A62: ='Cow Housing'!$C$6 -> C-3333 | B62: ='Cow Housing'!B54 -> 0 | C62: 2 | D62: 46
A63: ='Cow Housing'!$C$6 -> C-3333 | B63: ='Cow Housing'!B55 -> 0 | C63: 2 | D63: 47
A64: ='Cow Housing'!$C$6 -> C-3333 | B64: ='Cow Housing'!B56 -> 0 | C64: 2 | D64: 48
A65: ='Cow Housing'!$C$6 -> C-3333 | B65: ='Cow Housing'!B57 -> 0 | C65: 2 | D65: 49
A66: ='Cow Housing'!$C$6 -> C-3333 | B66: ='Cow Housing'!B58 -> 0 | C66: 2 | D66: 50
A67: ='Cow Housing'!$C$6 -> C-3333 | B67: ='Cow Housing'!B59 -> 0 | C67: 2 | D67: 51
A68: ='Cow Housing'!$C$6 -> C-3333 | B68: ='Cow Housing'!B60 -> 0 | C68: 2 | D68: 52
A69: ='Cow Housing'!$C$6 -> C-3333 | B69: ='Cow Housing'!B61 -> 0 | C69: 2 | D69: 53
A70: ='Cow Housing'!$C$6 -> C-3333 | B70: ='Cow Housing'!B62 -> 0 | C70: 2 | D70: 54
A71: ='Cow Housing'!$C$6 -> C-3333 | B71: ='Cow Housing'!B63 -> 0 | C71: 2 | D71: 55
A72: ='Cow Housing'!$C$6 -> C-3333 | B72: ='Cow Housing'!B64 -> 0 | C72: 2 | D72: 56
A73: ='Cow Housing'!$C$6 -> C-3333 | B73: ='Cow Housing'!B65 -> 0 | C73: 2 | D73: 57
A74: ='Cow Housing'!$C$6 -> C-3333 | B74: ='Cow Housing'!B66 -> 0 | C74: 2 | D74: 58
A75: ='Cow Housing'!$C$6 -> C-3333 | B75: ='Cow Housing'!B67 -> 0 | C75: 2 | D75: 59
A76: ='Cow Housing'!$C$6 -> C-3333 | B76: ='Cow Housing'!B68 -> 0 | C76: 2 | D76: 60
A77: ='Cow Housing'!$C$6 -> C-3333 | B77: ='Cow Housing'!B69 -> 0 | C77: 2 | D77: 61
A78: ='Cow Housing'!$C$6 -> C-3333 | B78: ='Cow Housing'!B70 -> 0 | C78: 2 | D78: 62
A79: ='Cow Housing'!$C$6 -> C-3333 | B79: ='Cow Housing'!B71 -> 0 | C79: 2 | D79: 63
A80: ='Cow Housing'!$C$6 -> C-3333 | B80: ='Cow Housing'!B72 -> 0 | C80: 2 | D80: 64
A81: ='Cow Housing'!$C$6 -> C-3333 | B81: ='Cow Housing'!B73 -> 0 | C81: 2 | D81: 65
A82: ='Cow Housing'!$C$6 -> C-3333 | B82: ='Cow Housing'!B74 -> 0 | C82: 2 | D82: 66
A83: ='Cow Housing'!$C$6 -> C-3333 | B83: ='Cow Housing'!B75 -> 0 | C83: 2 | D83: 67
A84: ='Cow Housing'!$C$6 -> C-3333 | B84: ='Cow Housing'!B76 -> 0 | C84: 2 | D84: 68
A85: ='Cow Housing'!$C$6 -> C-3333 | B85: ='Cow Housing'!B77 -> 0 | C85: 2 | D85: 69
A86: ='Cow Housing'!$C$6 -> C-3333 | B86: ='Cow Housing'!B78 -> 0 | C86: 2 | D86: 70
A87: ='Cow Housing'!$C$6 -> C-3333 | B87: ='Cow Housing'!B79 -> 0 | C87: 2 | D87: 71
A88: ='Cow Housing'!$C$6 -> C-3333 | B88: ='Cow Housing'!B80 -> 0 | C88: 2 | D88: 72
A89: ='Cow Housing'!$C$6 -> C-3333 | B89: ='Cow Housing'!B81 -> 0 | C89: 2 | D89: 73
A90: ='Cow Housing'!$C$6 -> C-3333 | B90: ='Cow Housing'!B82 -> 0 | C90: 2 | D90: 74
A91: ='Cow Housing'!$C$6 -> C-3333 | B91: ='Cow Housing'!B83 -> 0 | C91: 2 | D91: 75
A92: Project ID | B92: Device Name | C92: DEV | D92: PROID | E92: POL | F92: Cas Name | G92: HR | H92: EMS
A93: ='Cow Housing'!$C$6 -> C-3333 | B93: =$B$15 -> Milk Parlor 1 | C93: =$C$15 -> 1 | D93: =$D$15 -> 1 | E93: 50000 | G93: ='Milk Parlor'!D40 -> 1.135844749e-06 | H93: ='Milk Parlor'!E40 -> 0.00995
A94: ='Cow Housing'!$C$6 -> C-3333 | B94: =$B$15 -> Milk Parlor 1 | C94: =$C$15 -> 1 | D94: =$D$15 -> 1 | E94: 56235 | G94: ='Milk Parlor'!D30 -> 1.675228311e-07 | H94: ='Milk Parlor'!E30 -> 0.0014675
A95: ='Cow Housing'!$C$6 -> C-3333 | B95: =$B$15 -> Milk Parlor 1 | C95: =$C$15 -> 1 | D95: =$D$15 -> 1 | E95: 67630 | G95: ='Milk Parlor'!D42 -> 4.623287671e-06 | H95: ='Milk Parlor'!E42 -> 0.0405
A96: ='Cow Housing'!$C$6 -> C-3333 | B96: =$B$15 -> Milk Parlor 1 | C96: =$C$15 -> 1 | D96: =$D$15 -> 1 | E96: 67663 | G96: ='Milk Parlor'!D32 -> 3.738584475e-07 | H96: ='Milk Parlor'!E32 -> 0.003275
A97: ='Cow Housing'!$C$6 -> C-3333 | B97: =$B$15 -> Milk Parlor 1 | C97: =$C$15 -> 1 | D97: =$D$15 -> 1 | E97: 71432 | G97: ='Milk Parlor'!D26 -> 9.103881279e-07 | H97: ='Milk Parlor'!E26 -> 0.007975
A98: ='Cow Housing'!$C$6 -> C-3333 | B98: =$B$15 -> Milk Parlor 1 | C98: =$C$15 -> 1 | D98: =$D$15 -> 1 | E98: 74873 | G98: ='Milk Parlor'!D33 -> 2.263127854e-06 | H98: ='Milk Parlor'!E33 -> 0.019825
A99: ='Cow Housing'!$C$6 -> C-3333 | B99: =$B$15 -> Milk Parlor 1 | C99: =$C$15 -> 1 | D99: =$D$15 -> 1 | E99: 75003 | G99: ='Milk Parlor'!D36 -> 6.820776256e-07 | H99: ='Milk Parlor'!E36 -> 0.005975
A100: ='Cow Housing'!$C$6 -> C-3333 | B100: =$B$15 -> Milk Parlor 1 | C100: =$C$15 -> 1 | D100: =$D$15 -> 1 | E100: 75070 | G100: ='Milk Parlor'!D24 -> 6.877853881e-06 | H100: ='Milk Parlor'!E24 -> 0.06025
A101: ='Cow Housing'!$C$6 -> C-3333 | B101: =$B$15 -> Milk Parlor 1 | C101: =$C$15 -> 1 | D101: =$D$15 -> 1 | E101: 75150 | G101: ='Milk Parlor'!D29 -> 7.106164384e-06 | H101: ='Milk Parlor'!E29 -> 0.06225
A102: ='Cow Housing'!$C$6 -> C-3333 | B102: =$B$15 -> Milk Parlor 1 | C102: =$C$15 -> 1 | D102: =$D$15 -> 1 | E102: 75694 | G102: ='Milk Parlor'!D49 -> 3.082191781e-10 | H102: ='Milk Parlor'!E49 -> 2.7e-06
A103: ='Cow Housing'!$C$6 -> C-3333 | B103: =$B$15 -> Milk Parlor 1 | C103: =$C$15 -> 1 | D103: =$D$15 -> 1 | E103: 78933 | G103: ='Milk Parlor'!D44 -> 4.166666667e-05 | H103: ='Milk Parlor'!E44 -> 0.365
A104: ='Cow Housing'!$C$6 -> C-3333 | B104: =$B$15 -> Milk Parlor 1 | C104: =$C$15 -> 1 | D104: =$D$15 -> 1 | E104: 79005 | G104: ='Milk Parlor'!D16 -> 6.449771689e-07 | H104: ='Milk Parlor'!E16 -> 0.00565
A105: ='Cow Housing'!$C$6 -> C-3333 | B105: =$B$15 -> Milk Parlor 1 | C105: =$C$15 -> 1 | D105: =$D$15 -> 1 | E105: 79345 | G105: ='Milk Parlor'!D15 -> 2.491438356e-08 | H105: ='Milk Parlor'!E15 -> 0.00021825
A106: ='Cow Housing'!$C$6 -> C-3333 | B106: =$B$15 -> Milk Parlor 1 | C106: =$C$15 -> 1 | D106: =$D$15 -> 1 | E106: 95501 | G106: ='Milk Parlor'!D20 -> 1.563926941e-06 | H106: ='Milk Parlor'!E20 -> 0.0137
A107: ='Cow Housing'!$C$6 -> C-3333 | B107: =$B$15 -> Milk Parlor 1 | C107: =$C$15 -> 1 | D107: =$D$15 -> 1 | E107: 96128 | G107: ='Milk Parlor'!D19 -> 1.409817352e-07 | H107: ='Milk Parlor'!E19 -> 0.001235
A108: ='Cow Housing'!$C$6 -> C-3333 | B108: =$B$15 -> Milk Parlor 1 | C108: =$C$15 -> 1 | D108: =$D$15 -> 1 | E108: 96184 | G108: ='Milk Parlor'!D17 -> 7.876712329e-07 | H108: ='Milk Parlor'!E17 -> 0.0069
A109: ='Cow Housing'!$C$6 -> C-3333 | B109: =$B$15 -> Milk Parlor 1 | C109: =$C$15 -> 1 | D109: =$D$15 -> 1 | E109: 98828 | G109: ='Milk Parlor'!D43 -> 1.601027397e-07 | H109: ='Milk Parlor'!E43 -> 0.0014025
A110: ='Cow Housing'!$C$6 -> C-3333 | B110: =$B$15 -> Milk Parlor 1 | C110: =$C$15 -> 1 | D110: =$D$15 -> 1 | E110: 100414 | G110: ='Milk Parlor'!D37 -> 9.902968037e-07 | H110: ='Milk Parlor'!E37 -> 0.008675
A111: ='Cow Housing'!$C$6 -> C-3333 | B111: =$B$15 -> Milk Parlor 1 | C111: =$C$15 -> 1 | D111: =$D$15 -> 1 | E111: 100425 | G111: ='Milk Parlor'!D46 -> 1.024543379e-06 | H111: ='Milk Parlor'!E46 -> 0.008975
A112: ='Cow Housing'!$C$6 -> C-3333 | B112: =$B$15 -> Milk Parlor 1 | C112: =$C$15 -> 1 | D112: =$D$15 -> 1 | E112: 100447 | G112: ='Milk Parlor'!D27 -> 8.247716895e-07 | H112: ='Milk Parlor'!E27 -> 0.007225
A113: ='Cow Housing'!$C$6 -> C-3333 | B113: =$B$15 -> Milk Parlor 1 | C113: =$C$15 -> 1 | D113: =$D$15 -> 1 | E113: 106467 | G113: ='Milk Parlor'!D23 -> 1.481164384e-06 | H113: ='Milk Parlor'!E23 -> 0.012975
A114: ='Cow Housing'!$C$6 -> C-3333 | B114: =$B$15 -> Milk Parlor 1 | C114: =$C$15 -> 1 | D114: =$D$15 -> 1 | E114: 106934 | G114: ='Milk Parlor'!D38 -> 8.732876712e-07 | H114: ='Milk Parlor'!E38 -> 0.00765
A115: ='Cow Housing'!$C$6 -> C-3333 | B115: =$B$15 -> Milk Parlor 1 | C115: =$C$15 -> 1 | D115: =$D$15 -> 1 | E115: 107062 | G115: ='Milk Parlor'!D39 -> 1.680936073e-07 | H115: ='Milk Parlor'!E39 -> 0.0014725
A116: ='Cow Housing'!$C$6 -> C-3333 | B116: =$B$15 -> Milk Parlor 1 | C116: =$C$15 -> 1 | D116: =$D$15 -> 1 | E116: 107131 | G116: ='Milk Parlor'!D25 -> 6.934931507e-07 | H116: ='Milk Parlor'!E25 -> 0.006075
A117: ='Cow Housing'!$C$6 -> C-3333 | B117: =$B$15 -> Milk Parlor 1 | C117: =$C$15 -> 1 | D117: =$D$15 -> 1 | E117: 108054 | G117: ='Milk Parlor'!D50 -> 5.622146119e-06 | H117: ='Milk Parlor'!E50 -> 0.04925
A118: ='Cow Housing'!$C$6 -> C-3333 | B118: =$B$15 -> Milk Parlor 1 | C118: =$C$15 -> 1 | D118: =$D$15 -> 1 | E118: 108101 | G118: ='Milk Parlor'!D45 -> 2.023401826e-06 | H118: ='Milk Parlor'!E45 -> 0.017725
A119: ='Cow Housing'!$C$6 -> C-3333 | B119: =$B$15 -> Milk Parlor 1 | C119: =$C$15 -> 1 | D119: =$D$15 -> 1 | E119: 108883 | G119: ='Milk Parlor'!D48 -> 3.053652968e-06 | H119: ='Milk Parlor'!E48 -> 0.02675
A120: ='Cow Housing'!$C$6 -> C-3333 | B120: =$B$15 -> Milk Parlor 1 | C120: =$C$15 -> 1 | D120: =$D$15 -> 1 | E120: 108907 | G120: ='Milk Parlor'!D31 -> 7.762557078e-07 | H120: ='Milk Parlor'!E31 -> 0.0068
A121: ='Cow Housing'!$C$6 -> C-3333 | B121: =$B$15 -> Milk Parlor 1 | C121: =$C$15 -> 1 | D121: =$D$15 -> 1 | E121: 110543 | G121: ='Milk Parlor'!D41 -> 2.317351598e-06 | H121: ='Milk Parlor'!E41 -> 0.0203
A122: ='Cow Housing'!$C$6 -> C-3333 | B122: =$B$15 -> Milk Parlor 1 | C122: =$C$15 -> 1 | D122: =$D$15 -> 1 | E122: 110827 | G122: ='Milk Parlor'!D35 -> 1.949200913e-05 | H122: ='Milk Parlor'!E35 -> 0.17075
A123: ='Cow Housing'!$C$6 -> C-3333 | B123: =$B$15 -> Milk Parlor 1 | C123: =$C$15 -> 1 | D123: =$D$15 -> 1 | E123: 120821 | G123: ='Milk Parlor'!D18 -> 2.223173516e-06 | H123: ='Milk Parlor'!E18 -> 0.019475
A124: ='Cow Housing'!$C$6 -> C-3333 | B124: =$B$15 -> Milk Parlor 1 | C124: =$C$15 -> 1 | D124: =$D$15 -> 1 | E124: 123728 | G124: ='Milk Parlor'!D28 -> 3.253424658e-07 | H124: ='Milk Parlor'!E28 -> 0.00285
A125: ='Cow Housing'!$C$6 -> C-3333 | B125: =$B$15 -> Milk Parlor 1 | C125: =$C$15 -> 1 | D125: =$D$15 -> 1 | E125: 123911 | G125: ='Milk Parlor'!D22 -> 4.023972603e-06 | H125: ='Milk Parlor'!E22 -> 0.03525
A126: ='Cow Housing'!$C$6 -> C-3333 | B126: =$B$15 -> Milk Parlor 1 | C126: =$C$15 -> 1 | D126: =$D$15 -> 1 | E126: 541731 | G126: ='Milk Parlor'!D21 -> 1.398401826e-06 | H126: ='Milk Parlor'!E21 -> 0.01225
A127: ='Cow Housing'!$C$6 -> C-3333 | B127: =$B$15 -> Milk Parlor 1 | C127: =$C$15 -> 1 | D127: =$D$15 -> 1 | E127: 764410 | G127: ='Milk Parlor'!D47 -> 2.5456621e-06 | H127: ='Milk Parlor'!E47 -> 0.0223
A128: ='Cow Housing'!$C$6 -> C-3333 | B128: =$B$15 -> Milk Parlor 1 | C128: =$C$15 -> 1 | D128: =$D$15 -> 1 | E128: 1330207 | G128: ='Milk Parlor'!D51 -> 5.136986301e-06 | H128: ='Milk Parlor'!E51 -> 0.045
A129: ='Cow Housing'!$C$6 -> C-3333 | B129: =$B$15 -> Milk Parlor 1 | C129: =$C$15 -> 1 | D129: =$D$15 -> 1 | E129: 4170303 | G129: ='Milk Parlor'!D34 -> 4.023972603e-07 | H129: ='Milk Parlor'!E34 -> 0.003525
A130: ='Cow Housing'!$C$6 -> C-3333 | B130: =$B$15 -> Milk Parlor 1 | C130: =$C$15 -> 1 | D130: =$D$15 -> 1 | E130: 7664417 | G130: ='Milk Parlor'!D52 -> 0.0005707762557 | H130: ='Milk Parlor'!E52 -> 5
A131: ='Cow Housing'!$C$6 -> C-3333 | B131: =$B$16 -> Milk Parlor 2 | C131: =$C$16 -> 1 | D131: =$D$16 -> 2 | E131: 50000 | G131: ='Milk Parlor'!F40 -> 2.271689498e-06 | H131: ='Milk Parlor'!G40 -> 0.0199
A132: ='Cow Housing'!$C$6 -> C-3333 | B132: =$B$16 -> Milk Parlor 2 | C132: =$C$16 -> 1 | D132: =$D$16 -> 2 | E132: 56235 | G132: ='Milk Parlor'!F30 -> 3.350456621e-07 | H132: ='Milk Parlor'!G30 -> 0.002935
A133: ='Cow Housing'!$C$6 -> C-3333 | B133: =$B$16 -> Milk Parlor 2 | C133: =$C$16 -> 1 | D133: =$D$16 -> 2 | E133: 67630 | G133: ='Milk Parlor'!F42 -> 9.246575342e-06 | H133: ='Milk Parlor'!G42 -> 0.081
A134: ='Cow Housing'!$C$6 -> C-3333 | B134: =$B$16 -> Milk Parlor 2 | C134: =$C$16 -> 1 | D134: =$D$16 -> 2 | E134: 67663 | G134: ='Milk Parlor'!F32 -> 7.47716895e-07 | H134: ='Milk Parlor'!G32 -> 0.00655
A135: ='Cow Housing'!$C$6 -> C-3333 | B135: =$B$16 -> Milk Parlor 2 | C135: =$C$16 -> 1 | D135: =$D$16 -> 2 | E135: 71432 | G135: ='Milk Parlor'!F26 -> 1.820776256e-06 | H135: ='Milk Parlor'!G26 -> 0.01595
A136: ='Cow Housing'!$C$6 -> C-3333 | B136: =$B$16 -> Milk Parlor 2 | C136: =$C$16 -> 1 | D136: =$D$16 -> 2 | E136: 74873 | G136: ='Milk Parlor'!F33 -> 4.526255708e-06 | H136: ='Milk Parlor'!G33 -> 0.03965
A137: ='Cow Housing'!$C$6 -> C-3333 | B137: =$B$16 -> Milk Parlor 2 | C137: =$C$16 -> 1 | D137: =$D$16 -> 2 | E137: 75003 | G137: ='Milk Parlor'!F36 -> 1.364155251e-06 | H137: ='Milk Parlor'!G36 -> 0.01195
A138: ='Cow Housing'!$C$6 -> C-3333 | B138: =$B$16 -> Milk Parlor 2 | C138: =$C$16 -> 1 | D138: =$D$16 -> 2 | E138: 75070 | G138: ='Milk Parlor'!F24 -> 1.375570776e-05 | H138: ='Milk Parlor'!G24 -> 0.1205
A139: ='Cow Housing'!$C$6 -> C-3333 | B139: =$B$16 -> Milk Parlor 2 | C139: =$C$16 -> 1 | D139: =$D$16 -> 2 | E139: 75150 | G139: ='Milk Parlor'!F29 -> 1.421232877e-05 | H139: ='Milk Parlor'!G29 -> 0.1245
A140: ='Cow Housing'!$C$6 -> C-3333 | B140: =$B$16 -> Milk Parlor 2 | C140: =$C$16 -> 1 | D140: =$D$16 -> 2 | E140: 75694 | G140: ='Milk Parlor'!F49 -> 6.164383562e-10 | H140: ='Milk Parlor'!G49 -> 5.4e-06
A141: ='Cow Housing'!$C$6 -> C-3333 | B141: =$B$16 -> Milk Parlor 2 | C141: =$C$16 -> 1 | D141: =$D$16 -> 2 | E141: 78933 | G141: ='Milk Parlor'!F44 -> 8.333333333e-05 | H141: ='Milk Parlor'!G44 -> 0.73
A142: ='Cow Housing'!$C$6 -> C-3333 | B142: =$B$16 -> Milk Parlor 2 | C142: =$C$16 -> 1 | D142: =$D$16 -> 2 | E142: 79005 | G142: ='Milk Parlor'!F16 -> 1.289954338e-06 | H142: ='Milk Parlor'!G16 -> 0.0113
A143: ='Cow Housing'!$C$6 -> C-3333 | B143: =$B$16 -> Milk Parlor 2 | C143: =$C$16 -> 1 | D143: =$D$16 -> 2 | E143: 79345 | G143: ='Milk Parlor'!F15 -> 4.982876712e-08 | H143: ='Milk Parlor'!G15 -> 0.0004365
A144: ='Cow Housing'!$C$6 -> C-3333 | B144: =$B$16 -> Milk Parlor 2 | C144: =$C$16 -> 1 | D144: =$D$16 -> 2 | E144: 95501 | G144: ='Milk Parlor'!F20 -> 3.127853881e-06 | H144: ='Milk Parlor'!G20 -> 0.0274
A145: ='Cow Housing'!$C$6 -> C-3333 | B145: =$B$16 -> Milk Parlor 2 | C145: =$C$16 -> 1 | D145: =$D$16 -> 2 | E145: 96128 | G145: ='Milk Parlor'!F19 -> 2.819634703e-07 | H145: ='Milk Parlor'!G19 -> 0.00247
A146: ='Cow Housing'!$C$6 -> C-3333 | B146: =$B$16 -> Milk Parlor 2 | C146: =$C$16 -> 1 | D146: =$D$16 -> 2 | E146: 96184 | G146: ='Milk Parlor'!F17 -> 1.575342466e-06 | H146: ='Milk Parlor'!G17 -> 0.0138
A147: ='Cow Housing'!$C$6 -> C-3333 | B147: =$B$16 -> Milk Parlor 2 | C147: =$C$16 -> 1 | D147: =$D$16 -> 2 | E147: 98828 | G147: ='Milk Parlor'!F43 -> 3.202054795e-07 | H147: ='Milk Parlor'!G43 -> 0.002805
A148: ='Cow Housing'!$C$6 -> C-3333 | B148: =$B$16 -> Milk Parlor 2 | C148: =$C$16 -> 1 | D148: =$D$16 -> 2 | E148: 100414 | G148: ='Milk Parlor'!F37 -> 1.980593607e-06 | H148: ='Milk Parlor'!G37 -> 0.01735
A149: ='Cow Housing'!$C$6 -> C-3333 | B149: =$B$16 -> Milk Parlor 2 | C149: =$C$16 -> 1 | D149: =$D$16 -> 2 | E149: 100425 | G149: ='Milk Parlor'!F46 -> 2.049086758e-06 | H149: ='Milk Parlor'!G46 -> 0.01795
A150: ='Cow Housing'!$C$6 -> C-3333 | B150: =$B$16 -> Milk Parlor 2 | C150: =$C$16 -> 1 | D150: =$D$16 -> 2 | E150: 100447 | G150: ='Milk Parlor'!F27 -> 1.649543379e-06 | H150: ='Milk Parlor'!G27 -> 0.01445
A151: ='Cow Housing'!$C$6 -> C-3333 | B151: =$B$16 -> Milk Parlor 2 | C151: =$C$16 -> 1 | D151: =$D$16 -> 2 | E151: 106467 | G151: ='Milk Parlor'!F23 -> 2.962328767e-06 | H151: ='Milk Parlor'!G23 -> 0.02595
A152: ='Cow Housing'!$C$6 -> C-3333 | B152: =$B$16 -> Milk Parlor 2 | C152: =$C$16 -> 1 | D152: =$D$16 -> 2 | E152: 106934 | G152: ='Milk Parlor'!F38 -> 1.746575342e-06 | H152: ='Milk Parlor'!G38 -> 0.0153
A153: ='Cow Housing'!$C$6 -> C-3333 | B153: =$B$16 -> Milk Parlor 2 | C153: =$C$16 -> 1 | D153: =$D$16 -> 2 | E153: 107062 | G153: ='Milk Parlor'!F39 -> 3.361872146e-07 | H153: ='Milk Parlor'!G39 -> 0.002945
A154: ='Cow Housing'!$C$6 -> C-3333 | B154: =$B$16 -> Milk Parlor 2 | C154: =$C$16 -> 1 | D154: =$D$16 -> 2 | E154: 107131 | G154: ='Milk Parlor'!F25 -> 1.386986301e-06 | H154: ='Milk Parlor'!G25 -> 0.01215
A155: ='Cow Housing'!$C$6 -> C-3333 | B155: =$B$16 -> Milk Parlor 2 | C155: =$C$16 -> 1 | D155: =$D$16 -> 2 | E155: 108054 | G155: ='Milk Parlor'!F50 -> 1.124429224e-05 | H155: ='Milk Parlor'!G50 -> 0.0985
A156: ='Cow Housing'!$C$6 -> C-3333 | B156: =$B$16 -> Milk Parlor 2 | C156: =$C$16 -> 1 | D156: =$D$16 -> 2 | E156: 108101 | G156: ='Milk Parlor'!F45 -> 4.046803653e-06 | H156: ='Milk Parlor'!G45 -> 0.03545
A157: ='Cow Housing'!$C$6 -> C-3333 | B157: =$B$16 -> Milk Parlor 2 | C157: =$C$16 -> 1 | D157: =$D$16 -> 2 | E157: 108883 | G157: ='Milk Parlor'!F48 -> 6.107305936e-06 | H157: ='Milk Parlor'!G48 -> 0.0535
A158: ='Cow Housing'!$C$6 -> C-3333 | B158: =$B$16 -> Milk Parlor 2 | C158: =$C$16 -> 1 | D158: =$D$16 -> 2 | E158: 108907 | G158: ='Milk Parlor'!F31 -> 1.552511416e-06 | H158: ='Milk Parlor'!G31 -> 0.0136
A159: ='Cow Housing'!$C$6 -> C-3333 | B159: =$B$16 -> Milk Parlor 2 | C159: =$C$16 -> 1 | D159: =$D$16 -> 2 | E159: 110543 | G159: ='Milk Parlor'!F41 -> 4.634703196e-06 | H159: ='Milk Parlor'!G41 -> 0.0406
A160: ='Cow Housing'!$C$6 -> C-3333 | B160: =$B$16 -> Milk Parlor 2 | C160: =$C$16 -> 1 | D160: =$D$16 -> 2 | E160: 110827 | G160: ='Milk Parlor'!F35 -> 3.898401826e-05 | H160: ='Milk Parlor'!G35 -> 0.3415
A161: ='Cow Housing'!$C$6 -> C-3333 | B161: =$B$16 -> Milk Parlor 2 | C161: =$C$16 -> 1 | D161: =$D$16 -> 2 | E161: 120821 | G161: ='Milk Parlor'!F18 -> 4.446347032e-06 | H161: ='Milk Parlor'!G18 -> 0.03895
A162: ='Cow Housing'!$C$6 -> C-3333 | B162: =$B$16 -> Milk Parlor 2 | C162: =$C$16 -> 1 | D162: =$D$16 -> 2 | E162: 123728 | G162: ='Milk Parlor'!F28 -> 6.506849315e-07 | H162: ='Milk Parlor'!G28 -> 0.0057
A163: ='Cow Housing'!$C$6 -> C-3333 | B163: =$B$16 -> Milk Parlor 2 | C163: =$C$16 -> 1 | D163: =$D$16 -> 2 | E163: 123911 | G163: ='Milk Parlor'!F22 -> 8.047945205e-06 | H163: ='Milk Parlor'!G22 -> 0.0705
A164: ='Cow Housing'!$C$6 -> C-3333 | B164: =$B$16 -> Milk Parlor 2 | C164: =$C$16 -> 1 | D164: =$D$16 -> 2 | E164: 541731 | G164: ='Milk Parlor'!F21 -> 2.796803653e-06 | H164: ='Milk Parlor'!G21 -> 0.0245
A165: ='Cow Housing'!$C$6 -> C-3333 | B165: =$B$16 -> Milk Parlor 2 | C165: =$C$16 -> 1 | D165: =$D$16 -> 2 | E165: 764410 | G165: ='Milk Parlor'!F47 -> 5.091324201e-06 | H165: ='Milk Parlor'!G47 -> 0.0446
A166: ='Cow Housing'!$C$6 -> C-3333 | B166: =$B$16 -> Milk Parlor 2 | C166: =$C$16 -> 1 | D166: =$D$16 -> 2 | E166: 1330207 | G166: ='Milk Parlor'!F51 -> 1.02739726e-05 | H166: ='Milk Parlor'!G51 -> 0.09
A167: ='Cow Housing'!$C$6 -> C-3333 | B167: =$B$16 -> Milk Parlor 2 | C167: =$C$16 -> 1 | D167: =$D$16 -> 2 | E167: 4170303 | G167: ='Milk Parlor'!F34 -> 8.047945205e-07 | H167: ='Milk Parlor'!G34 -> 0.00705
A168: ='Cow Housing'!$C$6 -> C-3333 | B168: =$B$16 -> Milk Parlor 2 | C168: =$C$16 -> 1 | D168: =$D$16 -> 2 | E168: 7664417 | G168: ='Milk Parlor'!F52 -> 0.004566210046 | H168: ='Milk Parlor'!G52 -> 40
A169: ='Cow Housing'!$C$6 -> C-3333 | B169: =$B$17 -> 0 | C169: =$C$17 -> 2 | D169: =$D$17 -> 1 | E169: 9960 | G169: ='Livestock PM10'!D28 -> 0 | H169: ='Livestock PM10'!E28 -> 0
A170: ='Cow Housing'!$C$6 -> C-3333 | B170: =$B$17 -> 0 | C170: =$C$17 -> 2 | D170: =$D$17 -> 1 | E170: 50000 | G170: ='Dairy Miscellaneous'!D40 -> 0 | H170: ='Dairy Miscellaneous'!E40 -> 0
A171: ='Cow Housing'!$C$6 -> C-3333 | B171: =$B$17 -> 0 | C171: =$C$17 -> 2 | D171: =$D$17 -> 1 | E171: 56235 | G171: ='Dairy Miscellaneous'!D30 -> 0 | H171: ='Dairy Miscellaneous'!E30 -> 0
A172: ='Cow Housing'!$C$6 -> C-3333 | B172: =$B$17 -> 0 | C172: =$C$17 -> 2 | D172: =$D$17 -> 1 | E172: 67630 | G172: ='Dairy Miscellaneous'!D42 -> 0 | H172: ='Dairy Miscellaneous'!E42 -> 0
A173: ='Cow Housing'!$C$6 -> C-3333 | B173: =$B$17 -> 0 | C173: =$C$17 -> 2 | D173: =$D$17 -> 1 | E173: 67663 | G173: ='Dairy Miscellaneous'!D32 -> 0 | H173: ='Dairy Miscellaneous'!E32 -> 0
A174: ='Cow Housing'!$C$6 -> C-3333 | B174: =$B$17 -> 0 | C174: =$C$17 -> 2 | D174: =$D$17 -> 1 | E174: 71432 | G174: ='Dairy Miscellaneous'!D26 -> 0 | H174: ='Dairy Miscellaneous'!E26 -> 0
A175: ='Cow Housing'!$C$6 -> C-3333 | B175: =$B$17 -> 0 | C175: =$C$17 -> 2 | D175: =$D$17 -> 1 | E175: 74873 | G175: ='Dairy Miscellaneous'!D33 -> 0 | H175: ='Dairy Miscellaneous'!E33 -> 0
A176: ='Cow Housing'!$C$6 -> C-3333 | B176: =$B$17 -> 0 | C176: =$C$17 -> 2 | D176: =$D$17 -> 1 | E176: 75003 | G176: ='Dairy Miscellaneous'!D36 -> 0 | H176: ='Dairy Miscellaneous'!E36 -> 0
A177: ='Cow Housing'!$C$6 -> C-3333 | B177: =$B$17 -> 0 | C177: =$C$17 -> 2 | D177: =$D$17 -> 1 | E177: 75070 | G177: ='Dairy Miscellaneous'!D24 -> 0 | H177: ='Dairy Miscellaneous'!E24 -> 0
A178: ='Cow Housing'!$C$6 -> C-3333 | B178: =$B$17 -> 0 | C178: =$C$17 -> 2 | D178: =$D$17 -> 1 | E178: 75150 | G178: ='Dairy Miscellaneous'!D29 -> 0 | H178: ='Dairy Miscellaneous'!E29 -> 0
A179: ='Cow Housing'!$C$6 -> C-3333 | B179: =$B$17 -> 0 | C179: =$C$17 -> 2 | D179: =$D$17 -> 1 | E179: 75694 | G179: ='Dairy Miscellaneous'!D49 -> 0 | H179: ='Dairy Miscellaneous'!E49 -> 0
A180: ='Cow Housing'!$C$6 -> C-3333 | B180: =$B$17 -> 0 | C180: =$C$17 -> 2 | D180: =$D$17 -> 1 | E180: 78933 | G180: ='Dairy Miscellaneous'!D44 -> 0 | H180: ='Dairy Miscellaneous'!E44 -> 0
A181: ='Cow Housing'!$C$6 -> C-3333 | B181: =$B$17 -> 0 | C181: =$C$17 -> 2 | D181: =$D$17 -> 1 | E181: 79005 | G181: ='Dairy Miscellaneous'!D16 -> 0 | H181: ='Dairy Miscellaneous'!E16 -> 0
A182: ='Cow Housing'!$C$6 -> C-3333 | B182: =$B$17 -> 0 | C182: =$C$17 -> 2 | D182: =$D$17 -> 1 | E182: 79345 | G182: ='Dairy Miscellaneous'!D15 -> 0 | H182: ='Dairy Miscellaneous'!E15 -> 0
A183: ='Cow Housing'!$C$6 -> C-3333 | B183: =$B$17 -> 0 | C183: =$C$17 -> 2 | D183: =$D$17 -> 1 | E183: 95501 | G183: ='Dairy Miscellaneous'!D20 -> 0 | H183: ='Dairy Miscellaneous'!E20 -> 0
A184: ='Cow Housing'!$C$6 -> C-3333 | B184: =$B$17 -> 0 | C184: =$C$17 -> 2 | D184: =$D$17 -> 1 | E184: 96128 | G184: ='Dairy Miscellaneous'!D19 -> 0 | H184: ='Dairy Miscellaneous'!E19 -> 0
A185: ='Cow Housing'!$C$6 -> C-3333 | B185: =$B$17 -> 0 | C185: =$C$17 -> 2 | D185: =$D$17 -> 1 | E185: 96184 | G185: ='Dairy Miscellaneous'!D17 -> 0 | H185: ='Dairy Miscellaneous'!E17 -> 0
A186: ='Cow Housing'!$C$6 -> C-3333 | B186: =$B$17 -> 0 | C186: =$C$17 -> 2 | D186: =$D$17 -> 1 | E186: 98828 | G186: ='Dairy Miscellaneous'!D43 -> 0 | H186: ='Dairy Miscellaneous'!E43 -> 0
A187: ='Cow Housing'!$C$6 -> C-3333 | B187: =$B$17 -> 0 | C187: =$C$17 -> 2 | D187: =$D$17 -> 1 | E187: 100414 | G187: ='Dairy Miscellaneous'!D37 -> 0 | H187: ='Dairy Miscellaneous'!E37 -> 0
A188: ='Cow Housing'!$C$6 -> C-3333 | B188: =$B$17 -> 0 | C188: =$C$17 -> 2 | D188: =$D$17 -> 1 | E188: 100425 | G188: ='Dairy Miscellaneous'!D46 -> 0 | H188: ='Dairy Miscellaneous'!E46 -> 0
A189: ='Cow Housing'!$C$6 -> C-3333 | B189: =$B$17 -> 0 | C189: =$C$17 -> 2 | D189: =$D$17 -> 1 | E189: 100447 | G189: ='Dairy Miscellaneous'!D27 -> 0 | H189: ='Dairy Miscellaneous'!E27 -> 0
A190: ='Cow Housing'!$C$6 -> C-3333 | B190: =$B$17 -> 0 | C190: =$C$17 -> 2 | D190: =$D$17 -> 1 | E190: 106467 | G190: ='Dairy Miscellaneous'!D23 -> 0 | H190: ='Dairy Miscellaneous'!E23 -> 0
A191: ='Cow Housing'!$C$6 -> C-3333 | B191: =$B$17 -> 0 | C191: =$C$17 -> 2 | D191: =$D$17 -> 1 | E191: 106934 | G191: ='Dairy Miscellaneous'!D38 -> 0 | H191: ='Dairy Miscellaneous'!E38 -> 0
A192: ='Cow Housing'!$C$6 -> C-3333 | B192: =$B$17 -> 0 | C192: =$C$17 -> 2 | D192: =$D$17 -> 1 | E192: 107062 | G192: ='Dairy Miscellaneous'!D39 -> 0 | H192: ='Dairy Miscellaneous'!E39 -> 0
A193: ='Cow Housing'!$C$6 -> C-3333 | B193: =$B$17 -> 0 | C193: =$C$17 -> 2 | D193: =$D$17 -> 1 | E193: 107131 | G193: ='Dairy Miscellaneous'!D25 -> 0 | H193: ='Dairy Miscellaneous'!E25 -> 0
A194: ='Cow Housing'!$C$6 -> C-3333 | B194: =$B$17 -> 0 | C194: =$C$17 -> 2 | D194: =$D$17 -> 1 | E194: 108054 | G194: ='Dairy Miscellaneous'!D50 -> 0 | H194: ='Dairy Miscellaneous'!E50 -> 0
A195: ='Cow Housing'!$C$6 -> C-3333 | B195: =$B$17 -> 0 | C195: =$C$17 -> 2 | D195: =$D$17 -> 1 | E195: 108101 | G195: ='Dairy Miscellaneous'!D45 -> 0 | H195: ='Dairy Miscellaneous'!E45 -> 0
A196: ='Cow Housing'!$C$6 -> C-3333 | B196: =$B$17 -> 0 | C196: =$C$17 -> 2 | D196: =$D$17 -> 1 | E196: 108883 | G196: ='Dairy Miscellaneous'!D48 -> 0 | H196: ='Dairy Miscellaneous'!E48 -> 0
A197: ='Cow Housing'!$C$6 -> C-3333 | B197: =$B$17 -> 0 | C197: =$C$17 -> 2 | D197: =$D$17 -> 1 | E197: 108907 | G197: ='Dairy Miscellaneous'!D31 -> 0 | H197: ='Dairy Miscellaneous'!E31 -> 0
A198: ='Cow Housing'!$C$6 -> C-3333 | B198: =$B$17 -> 0 | C198: =$C$17 -> 2 | D198: =$D$17 -> 1 | E198: 110543 | G198: ='Dairy Miscellaneous'!D41 -> 0 | H198: ='Dairy Miscellaneous'!E41 -> 0
A199: ='Cow Housing'!$C$6 -> C-3333 | B199: =$B$17 -> 0 | C199: =$C$17 -> 2 | D199: =$D$17 -> 1 | E199: 110827 | G199: ='Dairy Miscellaneous'!D35 -> 0 | H199: ='Dairy Miscellaneous'!E35 -> 0
A200: ='Cow Housing'!$C$6 -> C-3333 | B200: =$B$17 -> 0 | C200: =$C$17 -> 2 | D200: =$D$17 -> 1 | E200: 120821 | G200: ='Dairy Miscellaneous'!D18 -> 0 | H200: ='Dairy Miscellaneous'!E18 -> 0
A201: ='Cow Housing'!$C$6 -> C-3333 | B201: =$B$17 -> 0 | C201: =$C$17 -> 2 | D201: =$D$17 -> 1 | E201: 123728 | G201: ='Dairy Miscellaneous'!D28 -> 0 | H201: ='Dairy Miscellaneous'!E28 -> 0
... 4194 more rows
